Workbook

Sheet 1. Utility_Info_
AB1: Algoma Power Inc.
AB2: Atikokan Hydro Inc.
AB3: Attawapiskat Power Corporation
AB4: Bluewater Power Distribution Corp.
AB5: Brant County Power
AB6: Brantford Power Inc.
AB7: Burlington Hydro Inc.
AB8: Cambridge and North Dumfries Hydro
AB9: Canadian Niagara Power Inc. – Eastern Ontario Power/Fort Erie/Port Colborne
AB10: Centre Wellington Hydro Ltd.
AB11: Chapleau Public Utilities Corporation
AB12: COLLUS Power Corp.
H13: Version | I13: 3.01WH | AB13: Cooperative Hydro Embrun Inc.
AB14: E.L.K. Energy Inc.
C15: Utility Name | D15: Whitby Hydro Electric Corporation | AB15: Enersource Hydro Mississauga Inc.
AB16: Entegrus Powerlines Inc.
C17: Assigned EB Number | D17: EB-2012-0479 | AB17: ENWIN Utilities Ltd.
AB18: Erie Thames Powerlines Corp.
C19: Name and Title | D19: Ramona Abi-Rashed | AB19: Espanola Regional Hydro Distribution Corporation
AB20: Essex Powerlines Corporation
C21: Phone Number | D21: 905 668-5878 | AB21: Festival Hydro Inc.
AB22: Fort Albany Power Corporation
C23: Email Address | D23: rabirashed@whitbyhydro.on.ca | AB23: Fort Frances Power Corporation
AB24: Greater Sudbury Hydro Inc.
C25: Date | D25: 2013-03-01 | AB25: Grimsby Power Inc.
AB26: Guelph Hydro Electric Systems Inc.
C27: Last COS Re-based Year | D27: 2011 | AB27: Haldimand County Hydro Inc.
AB28: Halton Hills Hydro Inc.
AB29: Hearst Power Distribution Co. Ltd.
A30: Note: Drop-down lists are shaded blue; Input cells are shaded green.
AB32: Horizon Utilities Corporation
AB33: Hydro 2000 Inc.
AB34: Hydro Hawkesbury Inc.
AB35: Hydro One Brampton Networks Inc.
AB36: Hydro One Networks Inc.
AB37: Hydro One Remote Communities Inc.
AB38: Hydro Ottawa Limited
AB39: Innisfil Hydro Dist. Systems Limited
AB40: Kashechewan Power Corporation
AB41: Kenora Hydro Electric Corporation Ltd.
AB42: Kingston Hydro Corporation
AB43: Kitchener-Wilmot Hydro Inc.
AB44: Lakefront Utilities Inc.
AB45: Lakeland Power Distribution Ltd.
AB46: London Hydro Inc.
AB47: Midland Power Utility Corporation
AB48: Milton Hydro Distribution Inc.
AB49: Newmarket – Tay Power Distribution Ltd.
AB50: Niagara Peninsula Energy Inc.
AB51: Niagara-on-the-Lake Hydro Inc.
AB52: Norfolk Power Distribution Ltd.
AB53: North Bay Hydro Distribution Limited
AB54: Northern Ontario Wires Inc.
AB55: Oakville Hydro Distribution Inc.
AB56: Orangeville Hydro Limited
AB57: Orillia Power Distribution Corp.
AB58: Oshawa PUC Networks Inc.
AB59: Ottawa River Power Corporation
AB60: Parry Sound Power Corporation
AB61: Peterborough Distribution Inc.
AB62: PowerStream Inc.
AB63: PUC Distribution Inc.
AB64: Renfrew Hydro Inc.
AB65: Rideau St. Lawrence Distribution Inc.
AB66: St. Thomas Energy Inc.
AB67: Sioux Lookout Hydro Inc.
AB68: Thunder Bay Hydro Electricity Distribution
AB69: Tillsonburg Hydro Inc.
AB70: Toronto Hydro-Electric System Limited
AB71: Veridian Connections Inc.
AB72: Wasaga Distribution Inc.
AB73: Waterloo North Hydro Inc.
AB74: Welland Hydro Electric System Corp.
AB75: Wellington North Power Inc.
AB76: West Coast Huron Energy Inc.
AB77: Westario Power Inc.
AB78: Whitby Hydro Electric Corporation
AB79: Woodstock Hydro Services Inc.

Sheet 2. Smart_Meter_Costs
B13: Distributors must enter all incremental costs related to their smart meter program and all revenues recovered to date in the applicable tabs except for those costs (and associated revenues) for which the Board has approved on a final basis, i.e. capital costs have been included in rate base and OM&A costs in revenue requirement. For 2012, distributors that have completed their deployments by the end of 2011 are not expected to enter any capital costs. However, for OM&A, regardless of whether a distributor has deployments in 2012, distributors should enter the forecasted OM&A for 2012 for all smart meters in service.
G18: 2006 | I18: 2007 | K18: 2008 | M18: 2009 | O18: 2010 | Q18: 2011 | S18: 2012 | U18: 2013 | W18: 2014 | Y18: 2015 | AA18: 2016 | AC18: 2017 | AE18: 2018 | AG18: Total
B19: Smart Meter Capital Cost and Operational Expense Data | G19: Audited Actual | I19: Audited Actual | K19: Audited Actual | M19: Audited Actual | O19: Audited Actual | Q19: Audited Actual | S19: Forecast | U19: Forecast | W19: Forecast | Y19: Forecast | AA19: Forecast | AC19: Forecast | AE19: Forecast
C21: Smart Meter Installation Plan
C23: Actual/Planned number of Smart Meters installed during the Calendar Year
C25: Residential | M25: =[3]Sheet1!$B$6 -> 2269 | O25: =[3]Sheet1!$B$7 -> 33891 | Q25: =[3]Sheet1!$B$8 -> 1760 | S25: =[3]Sheet1!$B$9 -> 604 | AG25: =SUM(G25,I25,K25,M25,O25,Q25,S25,U25) -> 38524
C27: General Service < 50 kW | M27: =[3]Sheet1!$C$6 -> 79 | O27: =[3]Sheet1!$C$7 -> 271 | Q27: =[3]Sheet1!$C$8 -> 1706 | S27: =[3]Sheet1!$C$9 -> 41 | AG27: =SUM(G27,I27,K27,M27,O27,Q27,S27,U27) -> 2097
C29: Actual/Planned number of Smart Meters installed (Residential and GS < 50 kW only) | G29: =G25+G27 -> 0 | I29: =I25+I27 -> 0 | K29: =K25+K27 -> 0 | M29: =M25+M27 -> 2348 | O29: =O25+O27 -> 34162 | Q29: =Q25+Q27 -> 3466 | S29: =S25+S27 -> 645 | U29: =U25+U27 -> 0 | W29: =W25+W27 -> 0 | Y29: =Y25+Y27 -> 0 | AA29: =AA25+AA27 -> 0 | AC29: =AC25+AC27 -> 0 | AE29: =AE25+AE27 -> 0 | AG29: =SUM(G29,I29,K29,M29,O29,Q29,S29,U29) -> 40621
C31: Percentage of Residential and GS < 50 kW Smart Meter Installations Completed | G31: =IF($AG29=0,0,G29/$AG29) -> 0 | I31: =IF(G31=100%, 0, IF(ISERROR(SUM(G29:I29)/$AG29),0,SUM(G29:I29)/$AG29)) -> 0 | K31: =IF(I31=100%, 0, IF(ISERROR(SUM(G29:K29)/$AG29), 0, SUM(G29:K29)/$AG29)) -> 0 | M31: =IF(K31=100%,0,IF(ISERROR(SUM(G29:M29)/$AG29),0,SUM(G29:M29)/$AG29)) -> 0.05780261441 | O31: =IF(M31=100%,0,IF(ISERROR(SUM(G29:O29)/$AG29),0,SUM(G29:O29)/$AG29)) -> 0.8987961892 | Q31: =IF(O31=100%,0,IF(ISERROR(SUM(G29:Q29)/$AG29),0,SUM(G29:Q29)/$AG29)) -> 0.9841215135 | S31: =IF(Q31=100%,0,IF(ISERROR(SUM(G29:S29)/$AG29),0,SUM(G29:S29)/$AG29)) -> 1 | U31: =IF(S31=100%,0,IF(ISERROR(SUM(I29:U29)/$AG29),0,SUM(I29:U29)/$AG29)) -> 0 | W31: =IF(U31=100%,0,IF(ISERROR(SUM(K29:W29)/$AG29),0,SUM(K29:W29)/$AG29)) -> 1 | Y31: =IF(W31=100%,0,IF(ISERROR(SUM(M29:Y29)/$AG29),0,SUM(M29:Y29)/$AG29)) -> 0 | AA31: =IF(Y31=100%,0,IF(ISERROR(SUM(O29:AA29)/$AG29),0,SUM(O29:AA29)/$AG29)) -> 0.9421973856 | AC31: =IF(AA31=100%,0,IF(ISERROR(SUM(Q29:AC29)/$AG29),0,SUM(Q29:AC29)/$AG29)) -> 0.1012038108 | AE31: =IF(AC31=100%,0,IF(ISERROR(SUM(S29:AE29)/$AG29),0,SUM(S29:AE29)/$AG29)) -> 0.0158784865 | AG31: =IF($AG29=0,"",AG29/$AG29) -> 1
C33: Actual/Planned number of GS > 50 kW meters installed | AG33: =SUM(G33,I33,K33,M33,O33,Q33,S33,U33) -> 0
C35: Other (please identify) | AG35: =SUM(G35,I35,K35,M35,O35,Q35,S35,U35) -> 0
C37: Total Number of Smart Meters installed or planned to be installed | G37: =SUM(G29,G33,G35) -> 0 | I37: =SUM(I29,I33,I35) -> 0 | K37: =SUM(K29,K33,K35) -> 0 | M37: =SUM(M29,M33,M35) -> 2348 | O37: =SUM(O29,O33,O35) -> 34162 | Q37: =SUM(Q29,Q33,Q35) -> 3466 | S37: =SUM(S29,S33,S35) -> 645 | U37: =SUM(U29,U33,U35) -> 0 | W37: =SUM(W29,W33,W35) -> 0 | Y37: =SUM(Y29,Y33,Y35) -> 0 | AA37: =SUM(AA29,AA33,AA35) -> 0 | AC37: =SUM(AC29,AC33,AC35) -> 0 | AE37: =SUM(AE29,AE33,AE35) -> 0 | AG37: =SUM(G37,I37,K37,M37,O37,Q37,S37,U37) -> 40621
B39: 1 | C39: Capital Costs
E40: Asset Type
C41: 1.1 ADVANCED METERING COMMUNICATION DEVICE (AMCD) | E41: Asset type must be selected to enable calculations | G41: =IF(ISBLANK(G19),"",G19) -> Audited Actual | I41: =IF(ISBLANK(I19),"",I19) -> Audited Actual | K41: =IF(ISBLANK(K19),"",K19) -> Audited Actual | M41: =IF(ISBLANK(M19),"",M19) -> Audited Actual | O41: =IF(ISBLANK(O19),"",O19) -> Audited Actual | Q41: =IF(ISBLANK(Q19),"",Q19) -> Audited Actual | S41: =IF(ISBLANK(S19),"",S19) -> Forecast | U41: =IF(ISBLANK(U19),"",U19) -> Forecast | W41: =IF(ISBLANK(W19),"",W19) -> Forecast | Y41: =IF(ISBLANK(Y19),"",Y19) -> Forecast | AA41: =IF(ISBLANK(AA19),"",AA19) -> Forecast | AC41: =IF(ISBLANK(AC19),"",AC19) -> Forecast | AE41: =IF(ISBLANK(AE19),"",AE19) -> Forecast
C42: 1.1.1 Smart Meters (may include new meters and modules, etc.) | E42: Smart Meter | G42: ='[4]SM cost breakdown Summary'!G11 -> 0 | I42: ='[4]SM cost breakdown Summary'!I11 -> 0 | K42: ='[4]SM cost breakdown Summary'!K11 -> 0 | M42: ='[4]SM cost breakdown Summary'!M11 -> 255115 | O42: ='[4]SM cost breakdown Summary'!O11 -> 2767448.5 | Q42: ='[4]SM cost breakdown Summary'!Q11 -> 627136.07 | S42: ='[4]SM cost breakdown Summary'!S11 -> 47317.2 | U42: ='[4]SM cost breakdown Summary'!U11 -> 0 | AG42: =SUM(G42,I42,K42,M42,O42,Q42,S42,U42) -> 3697016.77
C44: 1.1.2 Installation Costs (may include socket kits, labour, vehicle, benefits, etc.) | E44: Smart Meter | G44: ='[4]SM cost breakdown Summary'!G12 -> 0 | I44: ='[4]SM cost breakdown Summary'!I12 -> 0 | K44: ='[4]SM cost breakdown Summary'!K12 -> 0 | M44: ='[4]SM cost breakdown Summary'!M12 -> 117989 | O44: ='[4]SM cost breakdown Summary'!O12 -> 441272.5 | Q44: ='[4]SM cost breakdown Summary'!Q12 -> 340108.93 | S44: ='[4]SM cost breakdown Summary'!S12 -> 57558.7055 | U44: ='[4]SM cost breakdown Summary'!U12 -> 0 | AG44: =SUM(G44,I44,K44,M44,O44,Q44,S44,U44) -> 956929.1355
C46: 1.1.3a Workforce Automation Hardware (may include fieldwork handhelds, barcode hardware, etc.) | E46: Computer Hardware | G46: ='[4]SM cost breakdown Summary'!G13 -> 0 | I46: ='[4]SM cost breakdown Summary'!I13 -> 0 | K46: ='[4]SM cost breakdown Summary'!K13 -> 0 | M46: ='[4]SM cost breakdown Summary'!M13 -> 11811 | O46: ='[4]SM cost breakdown Summary'!O13 -> 7548 | Q46: ='[4]SM cost breakdown Summary'!Q13 -> 0 | S46: ='[4]SM cost breakdown Summary'!S13 -> 0 | U46: ='[4]SM cost breakdown Summary'!U13 -> 0 | AG46: =SUM(G46,I46,K46,M46,O46,Q46,S46,U46) -> 19359
C48: 1.1.3b Workforce Automation Software (may include fieldwork handhelds, barcode hardware, etc.) | E48: Computer Software | G48: ='[4]SM cost breakdown Summary'!G14 -> 0 | I48: ='[4]SM cost breakdown Summary'!I14 -> 0 | K48: ='[4]SM cost breakdown Summary'!K14 -> 24030 | M48: ='[4]SM cost breakdown Summary'!M14 -> 19431 | O48: ='[4]SM cost breakdown Summary'!O14 -> 28297.34 | Q48: ='[4]SM cost breakdown Summary'!Q14 -> 0.42 | S48: ='[4]SM cost breakdown Summary'!S14 -> 0 | U48: ='[4]SM cost breakdown Summary'!U14 -> 0 | AG48: =SUM(G48,I48,K48,M48,O48,Q48,S48,U48) -> 71758.76
C50: Total Advanced Metering Communications Devices (AMCD) | G50: =SUM(G42,G44,G46,G48) -> 0 | I50: =SUM(I42,I44,I46,I48) -> 0 | K50: =SUM(K42,K44,K46,K48) -> 24030 | M50: =SUM(M42,M44,M46,M48) -> 404346 | O50: =SUM(O42,O44,O46,O48) -> 3244566.34 | Q50: =SUM(Q42,Q44,Q46,Q48) -> 967245.42 | S50: =SUM(S42,S44,S46,S48) -> 104875.9055 | U50: =SUM(U42,U44,U46,U48) -> 0 | W50: =SUM(W42,W44,W46,W48) -> 0 | Y50: =SUM(Y42,Y44,Y46,Y48) -> 0 | AA50: =SUM(AA42,AA44,AA46,AA48) -> 0 | AC50: =SUM(AC42,AC44,AC46,AC48) -> 0 | AE50: =SUM(AE42,AE44,AE46,AE48) -> 0 | AG50: =AG42+AG44+AG46+AG48 -> 4745063.666
E52: =E40 -> Asset Type
C53: 1.2 ADVANCED METERING REGIONAL COLLECTOR (AMRC) (includes LAN) | G53: =G41 -> Audited Actual | I53: =I41 -> Audited Actual | K53: =K41 -> Audited Actual | M53: =M41 -> Audited Actual | O53: =O41 -> Audited Actual | Q53: =Q41 -> Audited Actual | S53: =S41 -> Forecast | U53: =U41 -> Forecast | W53: =W41 -> Forecast | Y53: =Y41 -> Forecast | AA53: =AA41 -> Forecast | AC53: =AC41 -> Forecast | AE53: =AE41 -> Forecast
C54: 1.2.1 Collectors | E54: Other Equipment | G54: ='[4]SM cost breakdown Summary'!G19 -> 0 | I54: ='[4]SM cost breakdown Summary'!I19 -> 0 | K54: ='[4]SM cost breakdown Summary'!K19 -> 302400 | M54: ='[4]SM cost breakdown Summary'!M19 -> 0 | O54: ='[4]SM cost breakdown Summary'!O19 -> 0 | Q54: ='[4]SM cost breakdown Summary'!Q19 -> 0 | S54: ='[4]SM cost breakdown Summary'!S19 -> 0 | U54: ='[4]SM cost breakdown Summary'!U19 -> 0 | AG54: =SUM(G54,I54,K54,M54,O54,Q54,S54,U54) -> 302400
C56: 1.2.2 Repeaters (may include radio licence, etc.) | AG56: =SUM(G56,I56,K56,M56,O56,Q56,S56,U56) -> 0
C58: 1.2.3 Installation (may include meter seals and rings, collector computer hardware, etc.) | E58: Other Equipment | G58: ='[4]SM cost breakdown Summary'!G20 -> 0 | I58: ='[4]SM cost breakdown Summary'!I20 -> 0 | K58: ='[4]SM cost breakdown Summary'!K20 -> 9765 | M58: ='[4]SM cost breakdown Summary'!M20 -> 0 | O58: ='[4]SM cost breakdown Summary'!O20 -> 0 | Q58: ='[4]SM cost breakdown Summary'!Q20 -> 0 | S58: ='[4]SM cost breakdown Summary'!S20 -> 0 | U58: ='[4]SM cost breakdown Summary'!U20 -> 0 | AG58: =SUM(G58,I58,K58,M58,O58,Q58,S58,U58) -> 9765
C60: Total Advanced Metering Regional Collector (AMRC) (Includes LAN) | G60: =G54+G56+G58 -> 0 | I60: =I54+I56+I58 -> 0 | K60: =K54+K56+K58 -> 312165 | M60: =M54+M56+M58 -> 0 | O60: =O54+O56+O58 -> 0 | Q60: =Q54+Q56+Q58 -> 0 | S60: =S54+S56+S58 -> 0 | U60: =U54+U56+U58 -> 0 | W60: =W54+W56+W58 -> 0 | Y60: =Y54+Y56+Y58 -> 0 | AA60: =AA54+AA56+AA58 -> 0 | AC60: =AC54+AC56+AC58 -> 0 | AE60: =AE54+AE56+AE58 -> 0 | AG60: =AG54+AG56+AG58 -> 312165
E62: =E52 -> Asset Type
C63: 1.3 ADVANCED METERING CONTROL COMPUTER (AMCC) | G63: =G53 -> Audited Actual | I63: =I53 -> Audited Actual | K63: =K53 -> Audited Actual | M63: =M53 -> Audited Actual | O63: =O53 -> Audited Actual | Q63: =Q53 -> Audited Actual | S63: =S53 -> Forecast | U63: =U53 -> Forecast | W63: =W53 -> Forecast | Y63: =Y53 -> Forecast | AA63: =AA53 -> Forecast | AC63: =AC53 -> Forecast | AE63: =AE53 -> Forecast
C64: 1.3.1 Computer Hardware | E64: Computer Hardware | G64: ='[4]SM cost breakdown Summary'!G26 -> 0 | I64: ='[4]SM cost breakdown Summary'!I26 -> 0 | K64: ='[4]SM cost breakdown Summary'!K26 -> 0 | M64: ='[4]SM cost breakdown Summary'!M26 -> 0 | O64: ='[4]SM cost breakdown Summary'!O26 -> 136798.7 | Q64: ='[4]SM cost breakdown Summary'!Q26 -> 0 | S64: ='[4]SM cost breakdown Summary'!S26 -> 0 | U64: ='[4]SM cost breakdown Summary'!U26 -> 0 | AG64: =SUM(G64,I64,K64,M64,O64,Q64,S64,U64) -> 136798.7
C66: 1.3.2 Computer Software | E66: Computer Software | G66: ='[4]SM cost breakdown Summary'!G27 -> 0 | I66: ='[4]SM cost breakdown Summary'!I27 -> 0 | K66: ='[4]SM cost breakdown Summary'!K27 -> 0 | M66: ='[4]SM cost breakdown Summary'!M27 -> 0 | O66: ='[4]SM cost breakdown Summary'!O27 -> 0 | Q66: ='[4]SM cost breakdown Summary'!Q27 -> 0 | S66: ='[4]SM cost breakdown Summary'!S27 -> 0 | U66: ='[4]SM cost breakdown Summary'!U27 -> 0 | AG66: =SUM(G66,I66,K66,M66,O66,Q66,S66,U66) -> 0
C68: 1.3.3 Computer Software Licences & Installation (includes hardware and software) | E68: Computer Software | G68: ='[4]SM cost breakdown Summary'!G28 -> 0 | I68: ='[4]SM cost breakdown Summary'!I28 -> 0 | K68: ='[4]SM cost breakdown Summary'!K28 -> 0 | M68: ='[4]SM cost breakdown Summary'!M28 -> 0 | O68: ='[4]SM cost breakdown Summary'!O28 -> 0 | Q68: ='[4]SM cost breakdown Summary'!Q28 -> 0 | S68: ='[4]SM cost breakdown Summary'!S28 -> 0 | U68: ='[4]SM cost breakdown Summary'!U28 -> 0 | AG68: =SUM(G68,I68,K68,M68,O68,Q68,S68,U68) -> 0
C69: (may include AS/400 disk space, backup and recovery computer, UPS, etc.)
C70: Total Advanced Metering Control Computer (AMCC) | G70: =G64+G66+G68 -> 0 | I70: =I64+I66+I68 -> 0 | K70: =K64+K66+K68 -> 0 | M70: =M64+M66+M68 -> 0 | O70: =O64+O66+O68 -> 136798.7 | Q70: =Q64+Q66+Q68 -> 0 | S70: =S64+S66+S68 -> 0 | U70: =U64+U66+U68 -> 0 | W70: =W64+W66+W68 -> 0 | Y70: =Y64+Y66+Y68 -> 0 | AA70: =AA64+AA66+AA68 -> 0 | AC70: =AC64+AC66+AC68 -> 0 | AE70: =AE64+AE66+AE68 -> 0 | AG70: =AG64+AG66+AG68 -> 136798.7
E72: =E62 -> Asset Type
C73: 1.4 WIDE AREA NETWORK (WAN) | G73: =G63 -> Audited Actual | I73: =I63 -> Audited Actual | K73: =K63 -> Audited Actual | M73: =M63 -> Audited Actual | O73: =O63 -> Audited Actual | Q73: =Q63 -> Audited Actual | S73: =S63 -> Forecast | U73: =U63 -> Forecast | W73: =W63 -> Forecast | Y73: =Y63 -> Forecast | AA73: =AA63 -> Forecast | AC73: =AC63 -> Forecast | AE73: =AE63 -> Forecast
C75: 1.4.1 Activiation Fees | E75: Other Equipment | G75: ='[4]SM cost breakdown Summary'!G34 -> 0 | I75: ='[4]SM cost breakdown Summary'!I34 -> 0 | K75: ='[4]SM cost breakdown Summary'!K34 -> 0 | M75: ='[4]SM cost breakdown Summary'!M34 -> 0 | O75: ='[4]SM cost breakdown Summary'!O34 -> 0 | Q75: ='[4]SM cost breakdown Summary'!Q34 -> 0 | S75: ='[4]SM cost breakdown Summary'!S34 -> 0 | U75: ='[4]SM cost breakdown Summary'!U34 -> 0 | AG75: =SUM(G75,I75,K75,M75,O75,Q75,S75,U75) -> 0
C77: Total Wide Area Network (WAN) | G77: =G75 -> 0 | I77: =I75 -> 0 | K77: =K75 -> 0 | M77: =M75 -> 0 | O77: =O75 -> 0 | Q77: =Q75 -> 0 | S77: =S75 -> 0 | U77: =U75 -> 0 | W77: =W75 -> 0 | Y77: =Y75 -> 0 | AA77: =AA75 -> 0 | AC77: =AC75 -> 0 | AE77: =AE75 -> 0 | AG77: =AG75 -> 0
E79: =E72 -> Asset Type
C80: 1.5 OTHER AMI CAPITAL COSTS RELATED TO MINIMUM FUNCTIONALITY | G80: =G73 -> Audited Actual | I80: =I73 -> Audited Actual | K80: =K73 -> Audited Actual | M80: =M73 -> Audited Actual | O80: =O73 -> Audited Actual | Q80: =Q73 -> Audited Actual | S80: =S73 -> Forecast | U80: =U73 -> Forecast | W80: =W73 -> Forecast | Y80: =Y73 -> Forecast | AA80: =AA73 -> Forecast | AC80: =AC73 -> Forecast | AE80: =AE73 -> Forecast
C82: 1.5.1 Customer Equipment (including repair of damaged equipment) | E82: Other Equipment | G82: ='[4]SM cost breakdown Summary'!G39 -> 0 | I82: ='[4]SM cost breakdown Summary'!I39 -> 0 | K82: ='[4]SM cost breakdown Summary'!K39 -> 0 | M82: ='[4]SM cost breakdown Summary'!M39 -> 74776 | O82: ='[4]SM cost breakdown Summary'!O39 -> 58871 | Q82: ='[4]SM cost breakdown Summary'!Q39 -> 63265 | S82: ='[4]SM cost breakdown Summary'!S39 -> 11619.16 | U82: ='[4]SM cost breakdown Summary'!U39 -> 0 | AG82: =SUM(G82,I82,K82,M82,O82,Q82,S82,U82) -> 208531.16
C84: 1.5.2 AMI Interface to CIS | E84: Computer Software | G84: ='[4]SM cost breakdown Summary'!G40 -> 0 | I84: ='[4]SM cost breakdown Summary'!I40 -> 0 | K84: ='[4]SM cost breakdown Summary'!K40 -> 0 | M84: ='[4]SM cost breakdown Summary'!M40 -> 0 | O84: ='[4]SM cost breakdown Summary'!O40 -> 0 | Q84: ='[4]SM cost breakdown Summary'!Q40 -> 0 | S84: ='[4]SM cost breakdown Summary'!S40 -> 0 | U84: ='[4]SM cost breakdown Summary'!U40 -> 0 | AG84: =SUM(G84,I84,K84,M84,O84,Q84,S8,U84) -> 0
C86: 1.5.3 Professional Fees | E86: Computer Software | G86: ='[4]SM cost breakdown Summary'!G41 -> 0 | I86: ='[4]SM cost breakdown Summary'!I41 -> 0 | K86: ='[4]SM cost breakdown Summary'!K41 -> 119489 | M86: ='[4]SM cost breakdown Summary'!M41 -> 33275 | O86: ='[4]SM cost breakdown Summary'!O41 -> 49588 | Q86: ='[4]SM cost breakdown Summary'!Q41 -> 14103.107 | S86: ='[4]SM cost breakdown Summary'!S41 -> 0 | U86: ='[4]SM cost breakdown Summary'!U41 -> 0 | AG86: =SUM(G86,I86,K86,M86,O86,Q86,S86,U86) -> 216455.107
C88: 1.5.4 Integration | E88: Computer Software | G88: ='[4]SM cost breakdown Summary'!G42 -> 0 | I88: ='[4]SM cost breakdown Summary'!I42 -> 0 | K88: ='[4]SM cost breakdown Summary'!K42 -> 0 | M88: ='[4]SM cost breakdown Summary'!M42 -> 34136 | O88: ='[4]SM cost breakdown Summary'!O42 -> 38384 | Q88: ='[4]SM cost breakdown Summary'!Q42 -> 0 | S88: ='[4]SM cost breakdown Summary'!S42 -> 0 | U88: ='[4]SM cost breakdown Summary'!U42 -> 0 | AG88: =SUM(G88,I88,K88,M88,O88,Q88,S88,U88) -> 72520
C90: 1.5.5 Program Management | E90: Computer Software | G90: ='[4]SM cost breakdown Summary'!G43 -> 0 | I90: ='[4]SM cost breakdown Summary'!I43 -> 0 | K90: ='[4]SM cost breakdown Summary'!K43 -> 150816 | M90: ='[4]SM cost breakdown Summary'!M43 -> 70445 | O90: ='[4]SM cost breakdown Summary'!O43 -> 43934 | Q90: ='[4]SM cost breakdown Summary'!Q43 -> 0 | S90: ='[4]SM cost breakdown Summary'!S43 -> 0 | U90: ='[4]SM cost breakdown Summary'!U43 -> 0 | AG90: =SUM(G90,I90,K90,M90,O90,Q90,S90,U90) -> 265195
C92: 1.5.6 Other AMI Capital | E92: Other Equipment | G92: ='[4]SM cost breakdown Summary'!G44 -> 0 | I92: ='[4]SM cost breakdown Summary'!I44 -> 0 | K92: ='[4]SM cost breakdown Summary'!K44 -> 0 | M92: ='[4]SM cost breakdown Summary'!M44 -> 0 | O92: ='[4]SM cost breakdown Summary'!O44 -> 7555 | Q92: ='[4]SM cost breakdown Summary'!Q44 -> -0.36 | S92: ='[4]SM cost breakdown Summary'!S44 -> 0 | U92: ='[4]SM cost breakdown Summary'!U44 -> 0 | AG92: =SUM(G92,I92,K92,M92,O92,Q92,S92,U92) -> 7554.64
C94: Total Other AMI Capital Costs Related to Minimum Functionality | G94: =SUM(G82,G84,G86,G88,G90,G92) -> 0 | I94: =SUM(I82,I84,I86,I88,I90,I92) -> 0 | K94: =SUM(K82,K84,K86,K88,K90,K92) -> 270305 | M94: =SUM(M82,M84,M86,M88,M90,M92) -> 212632 | O94: =SUM(O82,O84,O86,O88,O90,O92) -> 198332 | Q94: =SUM(Q82,Q84,Q86,Q88,Q90,Q92) -> 77367.747 | S94: =SUM(S82,S84,S86,S88,S90,S92) -> 11619.16 | U94: =SUM(U82,U84,U86,U88,U90,U92) -> 0 | W94: =SUM(W82,W84,W86,W88,W90,W92) -> 0 | Y94: =SUM(Y82,Y84,Y86,Y88,Y90,Y92) -> 0 | AA94: =SUM(AA82,AA84,AA86,AA88,AA90,AA92) -> 0 | AC94: =SUM(AC82,AC84,AC86,AC88,AC90,AC92) -> 0 | AE94: =SUM(AE82,AE84,AE86,AE88,AE90,AE92) -> 0 | AG94: =SUM(AG82,AG84,AG86,AG88,AG90,AG92) -> 770255.907
C96: Total Capital Costs Related to Minimum Functionality | G96: =SUM(G50,G60,G70,G77,G94) -> 0 | I96: =SUM(I50,I60,I70,I77,I94) -> 0 | K96: =SUM(K50,K60,K70,K77,K94) -> 606500 | M96: =SUM(M50,M60,M70,M77,M94) -> 616978 | O96: =SUM(O50,O60,O70,O77,O94) -> 3579697.04 | Q96: =SUM(Q50,Q60,Q70,Q77,Q94) -> 1044613.167 | S96: =SUM(S50,S60,S70,S77,S94) -> 116495.0655 | U96: =SUM(U50,U60,U70,U77,U94) -> 0 | W96: =SUM(W50,W60,W70,W77,W94) -> 0 | Y96: =SUM(Y50,Y60,Y70,Y77,Y94) -> 0 | AA96: =SUM(AA50,AA60,AA70,AA77,AA94) -> 0 | AC96: =SUM(AC50,AC60,AC70,AC77,AC94) -> 0 | AE96: =SUM(AE50,AE60,AE70,AE77,AE94) -> 0 | AG96: =SUM(AG50,AG60,AG70,AG77,AG94) -> 5964283.272
E98: =E79 -> Asset Type
C99: 1.6 CAPITAL COSTS BEYOND MINIMUM FUNCTIONALITY | G99: =G80 -> Audited Actual | I99: =I80 -> Audited Actual | K99: =K80 -> Audited Actual | M99: =M80 -> Audited Actual | O99: =O80 -> Audited Actual | Q99: =Q80 -> Audited Actual | S99: =S80 -> Forecast | U99: =U80 -> Forecast | W99: =W80 -> Forecast | Y99: =Y80 -> Forecast | AA99: =AA80 -> Forecast | AC99: =AC80 -> Forecast | AE99: =AE80 -> Forecast
C100: (Please provide a descriptive title and identify nature of beyond minimum functionality costs)
C101: 1.6.1 Costs related to technical capabilities in the smart meters or related communications infrastructure that exceed those specified in O.Reg 425/06 | E101: Computer Software | G101: ='[4]SM cost breakdown Summary'!G53 -> 0 | I101: ='[4]SM cost breakdown Summary'!I53 -> 0 | K101: ='[4]SM cost breakdown Summary'!K53 -> 0 | M101: ='[4]SM cost breakdown Summary'!M53 -> 0 | O101: ='[4]SM cost breakdown Summary'!O53 -> 0 | Q101: ='[4]SM cost breakdown Summary'!Q53 -> 0 | S101: ='[4]SM cost breakdown Summary'!S53 -> 0 | U101: ='[4]SM cost breakdown Summary'!U53 -> 0 | AG101: =SUM(G101,I101,K101,M101,O101,Q101,S101,U101) -> 0
C103: 1.6.2 Costs for deployment of smart meters to customers other than residential and small general service | E103: Applications Software | G103: ='[4]SM cost breakdown Summary'!G54 -> 0 | I103: ='[4]SM cost breakdown Summary'!I54 -> 0 | K103: ='[4]SM cost breakdown Summary'!K54 -> 0 | M103: ='[4]SM cost breakdown Summary'!M54 -> 0 | O103: ='[4]SM cost breakdown Summary'!O54 -> 0 | Q103: ='[4]SM cost breakdown Summary'!Q54 -> 0 | S103: ='[4]SM cost breakdown Summary'!S54 -> 0 | U103: ='[4]SM cost breakdown Summary'!U54 -> 0 | AG103: =SUM(G103,I103,K103,M103,O103,Q103,S103,U103) -> 0
C105: 1.6.3 Costs for TOU rate implementation, CIS system upgrades, web presentation, integration with the MDM/R, etc. | E105: Applications Software | G105: ='[4]SM cost breakdown Summary'!G55 -> 0 | I105: ='[4]SM cost breakdown Summary'!I55 -> 0 | K105: ='[4]SM cost breakdown Summary'!K55 -> 0 | M105: ='[4]SM cost breakdown Summary'!M55 -> 0 | O105: ='[4]SM cost breakdown Summary'!O55 -> 9377.66 | Q105: ='[4]SM cost breakdown Summary'!Q55 -> 189839.833 | S105: ='[4]SM cost breakdown Summary'!S55 -> 37869.9 | U105: ='[4]SM cost breakdown Summary'!U55 -> 0 | AG105: =SUM(G105,I105,K105,M105,O105,Q105,S105,U105) -> 237087.393
C107: Total Capital Costs Beyond Minimum Functionality | G107: =SUM(G101,G103,G105) -> 0 | I107: =SUM(I101,I103,I105) -> 0 | K107: =SUM(K101,K103,K105) -> 0 | M107: =SUM(M101,M103,M105) -> 0 | O107: =SUM(O101,O103,O105) -> 9377.66 | Q107: =SUM(Q101,Q103,Q105) -> 189839.833 | S107: =SUM(S101,S103,S105) -> 37869.9 | U107: =SUM(U101,U103,U105) -> 0 | W107: =SUM(W101,W103,W105) -> 0 | Y107: =SUM(Y101,Y103,Y105) -> 0 | AA107: =SUM(AA101,AA103,AA105) -> 0 | AC107: =SUM(AC101,AC103,AC105) -> 0 | AE107: =SUM(AE101,AE103,AE105) -> 0 | AG107: =SUM(AG101,AG103,AG105) -> 237087.393
C109: Total Smart Meter Capital Costs | G109: =G96+G107 -> 0 | I109: =I96+I107 -> 0 | K109: =K96+K107 -> 606500 | M109: =M96+M107 -> 616978 | O109: =O96+O107 -> 3589074.7 | Q109: =Q96+Q107 -> 1234453 | S109: =S96+S107 -> 154364.9655 | U109: =U96+U107 -> 0 | W109: =W96+W107 -> 0 | Y109: =Y96+Y107 -> 0 | AA109: =AA96+AA107 -> 0 | AC109: =AC96+AC107 -> 0 | AE109: =AE96+AE107 -> 0 | AG109: =AG96+AG107 -> 6201370.666
B111: 2 | C111: OM&A Expenses
C112: 2.1 ADVANCED METERING COMMUNICATION DEVICE (AMCD) | G112: =G99 -> Audited Actual | I112: =I99 -> Audited Actual | K112: =K99 -> Audited Actual | M112: =M99 -> Audited Actual | O112: =O99 -> Audited Actual | Q112: =Q99 -> Audited Actual | S112: =S99 -> Forecast | U112: =U99 -> Forecast | W112: =W99 -> Forecast | Y112: =Y99 -> Forecast | AA112: =AA99 -> Forecast | AC112: =AC99 -> Forecast | AE112: =AE99 -> Forecast
C114: 2.1.1 Maintenance (may include meter reverification costs, etc.) | G114: ='[4]SM cost breakdown Summary'!G66 -> 0 | I114: ='[4]SM cost breakdown Summary'!I66 -> 0 | K114: ='[4]SM cost breakdown Summary'!K66 -> 0 | M114: ='[4]SM cost breakdown Summary'!M66 -> 0 | O114: ='[4]SM cost breakdown Summary'!O66 -> 0 | Q114: ='[4]SM cost breakdown Summary'!Q66 -> 0 | S114: ='[4]SM cost breakdown Summary'!S66 -> 0 | U114: ='[4]SM cost breakdown Summary'!U66 -> 0 | AG114: =SUM(G114,I114,K114,M114,O114,Q114,S114,U114) -> 0
C116: 2.1.2 Other (please specifiy) | G116: ='[4]SM cost breakdown Summary'!G67 -> 0 | I116: ='[4]SM cost breakdown Summary'!I67 -> 0 | K116: ='[4]SM cost breakdown Summary'!K67 -> 0 | M116: ='[4]SM cost breakdown Summary'!M67 -> 0 | O116: ='[4]SM cost breakdown Summary'!O67 -> 24634 | Q116: ='[4]SM cost breakdown Summary'!Q67 -> 73049 | S116: ='[4]SM cost breakdown Summary'!S67 -> 69963 | U116: ='[4]SM cost breakdown Summary'!U67 -> 80000 | W116: =U116 -> 80000 | Y116: =W116 -> 80000 | AA116: =Y116 -> 80000 | AC116: =AA116 -> 80000 | AE116: =AC116 -> 80000 | AG116: =SUM(G116,I116,K116,M116,O116,Q116,S116,U116) -> 247646
C118: Total Incremental AMCD OM&A Costs | G118: =SUM(G114,G116) -> 0 | I118: =SUM(I114,I116) -> 0 | K118: =SUM(K114,K116) -> 0 | M118: =SUM(M114,M116) -> 0 | O118: =SUM(O114,O116) -> 24634 | Q118: =SUM(Q114,Q116) -> 73049 | S118: =SUM(S114,S116) -> 69963 | U118: =SUM(U114,U116) -> 80000 | W118: =SUM(W114,W116) -> 80000 | Y118: =SUM(Y114,Y116) -> 80000 | AA118: =SUM(AA114,AA116) -> 80000 | AC118: =SUM(AC114,AC116) -> 80000 | AE118: =SUM(AE114,AE116) -> 80000 | AG118: =SUM(AG114,AG116) -> 247646
C120: 2.2 ADVANCED METERING REGIONAL COLLECTOR (AMRC) (includes LAN)
C122: 2.2.1 Maintenance | G122: ='[4]SM cost breakdown Summary'!G71 -> 0 | I122: ='[4]SM cost breakdown Summary'!I71 -> 0 | K122: ='[4]SM cost breakdown Summary'!K71 -> 0 | M122: ='[4]SM cost breakdown Summary'!M71 -> 48582 | O122: ='[4]SM cost breakdown Summary'!O71 -> 50011 | Q122: ='[4]SM cost breakdown Summary'!Q71 -> 36077.01 | S122: ='[4]SM cost breakdown Summary'!S71 -> 59138.07 | U122: ='[4]SM cost breakdown Summary'!U71 -> 51000 | W122: =U122 -> 51000 | Y122: =W122 -> 51000 | AA122: =Y122 -> 51000 | AC122: =AA122 -> 51000 | AE122: =AC122 -> 51000 | AG122: =SUM(G122,I122,K122,M122,O122,Q122,S122,U122) -> 244808.08
C124: 2.2.2 Other (please specifiy) | G124: ='[4]SM cost breakdown Summary'!G72 -> 0 | I124: ='[4]SM cost breakdown Summary'!I72 -> 0 | K124: ='[4]SM cost breakdown Summary'!K72 -> 0 | M124: ='[4]SM cost breakdown Summary'!M72 -> 0 | O124: ='[4]SM cost breakdown Summary'!O72 -> 0 | Q124: ='[4]SM cost breakdown Summary'!Q72 -> 0 | S124: ='[4]SM cost breakdown Summary'!S72 -> 0 | U124: ='[4]SM cost breakdown Summary'!U72 -> 0 | AG124: =SUM(G124,I124,K124,M124,O124,Q124,S124,U124) -> 0
C126: Total Incremental AMRC OM&A Costs | G126: =SUM(G122,G124) -> 0 | I126: =SUM(I122,I124) -> 0 | K126: =SUM(K122,K124) -> 0 | M126: =SUM(M122,M124) -> 48582 | O126: =SUM(O122,O124) -> 50011 | Q126: =SUM(Q122,Q124) -> 36077.01 | S126: =SUM(S122,S124) -> 59138.07 | U126: =SUM(U122,U124) -> 51000 | W126: =SUM(W122,W124) -> 51000 | Y126: =SUM(Y122,Y124) -> 51000 | AA126: =SUM(AA122,AA124) -> 51000 | AC126: =SUM(AC122,AC124) -> 51000 | AE126: =SUM(AE122,AE124) -> 51000 | AG126: =SUM(AG122,AG124) -> 244808.08
C128: 2.3 ADVANCED METERING CONTROL COMPUTER (AMCC)
C130: 2.3.1 Hardware Maintenance (may include server support, etc.) | G130: ='[4]SM cost breakdown Summary'!G76 -> 0 | I130: ='[4]SM cost breakdown Summary'!I76 -> 0 | K130: ='[4]SM cost breakdown Summary'!K76 -> 0 | M130: ='[4]SM cost breakdown Summary'!M76 -> 0 | O130: ='[4]SM cost breakdown Summary'!O76 -> 0 | Q130: ='[4]SM cost breakdown Summary'!Q76 -> 0 | S130: ='[4]SM cost breakdown Summary'!S76 -> 0 | U130: ='[4]SM cost breakdown Summary'!U76 -> 0 | AG130: =SUM(G130,I130,K130,M130,O130,Q130,S130,U130) -> 0
C132: 2.3.2 Software Maintenance (may include maintenance support, etc.) | G132: ='[4]SM cost breakdown Summary'!G77 -> 0 | I132: ='[4]SM cost breakdown Summary'!I77 -> 0 | K132: ='[4]SM cost breakdown Summary'!K77 -> 0 | M132: ='[4]SM cost breakdown Summary'!M77 -> 0 | O132: ='[4]SM cost breakdown Summary'!O77 -> 0 | Q132: ='[4]SM cost breakdown Summary'!Q77 -> 0 | S132: ='[4]SM cost breakdown Summary'!S77 -> 0 | U132: ='[4]SM cost breakdown Summary'!U77 -> 0 | AG132: =SUM(G132,I132,K132,M132,O132,Q132,S132,U132) -> 0
C134: 2.3.2 Other (please specifiy) | G134: ='[4]SM cost breakdown Summary'!G78 -> 0 | I134: ='[4]SM cost breakdown Summary'!I78 -> 0 | K134: ='[4]SM cost breakdown Summary'!K78 -> 0 | M134: ='[4]SM cost breakdown Summary'!M78 -> 0 | O134: ='[4]SM cost breakdown Summary'!O78 -> 0 | Q134: ='[4]SM cost breakdown Summary'!Q78 -> 27215.99 | S134: ='[4]SM cost breakdown Summary'!S78 -> 44612.93 | U134: ='[4]SM cost breakdown Summary'!U78 -> 42000 | W134: =U134 -> 42000 | Y134: =W134 -> 42000 | AA134: =Y134 -> 42000 | AC134: =AA134 -> 42000 | AE134: =AC134 -> 42000 | AG134: =SUM(G134,I134,K134,M134,O134,Q134,S134,U134) -> 113828.92
C136: Total Incremental AMCC OM&A Costs | G136: =SUM(G130,G132,G134) -> 0 | I136: =SUM(I130,I132,I134) -> 0 | K136: =SUM(K130,K132,K134) -> 0 | M136: =SUM(M130,M132,M134) -> 0 | O136: =SUM(O130,O132,O134) -> 0 | Q136: =SUM(Q130,Q132,Q134) -> 27215.99 | S136: =SUM(S130,S132,S134) -> 44612.93 | U136: =SUM(U130,U132,U134) -> 42000 | W136: =SUM(W130,W132,W134) -> 42000 | Y136: =SUM(Y130,Y132,Y134) -> 42000 | AA136: =SUM(AA130,AA132,AA134) -> 42000 | AC136: =SUM(AC130,AC132,AC134) -> 42000 | AE136: =SUM(AE130,AE132,AE134) -> 42000 | AG136: =SUM(AG130,AG132,AG134) -> 113828.92
C138: 2.4 WIDE AREA NETWORK (WAN)
C140: 2.4.1 WAN Maintenance | G140: ='[4]SM cost breakdown Summary'!G82 -> 0 | I140: ='[4]SM cost breakdown Summary'!I82 -> 0 | K140: ='[4]SM cost breakdown Summary'!K82 -> 0 | M140: ='[4]SM cost breakdown Summary'!M82 -> 0 | O140: ='[4]SM cost breakdown Summary'!O82 -> 0 | Q140: ='[4]SM cost breakdown Summary'!Q82 -> 0 | S140: ='[4]SM cost breakdown Summary'!S82 -> 0 | U140: ='[4]SM cost breakdown Summary'!U82 -> 0 | AG140: =SUM(G140,I140,K140,M140,O140,Q140,S140,U140) -> 0
C142: 2.4.2 Other (please specifiy) | G142: ='[4]SM cost breakdown Summary'!G83 -> 0 | I142: ='[4]SM cost breakdown Summary'!I83 -> 0 | K142: ='[4]SM cost breakdown Summary'!K83 -> 0 | M142: ='[4]SM cost breakdown Summary'!M83 -> 0 | O142: ='[4]SM cost breakdown Summary'!O83 -> 0 | Q142: ='[4]SM cost breakdown Summary'!Q83 -> 0 | S142: ='[4]SM cost breakdown Summary'!S83 -> 0 | U142: ='[4]SM cost breakdown Summary'!U83 -> 0 | AG142: =SUM(G142,I142,K142,M142,O142,Q142,S142,U142) -> 0
C144: Total Incremental AMRC OM&A Costs | G144: =SUM(G140,G142) -> 0 | I144: =SUM(I140,I142) -> 0 | K144: =SUM(K140,K142) -> 0 | M144: =SUM(M140,M142) -> 0 | O144: =SUM(O140,O142) -> 0 | Q144: =SUM(Q140,Q142) -> 0 | S144: =SUM(S140,S142) -> 0 | U144: =SUM(U140,U142) -> 0 | W144: =SUM(W140,W142) -> 0 | Y144: =SUM(Y140,Y142) -> 0 | AA144: =SUM(AA140,AA142) -> 0 | AC144: =SUM(AC140,AC142) -> 0 | AE144: =SUM(AE140,AE142) -> 0 | AG144: =SUM(AG140,AG142) -> 0
C146: 2.5 OTHER AMI OM&A COSTS RELATED TO MINIMUM FUNCTIONALITY
C148: 2.5.1 Business Process Redesign | G148: ='[4]SM cost breakdown Summary'!G87 -> 0 | I148: ='[4]SM cost breakdown Summary'!I87 -> 0 | K148: ='[4]SM cost breakdown Summary'!K87 -> 0 | M148: ='[4]SM cost breakdown Summary'!M87 -> 0 | O148: ='[4]SM cost breakdown Summary'!O87 -> 0 | Q148: ='[4]SM cost breakdown Summary'!Q87 -> 0 | S148: ='[4]SM cost breakdown Summary'!S87 -> 0 | U148: ='[4]SM cost breakdown Summary'!U87 -> 0 | AG148: =SUM(G148,I148,K148,M148,O148,Q148,S148,U148) -> 0
C150: 2.5.2 Customer Communication (may include project communication, etc.) | G150: ='[4]SM cost breakdown Summary'!G88 -> 0 | I150: ='[4]SM cost breakdown Summary'!I88 -> 0 | K150: ='[4]SM cost breakdown Summary'!K88 -> 0 | M150: ='[4]SM cost breakdown Summary'!M88 -> 0 | O150: ='[4]SM cost breakdown Summary'!O88 -> 11066 | Q150: ='[4]SM cost breakdown Summary'!Q88 -> 0 | S150: ='[4]SM cost breakdown Summary'!S88 -> 0 | U150: ='[4]SM cost breakdown Summary'!U88 -> 0 | AG150: =SUM(G150,I150,K150,M150,O150,Q150,S150,U150) -> 11066
C152: 2.5.3 Program Management | G152: ='[4]SM cost breakdown Summary'!G89 -> 0 | I152: ='[4]SM cost breakdown Summary'!I89 -> 0 | K152: ='[4]SM cost breakdown Summary'!K89 -> 0 | M152: ='[4]SM cost breakdown Summary'!M89 -> 0 | O152: ='[4]SM cost breakdown Summary'!O89 -> 0 | Q152: ='[4]SM cost breakdown Summary'!Q89 -> 0 | S152: ='[4]SM cost breakdown Summary'!S89 -> 0 | U152: ='[4]SM cost breakdown Summary'!U89 -> 0 | AG152: =SUM(G152,I152,K152,M152,O152,Q152,S152,U152) -> 0
C154: 2.5.4 Change Management (may include training, etc.) | G154: ='[4]SM cost breakdown Summary'!G90 -> 0 | I154: ='[4]SM cost breakdown Summary'!I90 -> 0 | K154: ='[4]SM cost breakdown Summary'!K90 -> 0 | M154: ='[4]SM cost breakdown Summary'!M90 -> 0 | O154: ='[4]SM cost breakdown Summary'!O90 -> 0 | Q154: ='[4]SM cost breakdown Summary'!Q90 -> 0 | S154: ='[4]SM cost breakdown Summary'!S90 -> 0 | U154: ='[4]SM cost breakdown Summary'!U90 -> 0 | AG154: =SUM(G154,I154,K154,M154,O154,Q154,S154,U154) -> 0
C156: 2.5.5 Administration Costs | G156: ='[4]SM cost breakdown Summary'!G91 -> 0 | I156: ='[4]SM cost breakdown Summary'!I91 -> 0 | K156: ='[4]SM cost breakdown Summary'!K91 -> 0 | M156: ='[4]SM cost breakdown Summary'!M91 -> 0 | O156: ='[4]SM cost breakdown Summary'!O91 -> 0 | Q156: ='[4]SM cost breakdown Summary'!Q91 -> 0 | S156: ='[4]SM cost breakdown Summary'!S91 -> 0 | U156: ='[4]SM cost breakdown Summary'!U91 -> 0 | AG156: =SUM(G156,I156,K156,M156,O156,Q156,S156,U156) -> 0
C158: 2.5.6 Other AMI Expenses | G158: ='[4]SM cost breakdown Summary'!G92 -> 0 | I158: ='[4]SM cost breakdown Summary'!I92 -> 0 | K158: ='[4]SM cost breakdown Summary'!K92 -> 0 | M158: ='[4]SM cost breakdown Summary'!M92 -> 2260 | O158: ='[4]SM cost breakdown Summary'!O92 -> 12274 | Q158: ='[4]SM cost breakdown Summary'!Q92 -> 12759 | S158: ='[4]SM cost breakdown Summary'!S92 -> 6575.22 | U158: ='[4]SM cost breakdown Summary'!U92 -> 16000 | W158: =U158 -> 16000 | Y158: =W158 -> 16000 | AA158: =Y158 -> 16000 | AC158: =AA158 -> 16000 | AE158: =AC158 -> 16000 | AG158: =SUM(G158,I158,K158,M158,O158,Q158,S158,U158) -> 49868.22
C159: (please specify)
C160: Total Other AMI OM&A Costs Related to Minimum Functionality | G160: =SUM(G158,G156,G154,G152,G150,G148) -> 0 | I160: =SUM(I158,I156,I154,I152,I150,I148) -> 0 | K160: =SUM(K158,K156,K154,K152,K150,K148) -> 0 | M160: =SUM(M158,M156,M154,M152,M150,M148) -> 2260 | O160: =SUM(O158,O156,O154,O152,O150,O148) -> 23340 | Q160: =SUM(Q158,Q156,Q154,Q152,Q150,Q148) -> 12759 | S160: =SUM(S158,S156,S154,S152,S150,S148) -> 6575.22 | U160: =SUM(U158,U156,U154,U152,U150,U148) -> 16000 | W160: =SUM(W158,W156,W154,W152,W150,W148) -> 16000 | Y160: =SUM(Y158,Y156,Y154,Y152,Y150,Y148) -> 16000 | AA160: =SUM(AA158,AA156,AA154,AA152,AA150,AA148) -> 16000 | AC160: =SUM(AC158,AC156,AC154,AC152,AC150,AC148) -> 16000 | AE160: =SUM(AE158,AE156,AE154,AE152,AE150,AE148) -> 16000 | AG160: =SUM(AG154,AG156,AG158,AG152,AG150,AG148) -> 60934.22
C162: TOTAL OM&A COSTS RELATED TO MINIMUM FUNCTIONALITY | G162: =SUM(G118,G126,G136,G144,G160) -> 0 | I162: =SUM(I118,I126,I136,I144,I160) -> 0 | K162: =SUM(K118,K126,K136,K144,K160) -> 0 | M162: =SUM(M118,M126,M136,M144,M160) -> 50842 | O162: =SUM(O118,O126,O136,O144,O160) -> 97985 | Q162: =SUM(Q118,Q126,Q136,Q144,Q160) -> 149101 | S162: =SUM(S118,S126,S136,S144,S160) -> 180289.22 | U162: =SUM(U118,U126,U136,U144,U160) -> 189000 | W162: =SUM(W118,W126,W136,W144,W160) -> 189000 | Y162: =SUM(Y118,Y126,Y136,Y144,Y160) -> 189000 | AA162: =SUM(AA118,AA126,AA136,AA144,AA160) -> 189000 | AC162: =SUM(AC118,AC126,AC136,AC144,AC160) -> 189000 | AE162: =SUM(AE118,AE126,AE136,AE144,AE160) -> 189000 | AG162: =SUM(AG118,AG126,AG136,AG144,AG160) -> 667217.22
C164: 2.6 OM&A COSTS RELATED TO BEYOND MINIMUM FUNCTIONALITY | G164: =G112 -> Audited Actual | I164: =I112 -> Audited Actual | K164: =K112 -> Audited Actual | M164: =M112 -> Audited Actual | O164: =O112 -> Audited Actual | Q164: =Q112 -> Audited Actual
C165: (Please provide a descriptive title and identify nature of beyond minimum functionality costs)
C166: 2.6.1 Costs related to technical capabilities in the smart meters or related communications infrastructure that exceed those specified in O.Reg 425/06 | G166: ='[4]SM cost breakdown Summary'!G101 -> 0 | I166: ='[4]SM cost breakdown Summary'!I101 -> 0 | K166: ='[4]SM cost breakdown Summary'!K101 -> 0 | M166: ='[4]SM cost breakdown Summary'!M101 -> 0 | O166: ='[4]SM cost breakdown Summary'!O101 -> 0 | Q166: ='[4]SM cost breakdown Summary'!Q101 -> 0 | S166: ='[4]SM cost breakdown Summary'!S101 -> 0 | U166: ='[4]SM cost breakdown Summary'!U101 -> 0 | AG166: =SUM(G166,I166,K166,M166,O166,Q166,S166,U166) -> 0
C168: 2.6.2 Costs for deployment of smart meters to customers other than residential and small general service | G168: ='[4]SM cost breakdown Summary'!G102 -> 0 | I168: ='[4]SM cost breakdown Summary'!I102 -> 0 | K168: ='[4]SM cost breakdown Summary'!K102 -> 0 | M168: ='[4]SM cost breakdown Summary'!M102 -> 0 | O168: ='[4]SM cost breakdown Summary'!O102 -> 0 | Q168: ='[4]SM cost breakdown Summary'!Q102 -> 0 | S168: ='[4]SM cost breakdown Summary'!S102 -> 0 | U168: ='[4]SM cost breakdown Summary'!U102 -> 0 | AG168: =SUM(G168,I168,K168,M168,O168,Q168,S168,U168) -> 0
C170: 2.6.3 Costs for TOU rate implementation, CIS system upgrades, web presentation, integration with the MDM/R, etc. | G170: ='[4]SM cost breakdown Summary'!G103 -> 0 | I170: ='[4]SM cost breakdown Summary'!I103 -> 0 | K170: ='[4]SM cost breakdown Summary'!K103 -> 0 | M170: ='[4]SM cost breakdown Summary'!M103 -> 0 | O170: ='[4]SM cost breakdown Summary'!O103 -> 0 | Q170: ='[4]SM cost breakdown Summary'!Q103 -> 73169 | S170: ='[4]SM cost breakdown Summary'!S103 -> 88808 | U170: ='[4]SM cost breakdown Summary'!U103 -> 122000 | AG170: =SUM(G170,I170,K170,M170,O170,Q170,S170,U170) -> 283977
C172: Total OM&A Costs Beyond Minimum Functionality | G172: =SUM(G166,G168,G170) -> 0 | I172: =SUM(I166,I168,I170) -> 0 | K172: =SUM(K166,K168,K170) -> 0 | M172: =SUM(M166,M168,M170) -> 0 | O172: =SUM(O166,O168,O170) -> 0 | Q172: =SUM(Q166,Q168,Q170) -> 73169 | S172: =SUM(S166,S168,S170) -> 88808 | U172: =SUM(U166,U168,U170) -> 122000 | W172: =SUM(W166,W168,W170) -> 0 | Y172: =SUM(Y166,Y168,Y170) -> 0 | AA172: =SUM(AA166,AA168,AA170) -> 0 | AC172: =SUM(AC166,AC168,AC170) -> 0 | AE172: =SUM(AE166,AE168,AE170) -> 0 | AG172: =SUM(AG166,AG168,AG170) -> 283977
C174: Total Smart Meter OM&A Costs | G174: =G162+G172 -> 0 | I174: =I162+I172 -> 0 | K174: =K162+K172 -> 0 | M174: =M162+M172 -> 50842 | O174: =O162+O172 -> 97985 | Q174: =Q162+Q172 -> 222270 | S174: =S162+S172 -> 269097.22 | U174: =U162+U172 -> 311000 | W174: =W162+W172 -> 189000 | Y174: =Y162+Y172 -> 189000 | AA174: =AA162+AA172 -> 189000 | AC174: =AC162+AC172 -> 189000 | AE174: =AE162+AE172 -> 189000 | AG174: =AG162+AG172 -> 951194.22
B177: 3 | C177: Aggregate Smart Meter Costs by Category
C179: 3.1 | D179: Capital
C181: 3.1.1 | D181: Smart Meter | G181: =SUMIF($E$42:$E$105,$D181,G$42:G$105) -> 0 | I181: =SUMIF($E$42:$E$105,$D181,I$42:I$105) -> 0 | K181: =SUMIF($E$42:$E$105,$D181,K$42:K$105) -> 0 | M181: =SUMIF($E$42:$E$105,$D181,M$42:M$105) -> 373104 | O181: =SUMIF($E$42:$E$105,$D181,O$42:O$105) -> 3208721 | Q181: =SUMIF($E$42:$E$105,$D181,Q$42:Q$105) -> 967245 | S181: =SUMIF($E$42:$E$105,$D181,S$42:S$105) -> 104875.9055 | U181: =SUMIF($E$42:$E$105,$D181,U$42:U$105) -> 0 | W181: =SUMIF($E$42:$E$105,$D181,W$42:W$105) -> 0 | Y181: =SUMIF($E$42:$E$105,$D181,Y$42:Y$105) -> 0 | AA181: =SUMIF($E$42:$E$105,$D181,AA$42:AA$105) -> 0 | AC181: =SUMIF($E$42:$E$105,$D181,AC$42:AC$105) -> 0 | AE181: =SUMIF($E$42:$E$105,$D181,AE$42:AE$105) -> 0 | AG181: =SUM(G181:U181) -> 4653945.906
C183: 3.1.2 | D183: Computer Hardware | G183: =SUMIF($E$42:$E$105,$D183,G$42:G$105) -> 0 | I183: =SUMIF($E$42:$E$105,$D183,I$42:I$105) -> 0 | K183: =SUMIF($E$42:$E$105,$D183,K$42:K$105) -> 0 | M183: =SUMIF($E$42:$E$105,$D183,M$42:M$105) -> 11811 | O183: =SUMIF($E$42:$E$105,$D183,O$42:O$105) -> 144346.7 | Q183: =SUMIF($E$42:$E$105,$D183,Q$42:Q$105) -> 0 | S183: =SUMIF($E$42:$E$105,$D183,S$42:S$105) -> 0 | U183: =SUMIF($E$42:$E$105,$D183,U$42:U$105) -> 0 | W183: =SUMIF($E$42:$E$105,$D183,W$42:W$105) -> 0 | Y183: =SUMIF($E$42:$E$105,$D183,Y$42:Y$105) -> 0 | AA183: =SUMIF($E$42:$E$105,$D183,AA$42:AA$105) -> 0 | AC183: =SUMIF($E$42:$E$105,$D183,AC$42:AC$105) -> 0 | AE183: =SUMIF($E$42:$E$105,$D183,AE$42:AE$105) -> 0 | AG183: =SUM(G183:U183) -> 156157.7
C185: 3.1.3 | D185: Computer Software | G185: =SUMIF($E$42:$E$105,$D185,G$42:G$105) -> 0 | I185: =SUMIF($E$42:$E$105,$D185,I$42:I$105) -> 0 | K185: =SUMIF($E$42:$E$105,$D185,K$42:K$105) -> 294335 | M185: =SUMIF($E$42:$E$105,$D185,M$42:M$105) -> 157287 | O185: =SUMIF($E$42:$E$105,$D185,O$42:O$105) -> 160203.34 | Q185: =SUMIF($E$42:$E$105,$D185,Q$42:Q$105) -> 14103.527 | S185: =SUMIF($E$42:$E$105,$D185,S$42:S$105) -> 0 | U185: =SUMIF($E$42:$E$105,$D185,U$42:U$105) -> 0 | W185: =SUMIF($E$42:$E$105,$D185,W$42:W$105) -> 0 | Y185: =SUMIF($E$42:$E$105,$D185,Y$42:Y$105) -> 0 | AA185: =SUMIF($E$42:$E$105,$D185,AA$42:AA$105) -> 0 | AC185: =SUMIF($E$42:$E$105,$D185,AC$42:AC$105) -> 0 | AE185: =SUMIF($E$42:$E$105,$D185,AE$42:AE$105) -> 0 | AG185: =SUM(G185:U185) -> 625928.867
C187: 3.1.4 | D187: Tools & Equipment | G187: =SUMIF($E$42:$E$105,$D187,G$42:G$105) -> 0 | I187: =SUMIF($E$42:$E$105,$D187,I$42:I$105) -> 0 | K187: =SUMIF($E$42:$E$105,$D187,K$42:K$105) -> 0 | M187: =SUMIF($E$42:$E$105,$D187,M$42:M$105) -> 0 | O187: =SUMIF($E$42:$E$105,$D187,O$42:O$105) -> 0 | Q187: =SUMIF($E$42:$E$105,$D187,Q$42:Q$105) -> 0 | S187: =SUMIF($E$42:$E$105,$D187,S$42:S$105) -> 0 | U187: =SUMIF($E$42:$E$105,$D187,U$42:U$105) -> 0 | W187: =SUMIF($E$42:$E$105,$D187,W$42:W$105) -> 0 | Y187: =SUMIF($E$42:$E$105,$D187,Y$42:Y$105) -> 0 | AA187: =SUMIF($E$42:$E$105,$D187,AA$42:AA$105) -> 0 | AC187: =SUMIF($E$42:$E$105,$D187,AC$42:AC$105) -> 0 | AE187: =SUMIF($E$42:$E$105,$D187,AE$42:AE$105) -> 0 | AG187: =SUM(G187:U187) -> 0
C189: 3.1.5 | D189: Other Equipment | G189: =SUMIF($E$42:$E$105,$D189,G$42:G$105) -> 0 | I189: =SUMIF($E$42:$E$105,$D189,I$42:I$105) -> 0 | K189: =SUMIF($E$42:$E$105,$D189,K$42:K$105) -> 312165 | M189: =SUMIF($E$42:$E$105,$D189,M$42:M$105) -> 74776 | O189: =SUMIF($E$42:$E$105,$D189,O$42:O$105) -> 66426 | Q189: =SUMIF($E$42:$E$105,$D189,Q$42:Q$105) -> 63264.64 | S189: =SUMIF($E$42:$E$105,$D189,S$42:S$105) -> 11619.16 | U189: =SUMIF($E$42:$E$105,$D189,U$42:U$105) -> 0 | W189: =SUMIF($E$42:$E$105,$D189,W$42:W$105) -> 0 | Y189: =SUMIF($E$42:$E$105,$D189,Y$42:Y$105) -> 0 | AA189: =SUMIF($E$42:$E$105,$D189,AA$42:AA$105) -> 0 | AC189: =SUMIF($E$42:$E$105,$D189,AC$42:AC$105) -> 0 | AE189: =SUMIF($E$42:$E$105,$D189,AE$42:AE$105) -> 0 | AG189: =SUM(G189:U189) -> 528250.8
C191: 3.1.6 | D191: Applications Software | G191: =SUMIF($E$42:$E$105,$D191,G$42:G$105) -> 0 | I191: =SUMIF($E$42:$E$105,$D191,I$42:I$105) -> 0 | K191: =SUMIF($E$42:$E$105,$D191,K$42:K$105) -> 0 | M191: =SUMIF($E$42:$E$105,$D191,M$42:M$105) -> 0 | O191: =SUMIF($E$42:$E$105,$D191,O$42:O$105) -> 9377.66 | Q191: =SUMIF($E$42:$E$105,$D191,Q$42:Q$105) -> 189839.833 | S191: =SUMIF($E$42:$E$105,$D191,S$42:S$105) -> 37869.9 | U191: =SUMIF($E$42:$E$105,$D191,U$42:U$105) -> 0 | W191: =SUMIF($E$42:$E$105,$D191,W$42:W$105) -> 0 | Y191: =SUMIF($E$42:$E$105,$D191,Y$42:Y$105) -> 0 | AA191: =SUMIF($E$42:$E$105,$D191,AA$42:AA$105) -> 0 | AC191: =SUMIF($E$42:$E$105,$D191,AC$42:AC$105) -> 0 | AE191: =SUMIF($E$42:$E$105,$D191,AE$42:AE$105) -> 0 | AG191: =SUM(G191:U191) -> 237087.393
C193: 3.1.7 | D193: Total Capital Costs | G193: =SUM(G181:G191) -> 0 | I193: =SUM(I181:I191) -> 0 | K193: =SUM(K181:K191) -> 606500 | M193: =SUM(M181:M191) -> 616978 | O193: =SUM(O181:O191) -> 3589074.7 | Q193: =SUM(Q181:Q191) -> 1234453 | S193: =SUM(S181:S191) -> 154364.9655 | U193: =SUM(U181:U191) -> 0 | W193: =SUM(W181:W191) -> 0 | Y193: =SUM(Y181:Y191) -> 0 | AA193: =SUM(AA181:AA191) -> 0 | AC193: =SUM(AC181:AC191) -> 0 | AE193: =SUM(AE181:AE191) -> 0 | AG193: =SUM(AG181:AG191) -> 6201370.666
G194: =IF(G193=G109,"","Error") ->  | I194: =IF(I193=I109,"","Error") ->  | K194: =IF(K193=K109,"","Error") ->  | M194: =IF(M193=M109,"","Error") ->  | O194: =IF(O193=O109,"","Error") ->  | Q194: =IF(Q193=Q109,"","Error") ->  | S194: =IF(S193=S109,"","Error") ->  | U194: =IF(U193=U109,"","Error") ->  | W194: =IF(W193=W109,"","Error") ->  | Y194: =IF(Y193=Y109,"","Error") ->  | AA194: =IF(AA193=AA109,"","Error") ->  | AC194: =IF(AC193=AC109,"","Error") ->  | AE194: =IF(AE193=AE109,"","Error") ->  | AG194: =IF(AG193=AG109,"","Error") -> 
C195: 3.2 | D195: OM&A Costs
C197: 3.2.1 | D197: Total OM&A Costs | G197: =G174 -> 0 | I197: =I174 -> 0 | K197: =K174 -> 0 | M197: =M174 -> 50842 | O197: =O174 -> 97985 | Q197: =Q174 -> 222270 | S197: =S174 -> 269097.22 | U197: =U174 -> 311000 | W197: =W174 -> 189000 | Y197: =Y174 -> 189000 | AA197: =AA174 -> 189000 | AC197: =AC174 -> 189000 | AE197: =AE174 -> 189000 | AG197: =AG174 -> 951194.22

Sheet 3. Cost_of_Service_Parameters
G19: 2006 | I19: 2007 | K19: 2008 | M19: 2009 | O19: 2010 | Q19: 2011 | S19: 2012 | U19: 2013 | W19: 2014 | Y19: 2015 | AA19: 2016 | AC19: 2017 | AE19: 2018
B20: Cost of Capital
C21: Capital Structure1
D22: Deemed Short-term Debt Capitalization | Q22: 0.04 | S22: 0.04 | U22: 0.04 | W22: 0.04 | Y22: 0.04 | AA22: 0.04 | AC22: 0.04 | AE22: 0.04
D23: Deemed Long-term Debt Capitalization | G23: 0.5 | I23: =G23 -> 0.5 | K23: =IF(I23=50%,53.3%-K22,IF(I23=55%,57.5%-K22,IF(I23=65%,62.5%-K22,60%-K22))) -> 0.533 | M23: =IF(I23=50%,56.7%-M22,60%-M22) -> 0.567 | O23: 0.567 | Q23: 0.56 | S23: =Q23-(S22-Q22) -> 0.56 | U23: =S23-(U22-S22) -> 0.56 | W23: =U23-(W22-U22) -> 0.56 | Y23: =W23-(Y22-W22) -> 0.56 | AA23: =Y23-(AA22-Y22) -> 0.56 | AC23: =AA23-(AC22-AA22) -> 0.56 | AE23: =AC23-(AE22-AC22) -> 0.56
D24: Deemed Equity Capitalization | G24: =100%-G23-G25 -> 0.5 | I24: =100%-I23-I25-I22 -> 0.5 | K24: =100%-K23-K25-K22 -> 0.467 | M24: =100%-M23-M25-M22 -> 0.433 | O24: =100%-O23-O25-O22 -> 0.433 | Q24: =100%-Q23-Q25-Q22 -> 0.4 | S24: =100%-S23-S25-S22 -> 0.4 | U24: =100%-U23-U25-U22 -> 0.4 | W24: =100%-W23-W25-W22 -> 0.4 | Y24: =100%-Y23-Y25-Y22 -> 0.4 | AA24: =100%-AA23-AA25-AA22 -> 0.4 | AC24: =100%-AC23-AC25-AC22 -> 0.4 | AE24: =100%-AE23-AE25-AE22 -> 0.4
D25: Preferred Shares
C26: Total | G26: =SUM(G22:G25) -> 1 | I26: =SUM(I22:I25) -> 1 | K26: =SUM(K22:K25) -> 1 | M26: =SUM(M22:M25) -> 1 | O26: =SUM(O22:O25) -> 1 | Q26: =SUM(Q22:Q25) -> 1 | S26: =SUM(S22:S25) -> 1 | U26: =SUM(U22:U25) -> 1 | W26: =SUM(W22:W25) -> 1 | Y26: =SUM(Y22:Y25) -> 1 | AA26: =SUM(AA22:AA25) -> 1 | AC26: =SUM(AC22:AC25) -> 1 | AE26: =SUM(AE22:AE25) -> 1
C28: Cost of Capital Parameters
D29: Deemed Short-term Debt Rate | Q29: 0.0243 | S29: 0.0243 | U29: 0.0243 | W29: 0.0243 | Y29: 0.0243 | AA29: 0.0243 | AC29: 0.0243 | AE29: 0.0243
D30: Long-term Debt Rate (actual/embedded/deemed)2 | G30: 0.0725 | I30: =G30 -> 0.0725 | K30: 0.0725 | M30: 0.0725 | O30: 0.0725 | Q30: 0.0548 | S30: 0.0548 | U30: 0.0548 | W30: 0.0548 | Y30: 0.0548 | AA30: 0.0548 | AC30: 0.0548 | AE30: 0.0548
D31: Target Return on Equity (ROE) | G31: 0.09 | I31: =G31 -> 0.09 | K31: 0.09 | M31: 0.09 | O31: 0.09 | Q31: 0.0966 | S31: 0.0966 | U31: 0.0966 | W31: 0.0966 | Y31: 0.0966 | AA31: 0.0966 | AC31: 0.0966 | AE31: 0.0966
D32: Return on Preferred Shares
C33: WACC | G33: =SUMPRODUCT(G22:G25,G29:G32) -> 0.08125 | I33: =SUMPRODUCT(I22:I25,I29:I32) -> 0.08125 | K33: =SUMPRODUCT(K22:K25,K29:K32) -> 0.0806725 | M33: =SUMPRODUCT(M22:M25,M29:M32) -> 0.0800775 | O33: =SUMPRODUCT(O22:O25,O29:O32) -> 0.0800775 | Q33: =SUMPRODUCT(Q22:Q25,Q29:Q32) -> 0.0703 | S33: =SUMPRODUCT(S22:S25,S29:S32) -> 0.0703 | U33: =SUMPRODUCT(U22:U25,U29:U32) -> 0.0703 | W33: =SUMPRODUCT(W22:W25,W29:W32) -> 0.0703 | Y33: =SUMPRODUCT(Y22:Y25,Y29:Y32) -> 0.0703 | AA33: =SUMPRODUCT(AA22:AA25,AA29:AA32) -> 0.0703 | AC33: =SUMPRODUCT(AC22:AC25,AC29:AC32) -> 0.0703 | AE33: =SUMPRODUCT(AE22:AE25,AE29:AE32) -> 0.0703
B35: Working Capital Allowance
C36: Working Capital Allowance Rate | G36: 0.15 | I36: 0.15 | K36: 0.15 | M36: 0.15 | O36: 0.15 | Q36: 0.15 | S36: 0.15 | U36: 0.15 | W36: 0.15 | Y36: 0.15 | AA36: 0.15 | AC36: 0.15 | AE36: 0.15
C37: (% of the sum of Cost of Power + controllable expenses)
B39: Taxes/PILs
C40: Aggregate Corporate Income Tax Rate | G40: 0.3612 | I40: 0.3612 | K40: 0.335 | M40: 0.33 | O40: 0.31 | Q40: 0.2825 | S40: 0.265 | U40: 0.265 | W40: 0.265 | Y40: 0.265 | AA40: 0.265 | AC40: 0.265 | AE40: 0.265
C41: Capital Tax (until July 1st, 2010) | G41: 0.003 | I41: 0.00225 | K41: 0.00225 | M41: 0.00225 | O41: 0.00075 | Q41: 0 | S41: 0 | U41: 0 | W41: 0 | Y41: 0 | AA41: 0 | AC41: 0 | AE41: 0
B43: Depreciation Rates
B44: (expressed as expected useful life in years)
C45: Smart Meters - years | G45: 15 | I45: 15 | K45: 15 | M45: 15 | O45: 15 | Q45: 15 | S45: 15 | U45: 15 | W45: 15 | Y45: 15 | AA45: 15 | AC45: 15 | AE45: 15
C46: - rate (%) | G46: =IF(G45=0,0,1/G45) -> 0.06666666667 | I46: =IF(I45=0,0,1/I45) -> 0.06666666667 | K46: =IF(K45=0,0,1/K45) -> 0.06666666667 | M46: =IF(M45=0,0,1/M45) -> 0.06666666667 | O46: =IF(O45=0,0,1/O45) -> 0.06666666667 | Q46: =IF(Q45=0,0,1/Q45) -> 0.06666666667 | S46: =IF(S45=0,0,1/S45) -> 0.06666666667 | U46: =IF(U45=0,0,1/U45) -> 0.06666666667 | W46: =IF(W45=0,0,1/W45) -> 0.06666666667 | Y46: =IF(Y45=0,0,1/Y45) -> 0.06666666667 | AA46: =IF(AA45=0,0,1/AA45) -> 0.06666666667 | AC46: =IF(AC45=0,0,1/AC45) -> 0.06666666667 | AE46: =IF(AE45=0,0,1/AE45) -> 0.06666666667
C47: Computer Hardware - years | G47: 5 | I47: 5 | K47: 5 | M47: 5 | O47: 5 | Q47: 5 | S47: 5 | U47: 5 | W47: 5 | Y47: 5 | AA47: 5 | AC47: 5 | AE47: 5
C48: - rate (%) | G48: =IF(G47=0,0,1/G47) -> 0.2 | I48: =IF(I47=0,0,1/I47) -> 0.2 | K48: =IF(K47=0,0,1/K47) -> 0.2 | M48: =IF(M47=0,0,1/M47) -> 0.2 | O48: =IF(O47=0,0,1/O47) -> 0.2 | Q48: =IF(Q47=0,0,1/Q47) -> 0.2 | S48: =IF(S47=0,0,1/S47) -> 0.2 | U48: =IF(U47=0,0,1/U47) -> 0.2 | W48: =IF(W47=0,0,1/W47) -> 0.2 | Y48: =IF(Y47=0,0,1/Y47) -> 0.2 | AA48: =IF(AA47=0,0,1/AA47) -> 0.2 | AC48: =IF(AC47=0,0,1/AC47) -> 0.2 | AE48: =IF(AE47=0,0,1/AE47) -> 0.2
C49: Computer Software - years | G49: 5 | I49: 5 | K49: 5 | M49: 5 | O49: 5 | Q49: 5 | S49: 5 | U49: 5 | W49: 5 | Y49: 5 | AA49: 5 | AC49: 5 | AE49: 5
C50: - rate (%) | G50: =IF(G49=0,0,1/G49) -> 0.2 | I50: =IF(I49=0,0,1/I49) -> 0.2 | K50: =IF(K49=0,0,1/K49) -> 0.2 | M50: =IF(M49=0,0,1/M49) -> 0.2 | O50: =IF(O49=0,0,1/O49) -> 0.2 | Q50: =IF(Q49=0,0,1/Q49) -> 0.2 | S50: =IF(S49=0,0,1/S49) -> 0.2 | U50: =IF(U49=0,0,1/U49) -> 0.2 | W50: =IF(W49=0,0,1/W49) -> 0.2 | Y50: =IF(Y49=0,0,1/Y49) -> 0.2 | AA50: =IF(AA49=0,0,1/AA49) -> 0.2 | AC50: =IF(AC49=0,0,1/AC49) -> 0.2 | AE50: =IF(AE49=0,0,1/AE49) -> 0.2
C51: Tools & Equipment - years | G51: 10 | I51: 10 | K51: 10 | M51: 10 | O51: 10 | Q51: 10 | S51: 10 | U51: 10 | W51: 10 | Y51: 10 | AA51: 10 | AC51: 10 | AE51: 10
C52: - rate (%) | G52: =IF(G51=0,0,1/G51) -> 0.1 | I52: =IF(I51=0,0,1/I51) -> 0.1 | K52: =IF(K51=0,0,1/K51) -> 0.1 | M52: =IF(M51=0,0,1/M51) -> 0.1 | O52: =IF(O51=0,0,1/O51) -> 0.1 | Q52: =IF(Q51=0,0,1/Q51) -> 0.1 | S52: =IF(S51=0,0,1/S51) -> 0.1 | U52: =IF(U51=0,0,1/U51) -> 0.1 | W52: =IF(W51=0,0,1/W51) -> 0.1 | Y52: =IF(Y51=0,0,1/Y51) -> 0.1 | AA52: =IF(AA51=0,0,1/AA51) -> 0.1 | AC52: =IF(AC51=0,0,1/AC51) -> 0.1 | AE52: =IF(AE51=0,0,1/AE51) -> 0.1
C53: Other Equipment - years | G53: 15 | I53: 15 | K53: 15 | M53: 15 | O53: 15 | Q53: 15 | S53: 15 | U53: 15 | W53: 15 | Y53: 15 | AA53: 15 | AC53: 15 | AE53: 15
C54: - rate (%) | G54: =IF(G53=0,0,1/G53) -> 0.06666666667 | I54: =IF(I53=0,0,1/I53) -> 0.06666666667 | K54: =IF(K53=0,0,1/K53) -> 0.06666666667 | M54: =IF(M53=0,0,1/M53) -> 0.06666666667 | O54: =IF(O53=0,0,1/O53) -> 0.06666666667 | Q54: =IF(Q53=0,0,1/Q53) -> 0.06666666667 | S54: =IF(S53=0,0,1/S53) -> 0.06666666667 | U54: =IF(U53=0,0,1/U53) -> 0.06666666667 | W54: =IF(W53=0,0,1/W53) -> 0.06666666667 | Y54: =IF(Y53=0,0,1/Y53) -> 0.06666666667 | AA54: =IF(AA53=0,0,1/AA53) -> 0.06666666667 | AC54: =IF(AC53=0,0,1/AC53) -> 0.06666666667 | AE54: =IF(AE53=0,0,1/AE53) -> 0.06666666667
B56: CCA Rates
C57: Smart Meters - CCA Class | G57: 8 | I57: 8 | K57: 8 | M57: 8 | O57: 8 | Q57: 8 | S57: 8 | U57: 8 | W57: 8 | Y57: 8 | AA57: 8 | AC57: 8 | AE57: 8
C58: Smart Meters - CCA Rate | G58: 0.2 | I58: 0.2 | K58: 0.2 | M58: 0.2 | O58: 0.2 | Q58: 0.2 | S58: 0.2 | U58: 0.2 | W58: 0.2 | Y58: 0.2 | AA58: 0.2 | AC58: 0.2 | AE58: 0.2
C60: Computer Equipment - CCA Class | G60: 50 | I60: 50 | K60: 50 | M60: 50 | O60: 50 | Q60: 50 | S60: 50 | U60: 50 | W60: 50 | Y60: 50 | AA60: 50 | AC60: 50 | AE60: 50
C61: Computer Equipment - CCA Rate | G61: 0.55 | I61: 0.55 | K61: 0.55 | M61: 0.55 | O61: 0.55 | Q61: 0.55 | S61: 0.55 | U61: 0.55 | W61: 0.55 | Y61: 0.55 | AA61: 0.55 | AC61: 0.55 | AE61: 0.55
C63: General Equipment - CCA Class | G63: 8 | I63: 8 | K63: 8 | M63: 8 | O63: 8 | Q63: 8 | S63: 8 | U63: 8 | W63: 8 | Y63: 8 | AA63: 8 | AC63: 8 | AE63: 8
C64: General Equipment - CCA Rate | G64: 0.2 | I64: 0.2 | K64: 0.2 | M64: 0.2 | O64: 0.2 | Q64: 0.2 | S64: 0.2 | U64: 0.2 | W64: 0.2 | Y64: 0.2 | AA64: 0.2 | AC64: 0.2 | AE64: 0.2
C66: Applications Software - CCA Class | G66: 12 | I66: 12 | K66: 12 | M66: 12 | O66: 12 | Q66: 12 | S66: 12 | U66: 12 | W66: 12 | Y66: 12 | AA66: 12 | AC66: 12 | AE66: 12
C67: Applications Software - CCA Rate | G67: 1 | I67: 1 | K67: 1 | M67: 1 | O67: 1 | Q67: 1 | S67: 1 | U67: 1 | W67: 1 | Y67: 1 | AA67: 1 | AC67: 1 | AE67: 1
B69: Assumptions
B70: 1 | C70: Planned smart meter installations occur evenly throughout the year.
B71: 2 | C71: Fiscal calendar year (January 1 to December 31) used.
B72: 3 | C72: Amortization is done on a striaght line basis and has the "half-year" rule applied.

Sheet 4. SM_Assets_and_Rate_Base
G18: 2006 | I18: 2007 | K18: 2008 | M18: 2009 | O18: 2010 | Q18: 2011 | S18: 2012 | U18: 2013 | W18: =U18+1 -> 2014 | Y18: =W18+1 -> 2015 | AA18: =Y18+1 -> 2016 | AC18: =AA18+1 -> 2017 | AE18: =AC18+1 -> 2018
B19: Net Fixed Assets - Smart Meters
C21: Gross Book Value
D22: Opening Balance | I22: =G25 -> 0 | K22: =I25 -> 0 | M22: =K25 -> 0 | O22: =M25 -> 373104 | Q22: =O25 -> 3581825 | S22: =Q25 -> 4549070 | U22: =S25 -> 4653945.906 | W22: =U25 -> 4653945.906 | Y22: =W25 -> 4653945.906 | AA22: =Y25 -> 4653945.906 | AC22: =AA25 -> 4653945.906 | AE22: =AC25 -> 4653945.906
D23: Capital Additions during year (from Smart Meter Costs) | G23: ='2. Smart_Meter_Costs'!G181 -> 0 | I23: ='2. Smart_Meter_Costs'!I181 -> 0 | K23: ='2. Smart_Meter_Costs'!K181 -> 0 | M23: ='2. Smart_Meter_Costs'!M181 -> 373104 | O23: ='2. Smart_Meter_Costs'!O181 -> 3208721 | Q23: ='2. Smart_Meter_Costs'!Q181 -> 967245 | S23: ='2. Smart_Meter_Costs'!S181 -> 104875.9055 | U23: ='2. Smart_Meter_Costs'!U181 -> 0 | W23: ='2. Smart_Meter_Costs'!W181 -> 0 | Y23: ='2. Smart_Meter_Costs'!Y181 -> 0 | AA23: ='2. Smart_Meter_Costs'!AA181 -> 0 | AC23: ='2. Smart_Meter_Costs'!AC181 -> 0 | AE23: ='2. Smart_Meter_Costs'!AE181 -> 0
D24: Retirements/Removals (if applicable)
D25: Closing Balance | G25: =G22+G23-G24 -> 0 | I25: =I22+I23-I24 -> 0 | K25: =K22+K23-K24 -> 0 | M25: =M22+M23-M24 -> 373104 | O25: =O22+O23-O24 -> 3581825 | Q25: =Q22+Q23-Q24 -> 4549070 | S25: =S22+S23-S24 -> 4653945.906 | U25: =U22+U23-U24 -> 4653945.906 | W25: =W22+W23-W24 -> 4653945.906 | Y25: =Y22+Y23-Y24 -> 4653945.906 | AA25: =AA22+AA23-AA24 -> 4653945.906 | AC25: =AC22+AC23-AC24 -> 4653945.906 | AE25: =AE22+AE23-AE24 -> 4653945.906
C27: Accumulated Depreciation
D28: Opening Balance | I28: =G31 -> 0 | K28: =I31 -> 0 | M28: =K31 -> 0 | O28: =M31 -> -12436.8 | Q28: =O31 -> -144267.7667 | S28: =Q31 -> -415297.6 | U28: =S31 -> -722064.7969 | W28: =U31 -> -1032327.857 | Y28: =W31 -> -1342590.918 | AA28: =Y31 -> -1652853.978 | AC28: =AA31 -> -1963117.038 | AE28: =AC31 -> -2273380.099
D29: Amortization expense during year | G29: =IF(ISERROR(-G23/('3. Cost_of_Service_Parameters'!G45*2)), 0, -G23/('3. Cost_of_Service_Parameters'!G45*2)) -> 0 | I29: =IF(ISERROR(-(I23/('3. Cost_of_Service_Parameters'!I45*2)+MIN((I22/'3. Cost_of_Service_Parameters'!I45),(I22+I28)))), 0, -(I23/('3. Cost_of_Service_Parameters'!I45*2)+MIN((I22/'3. Cost_of_Service_Parameters'!I45),(I22+I28)))) -> 0 | K29: =IF(ISERROR(-(K23/('3. Cost_of_Service_Parameters'!K45*2)+MIN((K22/'3. Cost_of_Service_Parameters'!K45),(K22+K28)))), 0, -(K23/('3. Cost_of_Service_Parameters'!K45*2)+MIN((K22/'3. Cost_of_Service_Parameters'!K45),(K22+K28)))) -> 0 | M29: =IF(ISERROR(-(M23/('3. Cost_of_Service_Parameters'!M45*2)+MIN((M22/'3. Cost_of_Service_Parameters'!M45),(M22+M28)))), 0,-(M23/('3. Cost_of_Service_Parameters'!M45*2)+MIN((M22/'3. Cost_of_Service_Parameters'!M45),(M22+M28)))) -> -12436.8 | O29: =IF(ISERROR(-(O23/('3. Cost_of_Service_Parameters'!O45*2)+MIN((O22/'3. Cost_of_Service_Parameters'!O45),(O22+O28)))), 0, -(O23/('3. Cost_of_Service_Parameters'!O45*2)+MIN((O22/'3. Cost_of_Service_Parameters'!O45),(O22+O28)))) -> -131830.9667 | Q29: =IF(ISERROR(-(Q23/('3. Cost_of_Service_Parameters'!Q45*2)+MIN((Q22/'3. Cost_of_Service_Parameters'!Q45),(Q22+Q28)))), 0, -(Q23/('3. Cost_of_Service_Parameters'!Q45*2)+MIN((Q22/'3. Cost_of_Service_Parameters'!Q45),(Q22+Q28)))) -> -271029.8333 | S29: =IF(ISERROR(-(S23/('3. Cost_of_Service_Parameters'!S45*2)+MIN((S22/'3. Cost_of_Service_Parameters'!S45),(S22+S28)))), 0, -(S23/('3. Cost_of_Service_Parameters'!S45*2)+MIN((S22/'3. Cost_of_Service_Parameters'!S45),(S22+S28)))) -> -306767.1969 | U29: =IF(ISERROR(-(U23/('3. Cost_of_Service_Parameters'!U45*2)+MIN((U22/'3. Cost_of_Service_Parameters'!U45),(U22+U28)))), 0, -(U23/('3. Cost_of_Service_Parameters'!U45*2)+MIN((U22/'3. Cost_of_Service_Parameters'!U45),(U22+U28)))) -> -310263.0604 | W29: =IF(ISERROR(-(W23/('3. Cost_of_Service_Parameters'!W45*2)+MIN((W22/'3. Cost_of_Service_Parameters'!W45),(W22+W28)))), 0, -(W23/('3. Cost_of_Service_Parameters'!W45*2)+MIN((W22/'3. Cost_of_Service_Parameters'!W45),(W22+W28)))) -> -310263.0604 | Y29: =IF(ISERROR(-(Y23/('3. Cost_of_Service_Parameters'!Y45*2)+MIN((Y22/'3. Cost_of_Service_Parameters'!Y45),(Y22+Y28)))), 0, -(Y23/('3. Cost_of_Service_Parameters'!Y45*2)+MIN((Y22/'3. Cost_of_Service_Parameters'!Y45),(Y22+Y28)))) -> -310263.0604 | AA29: =IF(ISERROR(-(AA23/('3. Cost_of_Service_Parameters'!AA45*2)+MIN((AA22/'3. Cost_of_Service_Parameters'!AA45),(AA22+AA28)))), 0, -(AA23/('3. Cost_of_Service_Parameters'!AA45*2)+MIN((AA22/'3. Cost_of_Service_Parameters'!AA45),(AA22+AA28)))) -> -310263.0604 | AC29: =IF(ISERROR(-(AC23/('3. Cost_of_Service_Parameters'!AC45*2)+MIN((AC22/'3. Cost_of_Service_Parameters'!AC45),(AC22+AC28)))), 0, -(AC23/('3. Cost_of_Service_Parameters'!AC45*2)+MIN((AC22/'3. Cost_of_Service_Parameters'!AC45),(AC22+AC28)))) -> -310263.0604 | AE29: =IF(ISERROR(-(AE23/('3. Cost_of_Service_Parameters'!AE45*2)+MIN((AE22/'3. Cost_of_Service_Parameters'!AE45),(AE22+AE28)))), 0, -(AE23/('3. Cost_of_Service_Parameters'!AE45*2)+MIN((AE22/'3. Cost_of_Service_Parameters'!AE45),(AE22+AE28)))) -> -310263.0604
D30: Retirements/Removals (if applicable)
D31: Closing Balance | G31: =G28+G29-G30 -> 0 | I31: =I28+I29-I30 -> 0 | K31: =K28+K29-K30 -> 0 | M31: =M28+M29-M30 -> -12436.8 | O31: =O28+O29-O30 -> -144267.7667 | Q31: =Q28+Q29-Q30 -> -415297.6 | S31: =S28+S29-S30 -> -722064.7969 | U31: =U28+U29-U30 -> -1032327.857 | W31: =W28+W29-W30 -> -1342590.918 | Y31: =Y28+Y29-Y30 -> -1652853.978 | AA31: =AA28+AA29-AA30 -> -1963117.038 | AC31: =AC28+AC29-AC30 -> -2273380.099 | AE31: =AE28+AE29-AE30 -> -2583643.159
C33: Net Book Value
D34: Opening Balance | G34: =G22+G28 -> 0 | I34: =G35 -> 0 | K34: =I35 -> 0 | M34: =K35 -> 0 | O34: =M35 -> 360667.2 | Q34: =O35 -> 3437557.233 | S34: =Q35 -> 4133772.4 | U34: =S35 -> 3931881.109 | W34: =U35 -> 3621618.048 | Y34: =W35 -> 3311354.988 | AA34: =Y35 -> 3001091.928 | AC34: =AA35 -> 2690828.867 | AE34: =AC35 -> 2380565.807
D35: Closing Balance | G35: =G25+G31 -> 0 | I35: =I25+I31 -> 0 | K35: =K25+K31 -> 0 | M35: =M25+M31 -> 360667.2 | O35: =O25+O31 -> 3437557.233 | Q35: =Q25+Q31 -> 4133772.4 | S35: =S25+S31 -> 3931881.109 | U35: =U25+U31 -> 3621618.048 | W35: =W25+W31 -> 3311354.988 | Y35: =Y25+Y31 -> 3001091.928 | AA35: =AA25+AA31 -> 2690828.867 | AC35: =AC25+AC31 -> 2380565.807 | AE35: =AE25+AE31 -> 2070302.746
D36: Average Net Book Value | G36: =AVERAGE(G34:G35) -> 0 | I36: =AVERAGE(I34:I35) -> 0 | K36: =AVERAGE(K34:K35) -> 0 | M36: =AVERAGE(M34:M35) -> 180333.6 | O36: =AVERAGE(O34:O35) -> 1899112.217 | Q36: =AVERAGE(Q34:Q35) -> 3785664.817 | S36: =AVERAGE(S34:S35) -> 4032826.754 | U36: =AVERAGE(U34:U35) -> 3776749.578 | W36: =AVERAGE(W34:W35) -> 3466486.518 | Y36: =AVERAGE(Y34:Y35) -> 3156223.458 | AA36: =AVERAGE(AA34:AA35) -> 2845960.397 | AC36: =AVERAGE(AC34:AC35) -> 2535697.337 | AE36: =AVERAGE(AE34:AE35) -> 2225434.277
B38: Net Fixed Assets - Computer Hardware
C40: Gross Book Value
D41: Opening Balance | I41: =G44 -> 0 | K41: =I44 -> 0 | M41: =K44 -> 0 | O41: =M44 -> 11811 | Q41: =O44 -> 156157.7 | S41: =Q44 -> 156157.7 | U41: =S44 -> 156157.7 | W41: =U44 -> 156157.7 | Y41: =W44 -> 156157.7 | AA41: =Y44 -> 156157.7 | AC41: =AA44 -> 156157.7 | AE41: =AC44 -> 156157.7
D42: Capital Additions during year (from Smart Meter Costs) | G42: ='2. Smart_Meter_Costs'!G183 -> 0 | I42: ='2. Smart_Meter_Costs'!I183 -> 0 | K42: ='2. Smart_Meter_Costs'!K183 -> 0 | M42: ='2. Smart_Meter_Costs'!M183 -> 11811 | O42: ='2. Smart_Meter_Costs'!O183 -> 144346.7 | Q42: ='2. Smart_Meter_Costs'!Q183 -> 0 | S42: ='2. Smart_Meter_Costs'!S183 -> 0 | U42: ='2. Smart_Meter_Costs'!U183 -> 0 | W42: ='2. Smart_Meter_Costs'!W183 -> 0 | Y42: ='2. Smart_Meter_Costs'!Y183 -> 0 | AA42: ='2. Smart_Meter_Costs'!AA183 -> 0 | AC42: ='2. Smart_Meter_Costs'!AC183 -> 0 | AE42: ='2. Smart_Meter_Costs'!AE183 -> 0
D43: Retirements/Removals (if applicable)
D44: Closing Balance | G44: =G41+G42-G43 -> 0 | I44: =I41+I42-I43 -> 0 | K44: =K41+K42-K43 -> 0 | M44: =M41+M42-M43 -> 11811 | O44: =O41+O42-O43 -> 156157.7 | Q44: =Q41+Q42-Q43 -> 156157.7 | S44: =S41+S42-S43 -> 156157.7 | U44: =U41+U42-U43 -> 156157.7 | W44: =W41+W42-W43 -> 156157.7 | Y44: =Y41+Y42-Y43 -> 156157.7 | AA44: =AA41+AA42-AA43 -> 156157.7 | AC44: =AC41+AC42-AC43 -> 156157.7 | AE44: =AE41+AE42-AE43 -> 156157.7
C46: Accumulated Depreciation
D47: Opening Balance | G47: 0 | I47: =G50 -> 0 | K47: =I50 -> 0 | M47: =K50 -> 0 | O47: =M50 -> -1181.1 | Q47: =O50 -> -17977.97 | S47: =Q50 -> -49209.51 | U47: =S50 -> -80441.05 | W47: =U50 -> -111672.59 | Y47: =W50 -> -142904.13 | AA47: =Y50 -> -156157.7 | AC47: =AA50 -> -156157.7 | AE47: =AC50 -> -156157.7
D48: Amortization expense during year | G48: =IF(ISERROR(-G42/('3. Cost_of_Service_Parameters'!G47*2)), 0, -G42/('3. Cost_of_Service_Parameters'!G47*2)) -> 0 | I48: =IF(ISERROR(-(I42/('3. Cost_of_Service_Parameters'!I47*2)+MIN((I41/'3. Cost_of_Service_Parameters'!I47),(I41+I47)))), 0, -(I42/('3. Cost_of_Service_Parameters'!I47*2)+MIN((I41/'3. Cost_of_Service_Parameters'!I47),(I41+I47)))) -> 0 | K48: =IF(ISERROR(-(K42/('3. Cost_of_Service_Parameters'!K47*2)+MIN((K41/'3. Cost_of_Service_Parameters'!K47),(K41+K47)))), 0, -(K42/('3. Cost_of_Service_Parameters'!K47*2)+MIN((K41/'3. Cost_of_Service_Parameters'!K47),(K41+K47)))) -> 0 | M48: =IF(ISERROR(-(M42/('3. Cost_of_Service_Parameters'!M47*2)+MIN((M41/'3. Cost_of_Service_Parameters'!M47),(M41+M47)))), 0,-(M42/('3. Cost_of_Service_Parameters'!M47*2)+MIN((M41/'3. Cost_of_Service_Parameters'!M47),(M41+M47)))) -> -1181.1 | O48: =IF(ISERROR(-(O42/('3. Cost_of_Service_Parameters'!O47*2)+MIN((O41/'3. Cost_of_Service_Parameters'!O47),(O41+O47)))), 0, -(O42/('3. Cost_of_Service_Parameters'!O47*2)+MIN((O41/'3. Cost_of_Service_Parameters'!O47),(O41+O47)))) -> -16796.87 | Q48: =IF(ISERROR(-(Q42/('3. Cost_of_Service_Parameters'!Q47*2)+MIN((Q41/'3. Cost_of_Service_Parameters'!Q47),(Q41+Q47)))), 0, -(Q42/('3. Cost_of_Service_Parameters'!Q47*2)+MIN((Q41/'3. Cost_of_Service_Parameters'!Q47),(Q41+Q47)))) -> -31231.54 | S48: =IF(ISERROR(-(S42/('3. Cost_of_Service_Parameters'!S47*2)+MIN((S41/'3. Cost_of_Service_Parameters'!S47),(S41+S47)))), 0, -(S42/('3. Cost_of_Service_Parameters'!S47*2)+MIN((S41/'3. Cost_of_Service_Parameters'!S47),(S41+S47)))) -> -31231.54 | U48: =IF(ISERROR(-(U42/('3. Cost_of_Service_Parameters'!U47*2)+MIN((U41/'3. Cost_of_Service_Parameters'!U47),(U41+U47)))), 0, -(U42/('3. Cost_of_Service_Parameters'!U47*2)+MIN((U41/'3. Cost_of_Service_Parameters'!U47),(U41+U47)))) -> -31231.54 | W48: =IF(ISERROR(-(W42/('3. Cost_of_Service_Parameters'!W47*2)+MIN((W41/'3. Cost_of_Service_Parameters'!W47),(W41+W47)))), 0, -(W42/('3. Cost_of_Service_Parameters'!W47*2)+MIN((W41/'3. Cost_of_Service_Parameters'!W47),(W41+W47)))) -> -31231.54 | Y48: =IF(ISERROR(-(Y42/('3. Cost_of_Service_Parameters'!Y47*2)+MIN((Y41/'3. Cost_of_Service_Parameters'!Y47),(Y41+Y47)))), 0, -(Y42/('3. Cost_of_Service_Parameters'!Y47*2)+MIN((Y41/'3. Cost_of_Service_Parameters'!Y47),(Y41+Y47)))) -> -13253.57 | AA48: =IF(ISERROR(-(AA42/('3. Cost_of_Service_Parameters'!AA47*2)+MIN((AA41/'3. Cost_of_Service_Parameters'!AA47),(AA41+AA47)))), 0, -(AA42/('3. Cost_of_Service_Parameters'!AA47*2)+MIN((AA41/'3. Cost_of_Service_Parameters'!AA47),(AA41+AA47)))) -> 0 | AC48: =IF(ISERROR(-(AC42/('3. Cost_of_Service_Parameters'!AC47*2)+MIN((AC41/'3. Cost_of_Service_Parameters'!AC47),(AC41+AC47)))), 0, -(AC42/('3. Cost_of_Service_Parameters'!AC47*2)+MIN((AC41/'3. Cost_of_Service_Parameters'!AC47),(AC41+AC47)))) -> 0 | AE48: =IF(ISERROR(-(AE42/('3. Cost_of_Service_Parameters'!AE47*2)+MIN((AE41/'3. Cost_of_Service_Parameters'!AE47),(AE41+AE47)))), 0, -(AE42/('3. Cost_of_Service_Parameters'!AE47*2)+MIN((AE41/'3. Cost_of_Service_Parameters'!AE47),(AE41+AE47)))) -> 0
D49: Retirements/Removals (if applicable)
D50: Closing Balance | G50: =G47+G48-G49 -> 0 | I50: =I47+I48-I49 -> 0 | K50: =K47+K48-K49 -> 0 | M50: =M47+M48-M49 -> -1181.1 | O50: =O47+O48-O49 -> -17977.97 | Q50: =Q47+Q48-Q49 -> -49209.51 | S50: =S47+S48-S49 -> -80441.05 | U50: =U47+U48-U49 -> -111672.59 | W50: =W47+W48-W49 -> -142904.13 | Y50: =Y47+Y48-Y49 -> -156157.7 | AA50: =AA47+AA48-AA49 -> -156157.7 | AC50: =AC47+AC48-AC49 -> -156157.7 | AE50: =AE47+AE48-AE49 -> -156157.7
C52: Net Book Value
D53: Opening Balance | G53: =G41+G47 -> 0 | I53: =G54 -> 0 | K53: =I54 -> 0 | M53: =K54 -> 0 | O53: =M54 -> 10629.9 | Q53: =O54 -> 138179.73 | S53: =Q54 -> 106948.19 | U53: =S54 -> 75716.65 | W53: =U54 -> 44485.11 | Y53: =W54 -> 13253.57 | AA53: =Y54 -> 0 | AC53: =AA54 -> 0 | AE53: =AC54 -> 0
D54: Closing Balance | G54: =G44+G50 -> 0 | I54: =I44+I50 -> 0 | K54: =K44+K50 -> 0 | M54: =M44+M50 -> 10629.9 | O54: =O44+O50 -> 138179.73 | Q54: =Q44+Q50 -> 106948.19 | S54: =S44+S50 -> 75716.65 | U54: =U44+U50 -> 44485.11 | W54: =W44+W50 -> 13253.57 | Y54: =Y44+Y50 -> 0 | AA54: =AA44+AA50 -> 0 | AC54: =AC44+AC50 -> 0 | AE54: =AE44+AE50 -> 0
D55: Average Net Book Value | G55: =AVERAGE(G53:G54) -> 0 | I55: =AVERAGE(I53:I54) -> 0 | K55: =AVERAGE(K53:K54) -> 0 | M55: =AVERAGE(M53:M54) -> 5314.95 | O55: =AVERAGE(O53:O54) -> 74404.815 | Q55: =AVERAGE(Q53:Q54) -> 122563.96 | S55: =AVERAGE(S53:S54) -> 91332.42 | U55: =AVERAGE(U53:U54) -> 60100.88 | W55: =AVERAGE(W53:W54) -> 28869.34 | Y55: =AVERAGE(Y53:Y54) -> 6626.785 | AA55: =AVERAGE(AA53:AA54) -> 0 | AC55: =AVERAGE(AC53:AC54) -> 0 | AE55: =AVERAGE(AE53:AE54) -> 0
B57: Net Fixed Assets - Computer Software (including Applications Software)
C59: Gross Book Value
D60: Opening Balance | I60: =G63 -> 0 | K60: =I63 -> 0 | M60: =K63 -> 294335 | O60: =M63 -> 451622 | Q60: =O63 -> 621203 | S60: =Q63 -> 825146.36 | U60: =S63 -> 863016.26 | W60: =U63 -> 863016.26 | Y60: =W63 -> 863016.26 | AA60: =Y63 -> 863016.26 | AC60: =AA63 -> 863016.26 | AE60: =AC63 -> 863016.26
D61: Capital Additions during year (from Smart Meter Costs) | G61: ='2. Smart_Meter_Costs'!G185+'2. Smart_Meter_Costs'!G191 -> 0 | I61: ='2. Smart_Meter_Costs'!I185+'2. Smart_Meter_Costs'!I191 -> 0 | K61: ='2. Smart_Meter_Costs'!K185+'2. Smart_Meter_Costs'!K191 -> 294335 | M61: ='2. Smart_Meter_Costs'!M185+'2. Smart_Meter_Costs'!M191 -> 157287 | O61: ='2. Smart_Meter_Costs'!O185+'2. Smart_Meter_Costs'!O191 -> 169581 | Q61: ='2. Smart_Meter_Costs'!Q185+'2. Smart_Meter_Costs'!Q191 -> 203943.36 | S61: ='2. Smart_Meter_Costs'!S185+'2. Smart_Meter_Costs'!S191 -> 37869.9 | U61: ='2. Smart_Meter_Costs'!U185+'2. Smart_Meter_Costs'!U191 -> 0 | W61: ='2. Smart_Meter_Costs'!W185+'2. Smart_Meter_Costs'!W191 -> 0 | Y61: ='2. Smart_Meter_Costs'!Y185+'2. Smart_Meter_Costs'!Y191 -> 0 | AA61: ='2. Smart_Meter_Costs'!AA185+'2. Smart_Meter_Costs'!AA191 -> 0 | AC61: ='2. Smart_Meter_Costs'!AC185+'2. Smart_Meter_Costs'!AC191 -> 0 | AE61: ='2. Smart_Meter_Costs'!AE185+'2. Smart_Meter_Costs'!AE191 -> 0
D62: Retirements/Removals (if applicable)
D63: Closing Balance | G63: =G60+G61-G62 -> 0 | I63: =I60+I61-I62 -> 0 | K63: =K60+K61-K62 -> 294335 | M63: =M60+M61-M62 -> 451622 | O63: =O60+O61-O62 -> 621203 | Q63: =Q60+Q61-Q62 -> 825146.36 | S63: =S60+S61-S62 -> 863016.26 | U63: =U60+U61-U62 -> 863016.26 | W63: =W60+W61-W62 -> 863016.26 | Y63: =Y60+Y61-Y62 -> 863016.26 | AA63: =AA60+AA61-AA62 -> 863016.26 | AC63: =AC60+AC61-AC62 -> 863016.26 | AE63: =AE60+AE61-AE62 -> 863016.26
C65: Accumulated Depreciation
D66: Opening Balance | G66: 0 | I66: =G69 -> 0 | K66: =I69 -> 0 | M66: =K69 -> -29433.5 | O66: =M69 -> -104029.2 | Q66: =O69 -> -211311.7 | S66: =Q69 -> -355946.636 | U66: =S69 -> -524762.898 | W66: =U69 -> -697366.15 | Y66: =W69 -> -863016.26 | AA66: =Y69 -> -863016.26 | AC66: =AA69 -> -863016.26 | AE66: =AC69 -> -863016.26
D67: Amortization expense during year | G67: =IF(ISERROR(-G61/('3. Cost_of_Service_Parameters'!G49*2)), 0, -G61/('3. Cost_of_Service_Parameters'!G49*2)) -> 0 | I67: =IF(ISERROR(-(I61/('3. Cost_of_Service_Parameters'!I49*2)+MIN((I60/'3. Cost_of_Service_Parameters'!I49),(I60+I66)))), 0, -(I61/('3. Cost_of_Service_Parameters'!I49*2)+MIN((I60/'3. Cost_of_Service_Parameters'!I49),(I60+I66)))) -> 0 | K67: =IF(ISERROR(-(K61/('3. Cost_of_Service_Parameters'!K49*2)+MIN((K60/'3. Cost_of_Service_Parameters'!K49),(K60+K66)))), 0, -(K61/('3. Cost_of_Service_Parameters'!K49*2)+MIN((K60/'3. Cost_of_Service_Parameters'!K49),(K60+K66)))) -> -29433.5 | M67: =IF(ISERROR(-(M61/('3. Cost_of_Service_Parameters'!M49*2)+MIN((M60/'3. Cost_of_Service_Parameters'!M49),(M60+M66)))), 0,-(M61/('3. Cost_of_Service_Parameters'!M49*2)+MIN((M60/'3. Cost_of_Service_Parameters'!M49),(M60+M66)))) -> -74595.7 | O67: =IF(ISERROR(-(O61/('3. Cost_of_Service_Parameters'!O49*2)+MIN((O60/'3. Cost_of_Service_Parameters'!O49),(O60+O66)))), 0, -(O61/('3. Cost_of_Service_Parameters'!O49*2)+MIN((O60/'3. Cost_of_Service_Parameters'!O49),(O60+O66)))) -> -107282.5 | Q67: =IF(ISERROR(-(Q61/('3. Cost_of_Service_Parameters'!Q49*2)+MIN((Q60/'3. Cost_of_Service_Parameters'!Q49),(Q60+Q66)))), 0, -(Q61/('3. Cost_of_Service_Parameters'!Q49*2)+MIN((Q60/'3. Cost_of_Service_Parameters'!Q49),(Q60+Q66)))) -> -144634.936 | S67: =IF(ISERROR(-(S61/('3. Cost_of_Service_Parameters'!S49*2)+MIN((S60/'3. Cost_of_Service_Parameters'!S49),(S60+S66)))), 0, -(S61/('3. Cost_of_Service_Parameters'!S49*2)+MIN((S60/'3. Cost_of_Service_Parameters'!S49),(S60+S66)))) -> -168816.262 | U67: =IF(ISERROR(-(U61/('3. Cost_of_Service_Parameters'!U49*2)+MIN((U60/'3. Cost_of_Service_Parameters'!U49),(U60+U66)))), 0, -(U61/('3. Cost_of_Service_Parameters'!U49*2)+MIN((U60/'3. Cost_of_Service_Parameters'!U49),(U60+U66)))) -> -172603.252 | W67: =IF(ISERROR(-(W61/('3. Cost_of_Service_Parameters'!W49*2)+MIN((W60/'3. Cost_of_Service_Parameters'!W49),(W60+W66)))), 0, -(W61/('3. Cost_of_Service_Parameters'!W49*2)+MIN((W60/'3. Cost_of_Service_Parameters'!W49),(W60+W66)))) -> -165650.11 | Y67: =IF(ISERROR(-(Y61/('3. Cost_of_Service_Parameters'!Y49*2)+MIN((Y60/'3. Cost_of_Service_Parameters'!Y49),(Y60+Y66)))), 0, -(Y61/('3. Cost_of_Service_Parameters'!Y49*2)+MIN((Y60/'3. Cost_of_Service_Parameters'!Y49),(Y60+Y66)))) -> 0 | AA67: =IF(ISERROR(-(AA61/('3. Cost_of_Service_Parameters'!AA49*2)+MIN((AA60/'3. Cost_of_Service_Parameters'!AA49),(AA60+AA66)))), 0, -(AA61/('3. Cost_of_Service_Parameters'!AA49*2)+MIN((AA60/'3. Cost_of_Service_Parameters'!AA49),(AA60+AA66)))) -> 0 | AC67: =IF(ISERROR(-(AC61/('3. Cost_of_Service_Parameters'!AC49*2)+MIN((AC60/'3. Cost_of_Service_Parameters'!AC49),(AC60+AC66)))), 0, -(AC61/('3. Cost_of_Service_Parameters'!AC49*2)+MIN((AC60/'3. Cost_of_Service_Parameters'!AC49),(AC60+AC66)))) -> 0 | AE67: =IF(ISERROR(-(AE61/('3. Cost_of_Service_Parameters'!AE49*2)+MIN((AE60/'3. Cost_of_Service_Parameters'!AE49),(AE60+AE66)))), 0, -(AE61/('3. Cost_of_Service_Parameters'!AE49*2)+MIN((AE60/'3. Cost_of_Service_Parameters'!AE49),(AE60+AE66)))) -> 0
D68: Retirements/Removals (if applicable)
D69: Closing Balance | G69: =G66+G67-G68 -> 0 | I69: =I66+I67-I68 -> 0 | K69: =K66+K67-K68 -> -29433.5 | M69: =M66+M67-M68 -> -104029.2 | O69: =O66+O67-O68 -> -211311.7 | Q69: =Q66+Q67-Q68 -> -355946.636 | S69: =S66+S67-S68 -> -524762.898 | U69: =U66+U67-U68 -> -697366.15 | W69: =W66+W67-W68 -> -863016.26 | Y69: =Y66+Y67-Y68 -> -863016.26 | AA69: =AA66+AA67-AA68 -> -863016.26 | AC69: =AC66+AC67-AC68 -> -863016.26 | AE69: =AE66+AE67-AE68 -> -863016.26
C71: Net Book Value
D72: Opening Balance | G72: =G60+G66 -> 0 | I72: =G73 -> 0 | K72: =I73 -> 0 | M72: =K73 -> 264901.5 | O72: =M73 -> 347592.8 | Q72: =O73 -> 409891.3 | S72: =Q73 -> 469199.724 | U72: =S73 -> 338253.362 | W72: =U73 -> 165650.11 | Y72: =W73 -> 0 | AA72: =Y73 -> 0 | AC72: =AA73 -> 0 | AE72: =AC73 -> 0
D73: Closing Balance | G73: =G63+G69 -> 0 | I73: =I63+I69 -> 0 | K73: =K63+K69 -> 264901.5 | M73: =M63+M69 -> 347592.8 | O73: =O63+O69 -> 409891.3 | Q73: =Q63+Q69 -> 469199.724 | S73: =S63+S69 -> 338253.362 | U73: =U63+U69 -> 165650.11 | W73: =W63+W69 -> 0 | Y73: =Y63+Y69 -> 0 | AA73: =AA63+AA69 -> 0 | AC73: =AC63+AC69 -> 0 | AE73: =AE63+AE69 -> 0
D74: Average Net Book Value | G74: =AVERAGE(G72:G73) -> 0 | I74: =AVERAGE(I72:I73) -> 0 | K74: =AVERAGE(K72:K73) -> 132450.75 | M74: =AVERAGE(M72:M73) -> 306247.15 | O74: =AVERAGE(O72:O73) -> 378742.05 | Q74: =AVERAGE(Q72:Q73) -> 439545.512 | S74: =AVERAGE(S72:S73) -> 403726.543 | U74: =AVERAGE(U72:U73) -> 251951.736 | W74: =AVERAGE(W72:W73) -> 82825.055 | Y74: =AVERAGE(Y72:Y73) -> 0 | AA74: =AVERAGE(AA72:AA73) -> 0 | AC74: =AVERAGE(AC72:AC73) -> 0 | AE74: =AVERAGE(AE72:AE73) -> 0
B76: Net Fixed Assets - Tools and Equipment
C78: Gross Book Value
D79: Opening Balance | I79: =G82 -> 0 | K79: =I82 -> 0 | M79: =K82 -> 0 | O79: =M82 -> 0 | Q79: =O82 -> 0 | S79: =Q82 -> 0 | U79: =S82 -> 0 | W79: =U82 -> 0 | Y79: =W82 -> 0 | AA79: =Y82 -> 0 | AC79: =AA82 -> 0 | AE79: =AC82 -> 0
D80: Capital Additions during year (from Smart Meter Costs) | G80: ='2. Smart_Meter_Costs'!G187 -> 0 | I80: ='2. Smart_Meter_Costs'!I187 -> 0 | K80: ='2. Smart_Meter_Costs'!K187 -> 0 | M80: ='2. Smart_Meter_Costs'!M187 -> 0 | O80: ='2. Smart_Meter_Costs'!O187 -> 0 | Q80: ='2. Smart_Meter_Costs'!Q187 -> 0 | S80: ='2. Smart_Meter_Costs'!S187 -> 0 | U80: ='2. Smart_Meter_Costs'!U187 -> 0 | W80: ='2. Smart_Meter_Costs'!W187 -> 0 | Y80: ='2. Smart_Meter_Costs'!Y187 -> 0 | AA80: ='2. Smart_Meter_Costs'!AA187 -> 0 | AC80: ='2. Smart_Meter_Costs'!AC187 -> 0 | AE80: ='2. Smart_Meter_Costs'!AE187 -> 0
D81: Retirements/Removals (if applicable)
D82: Closing Balance | G82: =G79+G80-G81 -> 0 | I82: =I79+I80-I81 -> 0 | K82: =K79+K80-K81 -> 0 | M82: =M79+M80-M81 -> 0 | O82: =O79+O80-O81 -> 0 | Q82: =Q79+Q80-Q81 -> 0 | S82: =S79+S80-S81 -> 0 | U82: =U79+U80-U81 -> 0 | W82: =W79+W80-W81 -> 0 | Y82: =Y79+Y80-Y81 -> 0 | AA82: =AA79+AA80-AA81 -> 0 | AC82: =AC79+AC80-AC81 -> 0 | AE82: =AE79+AE80-AE81 -> 0
C84: Accumulated Depreciation
D85: Opening Balance | G85: 0 | I85: =G88 -> 0 | K85: =I88 -> 0 | M85: =K88 -> 0 | O85: =M88 -> 0 | Q85: =O88 -> 0 | S85: =Q88 -> 0 | U85: =S88 -> 0 | W85: =U88 -> 0 | Y85: =W88 -> 0 | AA85: =Y88 -> 0 | AC85: =AA88 -> 0 | AE85: =AC88 -> 0
D86: Amortization expense during year | G86: =IF(ISERROR(-G80/('3. Cost_of_Service_Parameters'!G51*2)), 0, -G80/('3. Cost_of_Service_Parameters'!G51*2)) -> 0 | I86: =IF(ISERROR(-(I80/('3. Cost_of_Service_Parameters'!I51*2)+MIN((I79/'3. Cost_of_Service_Parameters'!I51),(I79+I85)))), 0, -(I80/('3. Cost_of_Service_Parameters'!I51*2)+MIN((I79/'3. Cost_of_Service_Parameters'!I51),(I79+I85)))) -> 0 | K86: =IF(ISERROR(-(K80/('3. Cost_of_Service_Parameters'!K51*2)+MIN((K79/'3. Cost_of_Service_Parameters'!K51),(K79+K85)))), 0, -(K80/('3. Cost_of_Service_Parameters'!K51*2)+MIN((K79/'3. Cost_of_Service_Parameters'!K51),(K79+K85)))) -> 0 | M86: =IF(ISERROR(-(M80/('3. Cost_of_Service_Parameters'!M51*2)+MIN((M79/'3. Cost_of_Service_Parameters'!M51),(M79+M85)))), 0,-(M80/('3. Cost_of_Service_Parameters'!M51*2)+MIN((M79/'3. Cost_of_Service_Parameters'!M51),(M79+M85)))) -> 0 | O86: =IF(ISERROR(-(O80/('3. Cost_of_Service_Parameters'!O51*2)+MIN((O79/'3. Cost_of_Service_Parameters'!O51),(O79+O85)))), 0, -(O80/('3. Cost_of_Service_Parameters'!O51*2)+MIN((O79/'3. Cost_of_Service_Parameters'!O51),(O79+O85)))) -> 0 | Q86: =IF(ISERROR(-(Q80/('3. Cost_of_Service_Parameters'!Q51*2)+MIN((Q79/'3. Cost_of_Service_Parameters'!Q51),(Q79+Q85)))), 0, -(Q80/('3. Cost_of_Service_Parameters'!Q51*2)+MIN((Q79/'3. Cost_of_Service_Parameters'!Q51),(Q79+Q85)))) -> 0 | S86: =IF(ISERROR(-(S80/('3. Cost_of_Service_Parameters'!S51*2)+MIN((S79/'3. Cost_of_Service_Parameters'!S51),(S79+S85)))), 0, -(S80/('3. Cost_of_Service_Parameters'!S51*2)+MIN((S79/'3. Cost_of_Service_Parameters'!S51),(S79+S85)))) -> 0 | U86: =IF(ISERROR(-(U80/('3. Cost_of_Service_Parameters'!U51*2)+MIN((U79/'3. Cost_of_Service_Parameters'!U51),(U79+U85)))), 0, -(U80/('3. Cost_of_Service_Parameters'!U51*2)+MIN((U79/'3. Cost_of_Service_Parameters'!U51),(U79+U85)))) -> 0 | W86: =IF(ISERROR(-(W80/('3. Cost_of_Service_Parameters'!W51*2)+MIN((W79/'3. Cost_of_Service_Parameters'!W51),(W79+W85)))), 0, -(W80/('3. Cost_of_Service_Parameters'!W51*2)+MIN((W79/'3. Cost_of_Service_Parameters'!W51),(W79+W85)))) -> 0 | Y86: =IF(ISERROR(-(Y80/('3. Cost_of_Service_Parameters'!Y51*2)+MIN((Y79/'3. Cost_of_Service_Parameters'!Y51),(Y79+Y85)))), 0, -(Y80/('3. Cost_of_Service_Parameters'!Y51*2)+MIN((Y79/'3. Cost_of_Service_Parameters'!Y51),(Y79+Y85)))) -> 0 | AA86: =IF(ISERROR(-(AA80/('3. Cost_of_Service_Parameters'!AA51*2)+MIN((AA79/'3. Cost_of_Service_Parameters'!AA51),(AA79+AA85)))), 0, -(AA80/('3. Cost_of_Service_Parameters'!AA51*2)+MIN((AA79/'3. Cost_of_Service_Parameters'!AA51),(AA79+AA85)))) -> 0 | AC86: =IF(ISERROR(-(AC80/('3. Cost_of_Service_Parameters'!AC51*2)+MIN((AC79/'3. Cost_of_Service_Parameters'!AC51),(AC79+AC85)))), 0, -(AC80/('3. Cost_of_Service_Parameters'!AC51*2)+MIN((AC79/'3. Cost_of_Service_Parameters'!AC51),(AC79+AC85)))) -> 0 | AE86: =IF(ISERROR(-(AE80/('3. Cost_of_Service_Parameters'!AE51*2)+MIN((AE79/'3. Cost_of_Service_Parameters'!AE51),(AE79+AE85)))), 0, -(AE80/('3. Cost_of_Service_Parameters'!AE51*2)+MIN((AE79/'3. Cost_of_Service_Parameters'!AE51),(AE79+AE85)))) -> 0
D87: Retirements/Removals (if applicable)
D88: Closing Balance | G88: =G85+G86-G87 -> 0 | I88: =I85+I86-I87 -> 0 | K88: =K85+K86-K87 -> 0 | M88: =M85+M86-M87 -> 0 | O88: =O85+O86-O87 -> 0 | Q88: =Q85+Q86-Q87 -> 0 | S88: =S85+S86-S87 -> 0 | U88: =U85+U86-U87 -> 0 | W88: =W85+W86-W87 -> 0 | Y88: =Y85+Y86-Y87 -> 0 | AA88: =AA85+AA86-AA87 -> 0 | AC88: =AC85+AC86-AC87 -> 0 | AE88: =AE85+AE86-AE87 -> 0
C90: Net Book Value
D91: Opening Balance | G91: =G79+G85 -> 0 | I91: =G92 -> 0 | K91: =I92 -> 0 | M91: =K92 -> 0 | O91: =M92 -> 0 | Q91: =O92 -> 0 | S91: =Q92 -> 0 | U91: =S92 -> 0 | W91: =U92 -> 0 | Y91: =W92 -> 0 | AA91: =Y92 -> 0 | AC91: =AA92 -> 0 | AE91: =AC92 -> 0
D92: Closing Balance | G92: =G82+G88 -> 0 | I92: =I82+I88 -> 0 | K92: =K82+K88 -> 0 | M92: =M82+M88 -> 0 | O92: =O82+O88 -> 0 | Q92: =Q82+Q88 -> 0 | S92: =S82+S88 -> 0 | U92: =U82+U88 -> 0 | W92: =W82+W88 -> 0 | Y92: =Y82+Y88 -> 0 | AA92: =AA82+AA88 -> 0 | AC92: =AC82+AC88 -> 0 | AE92: =AE82+AE88 -> 0
D93: Average Net Book Value | G93: =AVERAGE(G91:G92) -> 0 | I93: =AVERAGE(I91:I92) -> 0 | K93: =AVERAGE(K91:K92) -> 0 | M93: =AVERAGE(M91:M92) -> 0 | O93: =AVERAGE(O91:O92) -> 0 | Q93: =AVERAGE(Q91:Q92) -> 0 | S93: =AVERAGE(S91:S92) -> 0 | U93: =AVERAGE(U91:U92) -> 0 | W93: =AVERAGE(W91:W92) -> 0 | Y93: =AVERAGE(Y91:Y92) -> 0 | AA93: =AVERAGE(AA91:AA92) -> 0 | AC93: =AVERAGE(AC91:AC92) -> 0 | AE93: =AVERAGE(AE91:AE92) -> 0
B95: Net Fixed Assets - Other Equipment
C97: Gross Book Value
D98: Opening Balance | I98: =G101 -> 0 | K98: =I101 -> 0 | M98: =K101 -> 312165 | O98: =M101 -> 386941 | Q98: =O101 -> 453367 | S98: =Q101 -> 516631.64 | U98: =S101 -> 528250.8 | W98: =U101 -> 528250.8 | Y98: =W101 -> 528250.8 | AA98: =Y101 -> 528250.8 | AC98: =AA101 -> 528250.8 | AE98: =AC101 -> 528250.8
D99: Capital Additions during year (from Smart Meter Costs) | G99: ='2. Smart_Meter_Costs'!G189 -> 0 | I99: ='2. Smart_Meter_Costs'!I189 -> 0 | K99: ='2. Smart_Meter_Costs'!K189 -> 312165 | M99: ='2. Smart_Meter_Costs'!M189 -> 74776 | O99: ='2. Smart_Meter_Costs'!O189 -> 66426 | Q99: ='2. Smart_Meter_Costs'!Q189 -> 63264.64 | S99: ='2. Smart_Meter_Costs'!S189 -> 11619.16 | U99: ='2. Smart_Meter_Costs'!U189 -> 0 | W99: ='2. Smart_Meter_Costs'!W189 -> 0 | Y99: ='2. Smart_Meter_Costs'!Y189 -> 0 | AA99: ='2. Smart_Meter_Costs'!AA189 -> 0 | AC99: ='2. Smart_Meter_Costs'!AC189 -> 0 | AE99: ='2. Smart_Meter_Costs'!AE189 -> 0
D100: Retirements/Removals (if applicable)
D101: Closing Balance | G101: =G98+G99-G100 -> 0 | I101: =I98+I99-I100 -> 0 | K101: =K98+K99-K100 -> 312165 | M101: =M98+M99-M100 -> 386941 | O101: =O98+O99-O100 -> 453367 | Q101: =Q98+Q99-Q100 -> 516631.64 | S101: =S98+S99-S100 -> 528250.8 | U101: =U98+U99-U100 -> 528250.8 | W101: =W98+W99-W100 -> 528250.8 | Y101: =Y98+Y99-Y100 -> 528250.8 | AA101: =AA98+AA99-AA100 -> 528250.8 | AC101: =AC98+AC99-AC100 -> 528250.8 | AE101: =AE98+AE99-AE100 -> 528250.8
C103: Accumulated Depreciation
D104: Opening Balance | G104: 0 | I104: =G107 -> 0 | K104: =I107 -> 0 | M104: =K107 -> -10405.5 | O104: =M107 -> -33709.03333 | Q104: =O107 -> -61719.3 | S104: =Q107 -> -94052.588 | U104: =S107 -> -128882.0027 | W104: =U107 -> -164098.7227 | Y104: =W107 -> -199315.4427 | AA104: =Y107 -> -234532.1627 | AC104: =AA107 -> -269748.8827 | AE104: =AC107 -> -304965.6027
D105: Amortization expense during year | G105: =IF(ISERROR(-G99/('3. Cost_of_Service_Parameters'!G53*2)), 0, -G99/('3. Cost_of_Service_Parameters'!G53*2)) -> 0 | I105: =IF(ISERROR(-(I99/('3. Cost_of_Service_Parameters'!I53*2)+MIN((I98/'3. Cost_of_Service_Parameters'!I53),(I98+I104)))), 0, -(I99/('3. Cost_of_Service_Parameters'!I53*2)+MIN((I98/'3. Cost_of_Service_Parameters'!I53),(I98+I104)))) -> 0 | K105: =IF(ISERROR(-(K99/('3. Cost_of_Service_Parameters'!K53*2)+MIN((K98/'3. Cost_of_Service_Parameters'!K53),(K98+K104)))), 0, -(K99/('3. Cost_of_Service_Parameters'!K53*2)+MIN((K98/'3. Cost_of_Service_Parameters'!K53),(K98+K104)))) -> -10405.5 | M105: =IF(ISERROR(-(M99/('3. Cost_of_Service_Parameters'!M53*2)+MIN((M98/'3. Cost_of_Service_Parameters'!M53),(M98+M104)))), 0,-(M99/('3. Cost_of_Service_Parameters'!M53*2)+MIN((M98/'3. Cost_of_Service_Parameters'!M53),(M98+M104)))) -> -23303.53333 | O105: =IF(ISERROR(-(O99/('3. Cost_of_Service_Parameters'!O53*2)+MIN((O98/'3. Cost_of_Service_Parameters'!O53),(O98+O104)))), 0, -(O99/('3. Cost_of_Service_Parameters'!O53*2)+MIN((O98/'3. Cost_of_Service_Parameters'!O53),(O98+O104)))) -> -28010.26667 | Q105: =IF(ISERROR(-(Q99/('3. Cost_of_Service_Parameters'!Q53*2)+MIN((Q98/'3. Cost_of_Service_Parameters'!Q53),(Q98+Q104)))), 0, -(Q99/('3. Cost_of_Service_Parameters'!Q53*2)+MIN((Q98/'3. Cost_of_Service_Parameters'!Q53),(Q98+Q104)))) -> -32333.288 | S105: =IF(ISERROR(-(S99/('3. Cost_of_Service_Parameters'!S53*2)+MIN((S98/'3. Cost_of_Service_Parameters'!S53),(S98+S104)))), 0, -(S99/('3. Cost_of_Service_Parameters'!S53*2)+MIN((S98/'3. Cost_of_Service_Parameters'!S53),(S98+S104)))) -> -34829.41467 | U105: =IF(ISERROR(-(U99/('3. Cost_of_Service_Parameters'!U53*2)+MIN((U98/'3. Cost_of_Service_Parameters'!U53),(U98+U104)))), 0, -(U99/('3. Cost_of_Service_Parameters'!U53*2)+MIN((U98/'3. Cost_of_Service_Parameters'!U53),(U98+U104)))) -> -35216.72 | W105: =IF(ISERROR(-(W99/('3. Cost_of_Service_Parameters'!W53*2)+MIN((W98/'3. Cost_of_Service_Parameters'!W53),(W98+W104)))), 0, -(W99/('3. Cost_of_Service_Parameters'!W53*2)+MIN((W98/'3. Cost_of_Service_Parameters'!W53),(W98+W104)))) -> -35216.72 | Y105: =IF(ISERROR(-(Y99/('3. Cost_of_Service_Parameters'!Y53*2)+MIN((Y98/'3. Cost_of_Service_Parameters'!Y53),(Y98+Y104)))), 0, -(Y99/('3. Cost_of_Service_Parameters'!Y53*2)+MIN((Y98/'3. Cost_of_Service_Parameters'!Y53),(Y98+Y104)))) -> -35216.72 | AA105: =IF(ISERROR(-(AA99/('3. Cost_of_Service_Parameters'!AA53*2)+MIN((AA98/'3. Cost_of_Service_Parameters'!AA53),(AA98+AA104)))), 0, -(AA99/('3. Cost_of_Service_Parameters'!AA53*2)+MIN((AA98/'3. Cost_of_Service_Parameters'!AA53),(AA98+AA104)))) -> -35216.72 | AC105: =IF(ISERROR(-(AC99/('3. Cost_of_Service_Parameters'!AC53*2)+MIN((AC98/'3. Cost_of_Service_Parameters'!AC53),(AC98+AC104)))), 0, -(AC99/('3. Cost_of_Service_Parameters'!AC53*2)+MIN((AC98/'3. Cost_of_Service_Parameters'!AC53),(AC98+AC104)))) -> -35216.72 | AE105: =IF(ISERROR(-(AE99/('3. Cost_of_Service_Parameters'!AE53*2)+MIN((AE98/'3. Cost_of_Service_Parameters'!AE53),(AE98+AE104)))), 0, -(AE99/('3. Cost_of_Service_Parameters'!AE53*2)+MIN((AE98/'3. Cost_of_Service_Parameters'!AE53),(AE98+AE104)))) -> -35216.72
D106: Retirements/Removals (if applicable)
D107: Closing Balance | G107: =G104+G105-G106 -> 0 | I107: =I104+I105-I106 -> 0 | K107: =K104+K105-K106 -> -10405.5 | M107: =M104+M105-M106 -> -33709.03333 | O107: =O104+O105-O106 -> -61719.3 | Q107: =Q104+Q105-Q106 -> -94052.588 | S107: =S104+S105-S106 -> -128882.0027 | U107: =U104+U105-U106 -> -164098.7227 | W107: =W104+W105-W106 -> -199315.4427 | Y107: =Y104+Y105-Y106 -> -234532.1627 | AA107: =AA104+AA105-AA106 -> -269748.8827 | AC107: =AC104+AC105-AC106 -> -304965.6027 | AE107: =AE104+AE105-AE106 -> -340182.3227
C109: Net Book Value
D110: Opening Balance | G110: =G98+G104 -> 0 | I110: =G111 -> 0 | K110: =I111 -> 0 | M110: =K111 -> 301759.5 | O110: =M111 -> 353231.9667 | Q110: =O111 -> 391647.7 | S110: =Q111 -> 422579.052 | U110: =S111 -> 399368.7973 | W110: =U111 -> 364152.0773 | Y110: =W111 -> 328935.3573 | AA110: =Y111 -> 293718.6373 | AC110: =AA111 -> 258501.9173 | AE110: =AC111 -> 223285.1973
D111: Closing Balance | G111: =G101+G107 -> 0 | I111: =I101+I107 -> 0 | K111: =K101+K107 -> 301759.5 | M111: =M101+M107 -> 353231.9667 | O111: =O101+O107 -> 391647.7 | Q111: =Q101+Q107 -> 422579.052 | S111: =S101+S107 -> 399368.7973 | U111: =U101+U107 -> 364152.0773 | W111: =W101+W107 -> 328935.3573 | Y111: =Y101+Y107 -> 293718.6373 | AA111: =AA101+AA107 -> 258501.9173 | AC111: =AC101+AC107 -> 223285.1973 | AE111: =AE101+AE107 -> 188068.4773
D112: Average Net Book Value | G112: =AVERAGE(G110:G111) -> 0 | I112: =AVERAGE(I110:I111) -> 0 | K112: =AVERAGE(K110:K111) -> 150879.75 | M112: =AVERAGE(M110:M111) -> 327495.7333 | O112: =AVERAGE(O110:O111) -> 372439.8333 | Q112: =AVERAGE(Q110:Q111) -> 407113.376 | S112: =AVERAGE(S110:S111) -> 410973.9247 | U112: =AVERAGE(U110:U111) -> 381760.4373 | W112: =AVERAGE(W110:W111) -> 346543.7173 | Y112: =AVERAGE(Y110:Y111) -> 311326.9973 | AA112: =AVERAGE(AA110:AA111) -> 276110.2773 | AC112: =AVERAGE(AC110:AC111) -> 240893.5573 | AE112: =AVERAGE(AE110:AE111) -> 205676.8373

Sheet 5. SM_Rev_Reqt
G18: 2006 | I18: 2007 | K18: 2008 | M18: 2009 | O18: 2010 | Q18: 2011 | S18: 2012 | U18: 2013 | W18: =U18+1 -> 2014 | Y18: =W18+1 -> 2015 | AA18: =Y18+1 -> 2016 | AC18: =AA18+1 -> 2017 | AE18: =AC18+1 -> 2018
B19: Average Net Fixed Asset Values (from Sheet 4)
C20: Smart Meters | G20: ='4. SM_Assets_and_Rate_Base'!G36 -> 0 | I20: ='4. SM_Assets_and_Rate_Base'!I36 -> 0 | K20: ='4. SM_Assets_and_Rate_Base'!K36 -> 0 | M20: ='4. SM_Assets_and_Rate_Base'!M36 -> 180333.6 | O20: ='4. SM_Assets_and_Rate_Base'!O36 -> 1899112.217 | Q20: ='4. SM_Assets_and_Rate_Base'!Q36 -> 3785664.817 | S20: ='4. SM_Assets_and_Rate_Base'!S36 -> 4032826.754 | U20: ='4. SM_Assets_and_Rate_Base'!U36 -> 3776749.578 | W20: ='4. SM_Assets_and_Rate_Base'!W36 -> 3466486.518 | Y20: ='4. SM_Assets_and_Rate_Base'!Y36 -> 3156223.458 | AA20: ='4. SM_Assets_and_Rate_Base'!AA36 -> 2845960.397 | AC20: ='4. SM_Assets_and_Rate_Base'!AC36 -> 2535697.337 | AE20: ='4. SM_Assets_and_Rate_Base'!AE36 -> 2225434.277
C21: Computer Hardware | G21: ='4. SM_Assets_and_Rate_Base'!G55 -> 0 | I21: ='4. SM_Assets_and_Rate_Base'!I55 -> 0 | K21: ='4. SM_Assets_and_Rate_Base'!K55 -> 0 | M21: ='4. SM_Assets_and_Rate_Base'!M55 -> 5314.95 | O21: ='4. SM_Assets_and_Rate_Base'!O55 -> 74404.815 | Q21: ='4. SM_Assets_and_Rate_Base'!Q55 -> 122563.96 | S21: ='4. SM_Assets_and_Rate_Base'!S55 -> 91332.42 | U21: ='4. SM_Assets_and_Rate_Base'!U55 -> 60100.88 | W21: ='4. SM_Assets_and_Rate_Base'!W55 -> 28869.34 | Y21: ='4. SM_Assets_and_Rate_Base'!Y55 -> 6626.785 | AA21: ='4. SM_Assets_and_Rate_Base'!AA55 -> 0 | AC21: ='4. SM_Assets_and_Rate_Base'!AC55 -> 0 | AE21: ='4. SM_Assets_and_Rate_Base'!AE55 -> 0
C22: Computer Software | G22: ='4. SM_Assets_and_Rate_Base'!G74 -> 0 | I22: ='4. SM_Assets_and_Rate_Base'!I74 -> 0 | K22: ='4. SM_Assets_and_Rate_Base'!K74 -> 132450.75 | M22: ='4. SM_Assets_and_Rate_Base'!M74 -> 306247.15 | O22: ='4. SM_Assets_and_Rate_Base'!O74 -> 378742.05 | Q22: ='4. SM_Assets_and_Rate_Base'!Q74 -> 439545.512 | S22: ='4. SM_Assets_and_Rate_Base'!S74 -> 403726.543 | U22: ='4. SM_Assets_and_Rate_Base'!U74 -> 251951.736 | W22: ='4. SM_Assets_and_Rate_Base'!W74 -> 82825.055 | Y22: ='4. SM_Assets_and_Rate_Base'!Y74 -> 0 | AA22: ='4. SM_Assets_and_Rate_Base'!AA74 -> 0 | AC22: ='4. SM_Assets_and_Rate_Base'!AC74 -> 0 | AE22: ='4. SM_Assets_and_Rate_Base'!AE74 -> 0
C23: Tools & Equipment | G23: ='4. SM_Assets_and_Rate_Base'!G93 -> 0 | I23: ='4. SM_Assets_and_Rate_Base'!I93 -> 0 | K23: ='4. SM_Assets_and_Rate_Base'!K93 -> 0 | M23: ='4. SM_Assets_and_Rate_Base'!M93 -> 0 | O23: ='4. SM_Assets_and_Rate_Base'!O93 -> 0 | Q23: ='4. SM_Assets_and_Rate_Base'!Q93 -> 0 | S23: ='4. SM_Assets_and_Rate_Base'!S93 -> 0 | U23: ='4. SM_Assets_and_Rate_Base'!U93 -> 0 | W23: ='4. SM_Assets_and_Rate_Base'!W93 -> 0 | Y23: ='4. SM_Assets_and_Rate_Base'!Y93 -> 0 | AA23: ='4. SM_Assets_and_Rate_Base'!AA93 -> 0 | AC23: ='4. SM_Assets_and_Rate_Base'!AC93 -> 0 | AE23: ='4. SM_Assets_and_Rate_Base'!AE93 -> 0
C24: Other Equipment | G24: ='4. SM_Assets_and_Rate_Base'!G112 -> 0 | I24: ='4. SM_Assets_and_Rate_Base'!I112 -> 0 | K24: ='4. SM_Assets_and_Rate_Base'!K112 -> 150879.75 | M24: ='4. SM_Assets_and_Rate_Base'!M112 -> 327495.7333 | O24: ='4. SM_Assets_and_Rate_Base'!O112 -> 372439.8333 | Q24: ='4. SM_Assets_and_Rate_Base'!Q112 -> 407113.376 | S24: ='4. SM_Assets_and_Rate_Base'!S112 -> 410973.9247 | U24: ='4. SM_Assets_and_Rate_Base'!U112 -> 381760.4373 | W24: ='4. SM_Assets_and_Rate_Base'!W112 -> 346543.7173 | Y24: ='4. SM_Assets_and_Rate_Base'!Y112 -> 311326.9973 | AA24: ='4. SM_Assets_and_Rate_Base'!AA112 -> 276110.2773 | AC24: ='4. SM_Assets_and_Rate_Base'!AC112 -> 240893.5573 | AE24: ='4. SM_Assets_and_Rate_Base'!AE112 -> 205676.8373
C25: Total Net Fixed Assets | G25: =SUM(G20:G24) -> 0 | I25: =SUM(I20:I24) -> 0 | K25: =SUM(K20:K24) -> 283330.5 | M25: =SUM(M20:M24) -> 819391.4333 | O25: =SUM(O20:O24) -> 2724698.915 | Q25: =SUM(Q20:Q24) -> 4754887.665 | S25: =SUM(S20:S24) -> 4938859.642 | U25: =SUM(U20:U24) -> 4470562.632 | W25: =SUM(W20:W24) -> 3924724.63 | Y25: =SUM(Y20:Y24) -> 3474177.24 | AA25: =SUM(AA20:AA24) -> 3122070.675 | AC25: =SUM(AC20:AC24) -> 2776590.894 | AE25: =SUM(AE20:AE24) -> 2431111.114
B27: Working Capital
C28: Operating Expenses (from Sheet 2) | G28: ='2. Smart_Meter_Costs'!G174 -> 0 | I28: ='2. Smart_Meter_Costs'!I174 -> 0 | K28: ='2. Smart_Meter_Costs'!K174 -> 0 | M28: ='2. Smart_Meter_Costs'!M174 -> 50842 | O28: ='2. Smart_Meter_Costs'!O174 -> 97985 | Q28: ='2. Smart_Meter_Costs'!Q174 -> 222270 | S28: ='2. Smart_Meter_Costs'!S174 -> 269097.22 | U28: ='2. Smart_Meter_Costs'!U174 -> 311000 | W28: ='2. Smart_Meter_Costs'!W174 -> 189000 | Y28: ='2. Smart_Meter_Costs'!Y174 -> 189000 | AA28: ='2. Smart_Meter_Costs'!AA174 -> 189000 | AC28: ='2. Smart_Meter_Costs'!AC174 -> 189000 | AE28: ='2. Smart_Meter_Costs'!AE174 -> 189000
C29: Working Capital Factor (from Sheet 3) | G29: ='3. Cost_of_Service_Parameters'!G36 -> 0.15 | I29: ='3. Cost_of_Service_Parameters'!I36 -> 0.15 | K29: ='3. Cost_of_Service_Parameters'!K36 -> 0.15 | M29: ='3. Cost_of_Service_Parameters'!M36 -> 0.15 | O29: ='3. Cost_of_Service_Parameters'!O36 -> 0.15 | Q29: ='3. Cost_of_Service_Parameters'!Q36 -> 0.15 | S29: ='3. Cost_of_Service_Parameters'!S36 -> 0.15 | U29: ='3. Cost_of_Service_Parameters'!U36 -> 0.15 | W29: ='3. Cost_of_Service_Parameters'!W36 -> 0.15 | Y29: ='3. Cost_of_Service_Parameters'!Y36 -> 0.15 | AA29: ='3. Cost_of_Service_Parameters'!AA36 -> 0.15 | AC29: ='3. Cost_of_Service_Parameters'!AC36 -> 0.15 | AE29: ='3. Cost_of_Service_Parameters'!AE36 -> 0.15
C30: Working Capital Allowance | G30: =G28*G29 -> 0 | I30: =I28*I29 -> 0 | K30: =K28*K29 -> 0 | M30: =M28*M29 -> 7626.3 | O30: =O28*O29 -> 14697.75 | Q30: =Q28*Q29 -> 33340.5 | S30: =S28*S29 -> 40364.583 | U30: =U28*U29 -> 46650 | W30: =W28*W29 -> 28350 | Y30: =Y28*Y29 -> 28350 | AA30: =AA28*AA29 -> 28350 | AC30: =AC28*AC29 -> 28350 | AE30: =AE28*AE29 -> 28350
B32: Incremental Smart Meter Rate Base | G32: =G25+G30 -> 0 | I32: =I25+I30 -> 0 | K32: =K25+K30 -> 283330.5 | M32: =M25+M30 -> 827017.7333 | O32: =O25+O30 -> 2739396.665 | Q32: =Q25+Q30 -> 4788228.165 | S32: =S25+S30 -> 4979224.225 | U32: =U25+U30 -> 4517212.632 | W32: =W25+W30 -> 3953074.63 | Y32: =Y25+Y30 -> 3502527.24 | AA32: =AA25+AA30 -> 3150420.675 | AC32: =AC25+AC30 -> 2804940.894 | AE32: =AE25+AE30 -> 2459461.114
B34: Return on Rate Base
C35: Capital Structure
C36: Deemed Short Term Debt | G36: =G$32*'3. Cost_of_Service_Parameters'!G22 -> 0 | I36: =I$32*'3. Cost_of_Service_Parameters'!I22 -> 0 | K36: =K$32*'3. Cost_of_Service_Parameters'!K22 -> 0 | M36: =M$32*'3. Cost_of_Service_Parameters'!M22 -> 0 | O36: =O$32*'3. Cost_of_Service_Parameters'!O22 -> 0 | Q36: =Q$32*'3. Cost_of_Service_Parameters'!Q22 -> 191529.1266 | S36: =S$32*'3. Cost_of_Service_Parameters'!S22 -> 199168.969 | U36: =U$32*'3. Cost_of_Service_Parameters'!U22 -> 180688.5053 | W36: =W$32*'3. Cost_of_Service_Parameters'!W22 -> 158122.9852 | Y36: =Y$32*'3. Cost_of_Service_Parameters'!Y22 -> 140101.0896 | AA36: =AA$32*'3. Cost_of_Service_Parameters'!AA22 -> 126016.827 | AC36: =AC$32*'3. Cost_of_Service_Parameters'!AC22 -> 112197.6358 | AE36: =AE$32*'3. Cost_of_Service_Parameters'!AE22 -> 98378.44456
C37: Deemed Long Term Debt | G37: =G$32*'3. Cost_of_Service_Parameters'!G23 -> 0 | I37: =I$32*'3. Cost_of_Service_Parameters'!I23 -> 0 | K37: =K$32*'3. Cost_of_Service_Parameters'!K23 -> 151015.1565 | M37: =M$32*'3. Cost_of_Service_Parameters'!M23 -> 468919.0548 | O37: =O$32*'3. Cost_of_Service_Parameters'!O23 -> 1553237.909 | Q37: =Q$32*'3. Cost_of_Service_Parameters'!Q23 -> 2681407.772 | S37: =S$32*'3. Cost_of_Service_Parameters'!S23 -> 2788365.566 | U37: =U$32*'3. Cost_of_Service_Parameters'!U23 -> 2529639.074 | W37: =W$32*'3. Cost_of_Service_Parameters'!W23 -> 2213721.793 | Y37: =Y$32*'3. Cost_of_Service_Parameters'!Y23 -> 1961415.254 | AA37: =AA$32*'3. Cost_of_Service_Parameters'!AA23 -> 1764235.578 | AC37: =AC$32*'3. Cost_of_Service_Parameters'!AC23 -> 1570766.901 | AE37: =AE$32*'3. Cost_of_Service_Parameters'!AE23 -> 1377298.224
C38: Equity | G38: =G$32*'3. Cost_of_Service_Parameters'!G24 -> 0 | I38: =I$32*'3. Cost_of_Service_Parameters'!I24 -> 0 | K38: =K$32*'3. Cost_of_Service_Parameters'!K24 -> 132315.3435 | M38: =M$32*'3. Cost_of_Service_Parameters'!M24 -> 358098.6785 | O38: =O$32*'3. Cost_of_Service_Parameters'!O24 -> 1186158.756 | Q38: =Q$32*'3. Cost_of_Service_Parameters'!Q24 -> 1915291.266 | S38: =S$32*'3. Cost_of_Service_Parameters'!S24 -> 1991689.69 | U38: =U$32*'3. Cost_of_Service_Parameters'!U24 -> 1806885.053 | W38: =W$32*'3. Cost_of_Service_Parameters'!W24 -> 1581229.852 | Y38: =Y$32*'3. Cost_of_Service_Parameters'!Y24 -> 1401010.896 | AA38: =AA$32*'3. Cost_of_Service_Parameters'!AA24 -> 1260168.27 | AC38: =AC$32*'3. Cost_of_Service_Parameters'!AC24 -> 1121976.358 | AE38: =AE$32*'3. Cost_of_Service_Parameters'!AE24 -> 983784.4456
C39: Preferred Shares | G39: =G$32*'3. Cost_of_Service_Parameters'!G25 -> 0 | I39: =I$32*'3. Cost_of_Service_Parameters'!I25 -> 0 | K39: =K$32*'3. Cost_of_Service_Parameters'!K25 -> 0 | M39: =M$32*'3. Cost_of_Service_Parameters'!M25 -> 0 | O39: =O$32*'3. Cost_of_Service_Parameters'!O25 -> 0 | Q39: =Q$32*'3. Cost_of_Service_Parameters'!Q25 -> 0 | S39: =S$32*'3. Cost_of_Service_Parameters'!S25 -> 0 | U39: =U$32*'3. Cost_of_Service_Parameters'!U25 -> 0 | W39: =W$32*'3. Cost_of_Service_Parameters'!W25 -> 0 | Y39: =Y$32*'3. Cost_of_Service_Parameters'!Y25 -> 0 | AA39: =AA$32*'3. Cost_of_Service_Parameters'!AA25 -> 0 | AC39: =AC$32*'3. Cost_of_Service_Parameters'!AC25 -> 0 | AE39: =AE$32*'3. Cost_of_Service_Parameters'!AE25 -> 0
C40: Total Capitalization | G40: =SUM(G36:G39) -> 0 | I40: =SUM(I36:I39) -> 0 | K40: =SUM(K36:K39) -> 283330.5 | M40: =SUM(M36:M39) -> 827017.7333 | O40: =SUM(O36:O39) -> 2739396.665 | Q40: =SUM(Q36:Q39) -> 4788228.165 | S40: =SUM(S36:S39) -> 4979224.225 | U40: =SUM(U36:U39) -> 4517212.632 | W40: =SUM(W36:W39) -> 3953074.63 | Y40: =SUM(Y36:Y39) -> 3502527.24 | AA40: =SUM(AA36:AA39) -> 3150420.675 | AC40: =SUM(AC36:AC39) -> 2804940.894 | AE40: =SUM(AE36:AE39) -> 2459461.114
G41: =IF(G40=G32,"","Error") ->  | I41: =IF(I40=I32,"","Error") ->  | K41: =IF(K40=K32,"","Error") ->  | M41: =IF(M40=M32,"","Error") ->  | O41: =IF(O40=O32,"","Error") ->  | Q41: =IF(Q40=Q32,"","Error") ->  | S41: =IF(S40=S32,"","Error") ->  | U41: =IF(U40=U32,"","Error") ->  | W41: =IF(W40=W32,"","Error") ->  | Y41: =IF(Y40=Y32,"","Error") ->  | AA41: =IF(AA40=AA32,"","Error") ->  | AC41: =IF(AC40=AC32,"","Error") ->  | AE41: =IF(AE40=AE32,"","Error") -> 
C42: Return on
C43: Deemed Short Term Debt | G43: =G36*'3. Cost_of_Service_Parameters'!G29 -> 0 | I43: =I36*'3. Cost_of_Service_Parameters'!I29 -> 0 | K43: =K36*'3. Cost_of_Service_Parameters'!K29 -> 0 | M43: =M36*'3. Cost_of_Service_Parameters'!M29 -> 0 | O43: =O36*'3. Cost_of_Service_Parameters'!O29 -> 0 | Q43: =Q36*'3. Cost_of_Service_Parameters'!Q29 -> 4654.157776 | S43: =S36*'3. Cost_of_Service_Parameters'!S29 -> 4839.805947 | U43: =U36*'3. Cost_of_Service_Parameters'!U29 -> 4390.730678 | W43: =W36*'3. Cost_of_Service_Parameters'!W29 -> 3842.388541 | Y43: =Y36*'3. Cost_of_Service_Parameters'!Y29 -> 3404.456477 | AA43: =AA36*'3. Cost_of_Service_Parameters'!AA29 -> 3062.208896 | AC43: =AC36*'3. Cost_of_Service_Parameters'!AC29 -> 2726.402549 | AE43: =AE36*'3. Cost_of_Service_Parameters'!AE29 -> 2390.596203
C44: Deemed Long Term Debt | G44: =G37*'3. Cost_of_Service_Parameters'!G30 -> 0 | I44: =I37*'3. Cost_of_Service_Parameters'!I30 -> 0 | K44: =K37*'3. Cost_of_Service_Parameters'!K30 -> 10948.59885 | M44: =M37*'3. Cost_of_Service_Parameters'!M30 -> 33996.63147 | O44: =O37*'3. Cost_of_Service_Parameters'!O30 -> 112609.7484 | Q44: =Q37*'3. Cost_of_Service_Parameters'!Q30 -> 146941.1459 | S44: =S37*'3. Cost_of_Service_Parameters'!S30 -> 152802.433 | U44: =U37*'3. Cost_of_Service_Parameters'!U30 -> 138624.2212 | W44: =W37*'3. Cost_of_Service_Parameters'!W30 -> 121311.9543 | Y44: =Y37*'3. Cost_of_Service_Parameters'!Y30 -> 107485.5559 | AA44: =AA37*'3. Cost_of_Service_Parameters'!AA30 -> 96680.10967 | AC44: =AC37*'3. Cost_of_Service_Parameters'!AC30 -> 86078.02617 | AE44: =AE37*'3. Cost_of_Service_Parameters'!AE30 -> 75475.94267
C45: Equity | G45: =G38*'3. Cost_of_Service_Parameters'!G31 -> 0 | I45: =I38*'3. Cost_of_Service_Parameters'!I31 -> 0 | K45: =K38*'3. Cost_of_Service_Parameters'!K31 -> 11908.38092 | M45: =M38*'3. Cost_of_Service_Parameters'!M31 -> 32228.88107 | O45: =O38*'3. Cost_of_Service_Parameters'!O31 -> 106754.288 | Q45: =Q38*'3. Cost_of_Service_Parameters'!Q31 -> 185017.1363 | S45: =S38*'3. Cost_of_Service_Parameters'!S31 -> 192397.2241 | U45: =U38*'3. Cost_of_Service_Parameters'!U31 -> 174545.0961 | W45: =W38*'3. Cost_of_Service_Parameters'!W31 -> 152746.8037 | Y45: =Y38*'3. Cost_of_Service_Parameters'!Y31 -> 135337.6526 | AA45: =AA38*'3. Cost_of_Service_Parameters'!AA31 -> 121732.2549 | AC45: =AC38*'3. Cost_of_Service_Parameters'!AC31 -> 108382.9162 | AE45: =AE38*'3. Cost_of_Service_Parameters'!AE31 -> 95033.57744
C46: Preferred Shares | G46: =G39*'3. Cost_of_Service_Parameters'!G32 -> 0 | I46: =I39*'3. Cost_of_Service_Parameters'!I32 -> 0 | K46: =K39*'3. Cost_of_Service_Parameters'!K32 -> 0 | M46: =M39*'3. Cost_of_Service_Parameters'!M32 -> 0 | O46: =O39*'3. Cost_of_Service_Parameters'!O32 -> 0 | Q46: =Q39*'3. Cost_of_Service_Parameters'!Q32 -> 0 | S46: =S39*'3. Cost_of_Service_Parameters'!S32 -> 0 | U46: =U39*'3. Cost_of_Service_Parameters'!U32 -> 0 | W46: =W39*'3. Cost_of_Service_Parameters'!W32 -> 0 | Y46: =Y39*'3. Cost_of_Service_Parameters'!Y32 -> 0 | AA46: =AA39*'3. Cost_of_Service_Parameters'!AA32 -> 0 | AC46: =AC39*'3. Cost_of_Service_Parameters'!AC32 -> 0 | AE46: =AE39*'3. Cost_of_Service_Parameters'!AE32 -> 0
C47: Total Return on Capital | G47: =SUM(G43:G46) -> 0 | I47: =SUM(I43:I46) -> 0 | K47: =SUM(K43:K46) -> 22856.97976 | M47: =SUM(M43:M46) -> 66225.51254 | O47: =SUM(O43:O46) -> 219364.0364 | Q47: =SUM(Q43:Q46) -> 336612.44 | S47: =SUM(S43:S46) -> 350039.463 | U47: =SUM(U43:U46) -> 317560.048 | W47: =SUM(W43:W46) -> 277901.1465 | Y47: =SUM(Y43:Y46) -> 246227.665 | AA47: =SUM(AA43:AA46) -> 221474.5734 | AC47: =SUM(AC43:AC46) -> 197187.3449 | AE47: =SUM(AE43:AE46) -> 172900.1163
B50: Operating Expenses | G50: =G28 -> 0 | I50: =I28 -> 0 | K50: =K28 -> 0 | M50: =M28 -> 50842 | O50: =O28 -> 97985 | Q50: =Q28 -> 222270 | S50: =S28 -> 269097.22 | U50: =U28 -> 311000 | W50: =W28 -> 189000 | Y50: =Y28 -> 189000 | AA50: =AA28 -> 189000 | AC50: =AC28 -> 189000 | AE50: =AE28 -> 189000
B52: Amortization Expenses (from Sheet 4)
C53: Smart Meters | G53: =-'4. SM_Assets_and_Rate_Base'!G29 -> 0 | I53: =-'4. SM_Assets_and_Rate_Base'!I29 -> 0 | K53: =-'4. SM_Assets_and_Rate_Base'!K29 -> 0 | M53: =-'4. SM_Assets_and_Rate_Base'!M29 -> 12436.8 | O53: =-'4. SM_Assets_and_Rate_Base'!O29 -> 131830.9667 | Q53: =-'4. SM_Assets_and_Rate_Base'!Q29 -> 271029.8333 | S53: =-'4. SM_Assets_and_Rate_Base'!S29 -> 306767.1969 | U53: =-'4. SM_Assets_and_Rate_Base'!U29 -> 310263.0604 | W53: =-'4. SM_Assets_and_Rate_Base'!W29 -> 310263.0604 | Y53: =-'4. SM_Assets_and_Rate_Base'!Y29 -> 310263.0604 | AA53: =-'4. SM_Assets_and_Rate_Base'!AA29 -> 310263.0604 | AC53: =-'4. SM_Assets_and_Rate_Base'!AC29 -> 310263.0604 | AE53: =-'4. SM_Assets_and_Rate_Base'!AE29 -> 310263.0604
C54: Computer Hardware | G54: =-'4. SM_Assets_and_Rate_Base'!G48 -> 0 | I54: =-'4. SM_Assets_and_Rate_Base'!I48 -> 0 | K54: =-'4. SM_Assets_and_Rate_Base'!K48 -> 0 | M54: =-'4. SM_Assets_and_Rate_Base'!M48 -> 1181.1 | O54: =-'4. SM_Assets_and_Rate_Base'!O48 -> 16796.87 | Q54: =-'4. SM_Assets_and_Rate_Base'!Q48 -> 31231.54 | S54: =-'4. SM_Assets_and_Rate_Base'!S48 -> 31231.54 | U54: =-'4. SM_Assets_and_Rate_Base'!U48 -> 31231.54 | W54: =-'4. SM_Assets_and_Rate_Base'!W48 -> 31231.54 | Y54: =-'4. SM_Assets_and_Rate_Base'!Y48 -> 13253.57 | AA54: =-'4. SM_Assets_and_Rate_Base'!AA48 -> 0 | AC54: =-'4. SM_Assets_and_Rate_Base'!AC48 -> 0 | AE54: =-'4. SM_Assets_and_Rate_Base'!AE48 -> 0
C55: Computer Software | G55: =-'4. SM_Assets_and_Rate_Base'!G67 -> 0 | I55: =-'4. SM_Assets_and_Rate_Base'!I67 -> 0 | K55: =-'4. SM_Assets_and_Rate_Base'!K67 -> 29433.5 | M55: =-'4. SM_Assets_and_Rate_Base'!M67 -> 74595.7 | O55: =-'4. SM_Assets_and_Rate_Base'!O67 -> 107282.5 | Q55: =-'4. SM_Assets_and_Rate_Base'!Q67 -> 144634.936 | S55: =-'4. SM_Assets_and_Rate_Base'!S67 -> 168816.262 | U55: =-'4. SM_Assets_and_Rate_Base'!U67 -> 172603.252 | W55: =-'4. SM_Assets_and_Rate_Base'!W67 -> 165650.11 | Y55: =-'4. SM_Assets_and_Rate_Base'!Y67 -> 0 | AA55: =-'4. SM_Assets_and_Rate_Base'!AA67 -> 0 | AC55: =-'4. SM_Assets_and_Rate_Base'!AC67 -> 0 | AE55: =-'4. SM_Assets_and_Rate_Base'!AE67 -> 0
C56: Tools & Equipment | G56: =-'4. SM_Assets_and_Rate_Base'!G86 -> 0 | I56: =-'4. SM_Assets_and_Rate_Base'!I86 -> 0 | K56: =-'4. SM_Assets_and_Rate_Base'!K86 -> 0 | M56: =-'4. SM_Assets_and_Rate_Base'!M86 -> 0 | O56: =-'4. SM_Assets_and_Rate_Base'!O86 -> 0 | Q56: =-'4. SM_Assets_and_Rate_Base'!Q86 -> 0 | S56: =-'4. SM_Assets_and_Rate_Base'!S86 -> 0 | U56: =-'4. SM_Assets_and_Rate_Base'!U86 -> 0 | W56: =-'4. SM_Assets_and_Rate_Base'!W86 -> 0 | Y56: =-'4. SM_Assets_and_Rate_Base'!Y86 -> 0 | AA56: =-'4. SM_Assets_and_Rate_Base'!AA86 -> 0 | AC56: =-'4. SM_Assets_and_Rate_Base'!AC86 -> 0 | AE56: =-'4. SM_Assets_and_Rate_Base'!AE86 -> 0
C57: Other Equipment | G57: =-'4. SM_Assets_and_Rate_Base'!G105 -> 0 | I57: =-'4. SM_Assets_and_Rate_Base'!I105 -> 0 | K57: =-'4. SM_Assets_and_Rate_Base'!K105 -> 10405.5 | M57: =-'4. SM_Assets_and_Rate_Base'!M105 -> 23303.53333 | O57: =-'4. SM_Assets_and_Rate_Base'!O105 -> 28010.26667 | Q57: =-'4. SM_Assets_and_Rate_Base'!Q105 -> 32333.288 | S57: =-'4. SM_Assets_and_Rate_Base'!S105 -> 34829.41467 | U57: =-'4. SM_Assets_and_Rate_Base'!U105 -> 35216.72 | W57: =-'4. SM_Assets_and_Rate_Base'!W105 -> 35216.72 | Y57: =-'4. SM_Assets_and_Rate_Base'!Y105 -> 35216.72 | AA57: =-'4. SM_Assets_and_Rate_Base'!AA105 -> 35216.72 | AC57: =-'4. SM_Assets_and_Rate_Base'!AC105 -> 35216.72 | AE57: =-'4. SM_Assets_and_Rate_Base'!AE105 -> 35216.72
C58: Total Amortization Expense in Year | G58: =SUM(G53:G57) -> 0 | I58: =SUM(I53:I57) -> 0 | K58: =SUM(K53:K57) -> 39839 | M58: =SUM(M53:M57) -> 111517.1333 | O58: =SUM(O53:O57) -> 283920.6033 | Q58: =SUM(Q53:Q57) -> 479229.5973 | S58: =SUM(S53:S57) -> 541644.4135 | U58: =SUM(U53:U57) -> 549314.5724 | W58: =SUM(W53:W57) -> 542361.4304 | Y58: =SUM(Y53:Y57) -> 358733.3504 | AA58: =SUM(AA53:AA57) -> 345479.7804 | AC58: =SUM(AC53:AC57) -> 345479.7804 | AE58: =SUM(AE53:AE57) -> 345479.7804
B60: Incremental Revenue Requirement before Taxes/PILs | G60: =G47+G50+G58 -> 0 | I60: =I47+I50+I58 -> 0 | K60: =K47+K50+K58 -> 62695.97976 | M60: =M47+M50+M58 -> 228584.6459 | O60: =O47+O50+O58 -> 601269.6398 | Q60: =Q47+Q50+Q58 -> 1038112.037 | S60: =S47+S50+S58 -> 1160781.097 | U60: =U47+U50+U58 -> 1177874.62 | W60: =W47+W50+W58 -> 1009262.577 | Y60: =Y47+Y50+Y58 -> 793961.0153 | AA60: =AA47+AA50+AA58 -> 755954.3538 | AC60: =AC47+AC50+AC58 -> 731667.1252 | AE60: =AE47+AE50+AE58 -> 707379.8967
B62: Calculation of Taxable Income
C63: Incremental Operating Expenses | G63: =G50 -> 0 | I63: =I50 -> 0 | K63: =K50 -> 0 | M63: =M50 -> 50842 | O63: =O50 -> 97985 | Q63: =Q50 -> 222270 | S63: =S50 -> 269097.22 | U63: =U50 -> 311000 | W63: =W50 -> 189000 | Y63: =Y50 -> 189000 | AA63: =AA50 -> 189000 | AC63: =AC50 -> 189000 | AE63: =AE50 -> 189000
C64: Amortization Expense | G64: =G58 -> 0 | I64: =I58 -> 0 | K64: =K58 -> 39839 | M64: =M58 -> 111517.1333 | O64: =O58 -> 283920.6033 | Q64: =Q58 -> 479229.5973 | S64: =S58 -> 541644.4135 | U64: =U58 -> 549314.5724 | W64: =W58 -> 542361.4304 | Y64: =Y58 -> 358733.3504 | AA64: =AA58 -> 345479.7804 | AC64: =AC58 -> 345479.7804 | AE64: =AE58 -> 345479.7804
C65: Interest Expense | G65: =G43+G44 -> 0 | I65: =I43+I44 -> 0 | K65: =K43+K44 -> 10948.59885 | M65: =M43+M44 -> 33996.63147 | O65: =O43+O44 -> 112609.7484 | Q65: =Q43+Q44 -> 151595.3037 | S65: =S43+S44 -> 157642.239 | U65: =U43+U44 -> 143014.9519 | W65: =W43+W44 -> 125154.3428 | Y65: =Y43+Y44 -> 110890.0124 | AA65: =AA43+AA44 -> 99742.31856 | AC65: =AC43+AC44 -> 88804.42871 | AE65: =AE43+AE44 -> 77866.53887
C66: Net Income for Taxes/PILs | G66: =G60-SUM(G63:G65) -> 0 | I66: =I60-SUM(I63:I65) -> 0 | K66: =K60-SUM(K63:K65) -> 11908.38092 | M66: =M60-SUM(M63:M65) -> 32228.88107 | O66: =O60-SUM(O63:O65) -> 106754.288 | Q66: =Q60-SUM(Q63:Q65) -> 185017.1363 | S66: =S60-SUM(S63:S65) -> 192397.2241 | U66: =U60-SUM(U63:U65) -> 174545.0961 | W66: =W60-SUM(W63:W65) -> 152746.8037 | Y66: =Y60-SUM(Y63:Y65) -> 135337.6526 | AA66: =AA60-SUM(AA63:AA65) -> 121732.2549 | AC66: =AC60-SUM(AC63:AC65) -> 108382.9162 | AE66: =AE60-SUM(AE63:AE65) -> 95033.57744
B68: Grossed-up Taxes/PILs (from Sheet 7) | G68: ='7_Taxes_PILs'!C59 -> 0 | I68: ='7_Taxes_PILs'!E59 -> 0 | K68: ='7_Taxes_PILs'!G59 -> -29157.74473 | M68: ='7_Taxes_PILs'!I59 -> -57233.85499 | O68: ='7_Taxes_PILs'!K59 -> -118512.2798 | Q68: ='7_Taxes_PILs'!M59 -> -160571.235 | S68: ='7_Taxes_PILs'!O59 -> -76998.23397 | U68: ='7_Taxes_PILs'!Q59 -> 20152.292 | W68: ='7_Taxes_PILs'!S59 -> 68219.10427 | Y68: ='7_Taxes_PILs'!U59 -> 34378.28158 | AA68: ='7_Taxes_PILs'!W59 -> 54418.72975 | AC68: ='7_Taxes_PILs'!Y59 -> 72849.95406 | AE68: ='7_Taxes_PILs'!AA59 -> 86391.49546
B70: Revenue Requirement, including Grossed-up Taxes/PILs | G70: =G60+G68 -> 0 | I70: =I60+I68 -> 0 | K70: =K60+K68 -> 33538.23503 | M70: =M60+M68 -> 171350.7909 | O70: =O60+O68 -> 482757.36 | Q70: =Q60+Q68 -> 877540.8024 | S70: =S60+S68 -> 1083782.863 | U70: =U60+U68 -> 1198026.912 | W70: =W60+W68 -> 1077481.681 | Y70: =Y60+Y68 -> 828339.2969 | AA70: =AA60+AA68 -> 810373.0835 | AC70: =AC60+AC68 -> 804517.0793 | AE70: =AE60+AE68 -> 793771.3921

Sheet 6. UCC_Calculation
A18: For PILs Calculation
A20: UCC - Smart Meters | B20: ='2. Smart_Meter_Costs'!G18 -> 2006 | D20: ='2. Smart_Meter_Costs'!I18 -> 2007 | F20: ='2. Smart_Meter_Costs'!K18 -> 2008 | H20: ='2. Smart_Meter_Costs'!M18 -> 2009 | J20: ='2. Smart_Meter_Costs'!O18 -> 2010 | L20: ='2. Smart_Meter_Costs'!Q18 -> 2011 | N20: ='2. Smart_Meter_Costs'!S18 -> 2012 | P20: ='2. Smart_Meter_Costs'!U18 -> 2013 | R20: ='2. Smart_Meter_Costs'!W18 -> 2014 | T20: ='2. Smart_Meter_Costs'!Y18 -> 2015 | V20: ='2. Smart_Meter_Costs'!AA18 -> 2016 | X20: ='2. Smart_Meter_Costs'!AC18 -> 2017 | Z20: ='2. Smart_Meter_Costs'!AE18 -> 2018
B21: ='2. Smart_Meter_Costs'!G19 -> Audited Actual | D21: ='2. Smart_Meter_Costs'!I19 -> Audited Actual | F21: ='2. Smart_Meter_Costs'!K19 -> Audited Actual | H21: ='2. Smart_Meter_Costs'!M19 -> Audited Actual | J21: ='2. Smart_Meter_Costs'!O19 -> Audited Actual | L21: ='2. Smart_Meter_Costs'!Q19 -> Audited Actual | N21: ='2. Smart_Meter_Costs'!S19 -> Forecast | P21: ='2. Smart_Meter_Costs'!U19 -> Forecast | R21: ='2. Smart_Meter_Costs'!W19 -> Forecast | T21: ='2. Smart_Meter_Costs'!Y19 -> Forecast | V21: ='2. Smart_Meter_Costs'!AA19 -> Forecast | X21: ='2. Smart_Meter_Costs'!AC19 -> Forecast | Z21: ='2. Smart_Meter_Costs'!AE19 -> Forecast
A23: Opening UCC | B23: 0 | D23: =B26-B31 -> 0 | F23: =D26-D31 -> 0 | H23: =F26-F31 -> 0 | J23: =H26-H31 -> 335793.6 | L23: =J26-J31 -> 3156483.78 | N23: =L26-L31 -> 3395707.524 | P23: =N26-N31 -> 2810954.334 | R23: =P26-P31 -> 2248763.467 | T23: =R26-R31 -> 1799010.774 | V23: =T26-T31 -> 1439208.619 | X23: =V26-V31 -> 1151366.895 | Z23: =X26-X31 -> 921093.5162
A24: Capital Additions | B24: ='4. SM_Assets_and_Rate_Base'!G23 -> 0 | D24: ='4. SM_Assets_and_Rate_Base'!I23 -> 0 | F24: ='4. SM_Assets_and_Rate_Base'!K23 -> 0 | H24: ='4. SM_Assets_and_Rate_Base'!M23 -> 373104 | J24: ='4. SM_Assets_and_Rate_Base'!O23 -> 3208721 | L24: ='4. SM_Assets_and_Rate_Base'!Q23 -> 967245 | N24: ='4. SM_Assets_and_Rate_Base'!S23 -> 104875.9055 | P24: ='4. SM_Assets_and_Rate_Base'!U23 -> 0 | R24: ='4. SM_Assets_and_Rate_Base'!W23 -> 0 | T24: ='4. SM_Assets_and_Rate_Base'!Y23 -> 0 | V24: ='4. SM_Assets_and_Rate_Base'!AA23 -> 0 | X24: ='4. SM_Assets_and_Rate_Base'!AC23 -> 0 | Z24: ='4. SM_Assets_and_Rate_Base'!AE23 -> 0
A25: Retirements/Removals (if applicable)
A26: UCC Before Half Year Rule | B26: =SUM(B23:B24)-B25 -> 0 | D26: =SUM(D23:D24)-D25 -> 0 | F26: =SUM(F23:F24)-F25 -> 0 | H26: =SUM(H23:H24)-H25 -> 373104 | J26: =SUM(J23:J24)-J25 -> 3544514.6 | L26: =SUM(L23:L24)-L25 -> 4123728.78 | N26: =SUM(N23:N24)-N25 -> 3500583.43 | P26: =SUM(P23:P24)-P25 -> 2810954.334 | R26: =SUM(R23:R24)-R25 -> 2248763.467 | T26: =SUM(T23:T24)-T25 -> 1799010.774 | V26: =SUM(V23:V24)-V25 -> 1439208.619 | X26: =SUM(X23:X24)-X25 -> 1151366.895 | Z26: =SUM(Z23:Z24)-Z25 -> 921093.5162
A27: Half Year Rule (1/2 Additions - Disposals) | B27: =IF(((B24-B25)/2)<0, 0, (B24-B25)/2) -> 0 | D27: =IF(((D24-D25)/2)<0, 0, (D24-D25)/2) -> 0 | F27: =IF(((F24-F25)/2)<0, 0, (F24-F25)/2) -> 0 | H27: =IF(((H24-H25)/2)<0, 0, (H24-H25)/2) -> 186552 | J27: =IF(((J24-J25)/2)<0, 0, (J24-J25)/2) -> 1604360.5 | L27: =IF(((L24-L25)/2)<0, 0, (L24-L25)/2) -> 483622.5 | N27: =IF(((N24-N25)/2)<0, 0, (N24-N25)/2) -> 52437.95275 | P27: =IF(((P24-P25)/2)<0, 0, (P24-P25)/2) -> 0 | R27: =IF(((R24-R25)/2)<0, 0, (R24-R25)/2) -> 0 | T27: =IF(((T24-T25)/2)<0, 0, (T24-T25)/2) -> 0 | V27: =IF(((V24-V25)/2)<0, 0, (V24-V25)/2) -> 0 | X27: =IF(((X24-X25)/2)<0, 0, (X24-X25)/2) -> 0 | Z27: =IF(((Z24-Z25)/2)<0, 0, (Z24-Z25)/2) -> 0
A28: Reduced UCC | B28: =B27+B23 -> 0 | D28: =D27+D23 -> 0 | F28: =F27+F23 -> 0 | H28: =H27+H23 -> 186552 | J28: =J27+J23 -> 1940154.1 | L28: =L27+L23 -> 3640106.28 | N28: =N27+N23 -> 3448145.477 | P28: =P27+P23 -> 2810954.334 | R28: =R27+R23 -> 2248763.467 | T28: =T27+T23 -> 1799010.774 | V28: =V27+V23 -> 1439208.619 | X28: =X27+X23 -> 1151366.895 | Z28: =Z27+Z23 -> 921093.5162
A29: CCA Rate Class | B29: ='3. Cost_of_Service_Parameters'!G57 -> 8 | D29: ='3. Cost_of_Service_Parameters'!I57 -> 8 | F29: ='3. Cost_of_Service_Parameters'!K57 -> 8 | H29: ='3. Cost_of_Service_Parameters'!M57 -> 8 | J29: ='3. Cost_of_Service_Parameters'!O57 -> 8 | L29: ='3. Cost_of_Service_Parameters'!Q57 -> 8 | N29: ='3. Cost_of_Service_Parameters'!S57 -> 8 | P29: ='3. Cost_of_Service_Parameters'!U57 -> 8 | R29: ='3. Cost_of_Service_Parameters'!W57 -> 8 | T29: ='3. Cost_of_Service_Parameters'!Y57 -> 8 | V29: ='3. Cost_of_Service_Parameters'!AA57 -> 8 | X29: ='3. Cost_of_Service_Parameters'!AC57 -> 8 | Z29: ='3. Cost_of_Service_Parameters'!AE57 -> 8
A30: CCA Rate | B30: ='3. Cost_of_Service_Parameters'!G58 -> 0.2 | D30: ='3. Cost_of_Service_Parameters'!I58 -> 0.2 | F30: ='3. Cost_of_Service_Parameters'!K58 -> 0.2 | H30: ='3. Cost_of_Service_Parameters'!M58 -> 0.2 | J30: ='3. Cost_of_Service_Parameters'!O58 -> 0.2 | L30: ='3. Cost_of_Service_Parameters'!Q58 -> 0.2 | N30: ='3. Cost_of_Service_Parameters'!S58 -> 0.2 | P30: ='3. Cost_of_Service_Parameters'!U58 -> 0.2 | R30: ='3. Cost_of_Service_Parameters'!W58 -> 0.2 | T30: ='3. Cost_of_Service_Parameters'!Y58 -> 0.2 | V30: ='3. Cost_of_Service_Parameters'!AA58 -> 0.2 | X30: ='3. Cost_of_Service_Parameters'!AC58 -> 0.2 | Z30: ='3. Cost_of_Service_Parameters'!AE58 -> 0.2
A31: CCA | B31: =B28*B30 -> 0 | D31: =D28*D30 -> 0 | F31: =F28*F30 -> 0 | H31: =H28*H30 -> 37310.4 | J31: =J28*J30 -> 388030.82 | L31: =L28*L30 -> 728021.256 | N31: =N28*N30 -> 689629.0954 | P31: =P28*P30 -> 562190.8668 | R31: =R28*R30 -> 449752.6935 | T31: =T28*T30 -> 359802.1548 | V31: =V28*V30 -> 287841.7238 | X31: =X28*X30 -> 230273.3791 | Z31: =Z28*Z30 -> 184218.7032
A32: Closing UCC | B32: =IF((B26-B31)<0, 0, B26-B31) -> 0 | D32: =IF((D26-D31)<0, 0, D26-D31) -> 0 | F32: =IF((F26-F31)<0, 0, F26-F31) -> 0 | H32: =IF((H26-H31)<0, 0, H26-H31) -> 335793.6 | J32: =IF((J26-J31)<0, 0, J26-J31) -> 3156483.78 | L32: =IF((L26-L31)<0, 0, L26-L31) -> 3395707.524 | N32: =IF((N26-N31)<0, 0, N26-N31) -> 2810954.334 | P32: =IF((P26-P31)<0, 0, P26-P31) -> 2248763.467 | R32: =IF((R26-R31)<0, 0, R26-R31) -> 1799010.774 | T32: =IF((T26-T31)<0, 0, T26-T31) -> 1439208.619 | V32: =IF((V26-V31)<0, 0, V26-V31) -> 1151366.895 | X32: =IF((X26-X31)<0, 0, X26-X31) -> 921093.5162 | Z32: =IF((Z26-Z31)<0, 0, Z26-Z31) -> 736874.813
A34: UCC - Computer Equipment | B34: =B20 -> 2006 | D34: 2007 | F34: 2008 | H34: 2009 | J34: 2010 | L34: 2011 | N34: =N20 -> 2012 | P34: =P20 -> 2013 | R34: =R20 -> 2014 | T34: =T20 -> 2015 | V34: =V20 -> 2016 | X34: =X20 -> 2017 | Z34: =Z20 -> 2018
B35: Audited Actual | D35: Audited Actual | F35: Audited Actual | H35: Audited Actual | J35: Audited Actual | L35: Audited Actual | N35: =N21 -> Forecast | P35: =P21 -> Forecast | R35: =R21 -> Forecast | T35: =T21 -> Forecast | V35: =V21 -> Forecast | X35: =X21 -> Forecast | Z35: =Z21 -> Forecast
A37: Opening UCC | B37: 0 | D37: =B41-B46 -> 0 | F37: =D41-D46 -> 0 | H37: =F41-F46 -> 213392.875 | J37: =H41-H46 -> 218622.8438 | L37: =J41-J46 -> 319179.0587 | N37: =L41-L46 -> 153855.6335 | P37: =N41-N46 -> 69235.03507 | R37: =P41-P46 -> 31155.76578 | T37: =R41-R46 -> 14020.0946 | V37: =T41-T46 -> 6309.042571 | X37: =V41-V46 -> 2839.069157 | Z37: =X41-X46 -> 1277.581121
A38: Capital Additions Computer Hardware | B38: ='2. Smart_Meter_Costs'!G183 -> 0 | D38: ='2. Smart_Meter_Costs'!I183 -> 0 | F38: ='2. Smart_Meter_Costs'!K183 -> 0 | H38: ='2. Smart_Meter_Costs'!M183 -> 11811 | J38: ='2. Smart_Meter_Costs'!O183 -> 144346.7 | L38: ='2. Smart_Meter_Costs'!Q183 -> 0 | N38: ='2. Smart_Meter_Costs'!S183 -> 0 | P38: ='2. Smart_Meter_Costs'!U183 -> 0 | R38: ='2. Smart_Meter_Costs'!W183 -> 0 | T38: ='2. Smart_Meter_Costs'!Y183 -> 0 | V38: ='2. Smart_Meter_Costs'!AA183 -> 0 | X38: ='2. Smart_Meter_Costs'!AC183 -> 0 | Z38: ='2. Smart_Meter_Costs'!AE183 -> 0
A39: Capital Additions Computer Software | B39: ='2. Smart_Meter_Costs'!G185 -> 0 | D39: ='2. Smart_Meter_Costs'!I185 -> 0 | F39: ='2. Smart_Meter_Costs'!K185 -> 294335 | H39: ='2. Smart_Meter_Costs'!M185 -> 157287 | J39: ='2. Smart_Meter_Costs'!O185 -> 160203.34 | L39: ='2. Smart_Meter_Costs'!Q185 -> 14103.527 | N39: ='2. Smart_Meter_Costs'!S185 -> 0 | P39: ='2. Smart_Meter_Costs'!U185 -> 0 | R39: ='2. Smart_Meter_Costs'!W185 -> 0 | T39: ='2. Smart_Meter_Costs'!Y185 -> 0 | V39: ='2. Smart_Meter_Costs'!AA185 -> 0 | X39: ='2. Smart_Meter_Costs'!AC185 -> 0 | Z39: ='2. Smart_Meter_Costs'!AE185 -> 0
A40: Retirements/Removals (if applicable)
A41: UCC Before Half Year Rule | B41: =SUM(B37:B39)-B40 -> 0 | D41: =SUM(D37:D39)-D40 -> 0 | F41: =SUM(F37:F39)-F40 -> 294335 | H41: =SUM(H37:H39)-H40 -> 382490.875 | J41: =SUM(J37:J39)-J40 -> 523172.8837 | L41: =SUM(L37:L39)-L40 -> 333282.5857 | N41: =SUM(N37:N39)-N40 -> 153855.6335 | P41: =SUM(P37:P39)-P40 -> 69235.03507 | R41: =SUM(R37:R39)-R40 -> 31155.76578 | T41: =SUM(T37:T39)-T40 -> 14020.0946 | V41: =SUM(V37:V39)-V40 -> 6309.042571 | X41: =SUM(X37:X39)-X40 -> 2839.069157 | Z41: =SUM(Z37:Z39)-Z40 -> 1277.581121
A42: Half Year Rule (1/2 Additions - Disposals) | B42: =IF((SUM(B38:B39)/2)<0, 0, SUM(B38:B39)/2) -> 0 | D42: =IF((SUM(D38:D39)/2)<0, 0, SUM(D38:D39)/2) -> 0 | F42: =IF((SUM(F38:F39)/2)<0, 0, SUM(F38:F39)/2) -> 147167.5 | H42: =IF((SUM(H38:H39)/2)<0, 0, SUM(H38:H39)/2) -> 84549 | J42: =IF((SUM(J38:J39)/2)<0, 0, SUM(J38:J39)/2) -> 152275.02 | L42: =IF((SUM(L38:L39)/2)<0, 0, SUM(L38:L39)/2) -> 7051.7635 | N42: =IF((SUM(N38:N39)/2)<0, 0, SUM(N38:N39)/2) -> 0 | P42: =IF((SUM(P38:P39)/2)<0, 0, SUM(P38:P39)/2) -> 0 | R42: =IF((SUM(R38:R39)/2)<0, 0, SUM(R38:R39)/2) -> 0 | T42: =IF((SUM(T38:T39)/2)<0, 0, SUM(T38:T39)/2) -> 0 | V42: =IF((SUM(V38:V39)/2)<0, 0, SUM(V38:V39)/2) -> 0 | X42: =IF((SUM(X38:X39)/2)<0, 0, SUM(X38:X39)/2) -> 0 | Z42: =IF((SUM(Z38:Z39)/2)<0, 0, SUM(Z38:Z39)/2) -> 0
A43: Reduced UCC | B43: =B42+B37 -> 0 | D43: =D42+D37 -> 0 | F43: =F42+F37 -> 147167.5 | H43: =H42+H37 -> 297941.875 | J43: =J42+J37 -> 370897.8638 | L43: =L42+L37 -> 326230.8222 | N43: =N42+N37 -> 153855.6335 | P43: =P42+P37 -> 69235.03507 | R43: =R42+R37 -> 31155.76578 | T43: =T42+T37 -> 14020.0946 | V43: =V42+V37 -> 6309.042571 | X43: =X42+X37 -> 2839.069157 | Z43: =Z42+Z37 -> 1277.581121
A44: CCA Rate Class | B44: ='3. Cost_of_Service_Parameters'!G60 -> 50 | D44: ='3. Cost_of_Service_Parameters'!I60 -> 50 | F44: ='3. Cost_of_Service_Parameters'!K60 -> 50 | H44: ='3. Cost_of_Service_Parameters'!M60 -> 50 | J44: ='3. Cost_of_Service_Parameters'!O60 -> 50 | L44: ='3. Cost_of_Service_Parameters'!Q60 -> 50 | N44: ='3. Cost_of_Service_Parameters'!S60 -> 50 | P44: ='3. Cost_of_Service_Parameters'!U60 -> 50 | R44: ='3. Cost_of_Service_Parameters'!W60 -> 50 | T44: ='3. Cost_of_Service_Parameters'!Y60 -> 50 | V44: ='3. Cost_of_Service_Parameters'!AA60 -> 50 | X44: ='3. Cost_of_Service_Parameters'!AC60 -> 50 | Z44: ='3. Cost_of_Service_Parameters'!AE60 -> 50
A45: CCA Rate | B45: ='3. Cost_of_Service_Parameters'!G61 -> 0.55 | D45: ='3. Cost_of_Service_Parameters'!I61 -> 0.55 | F45: ='3. Cost_of_Service_Parameters'!K61 -> 0.55 | H45: ='3. Cost_of_Service_Parameters'!M61 -> 0.55 | J45: ='3. Cost_of_Service_Parameters'!O61 -> 0.55 | L45: ='3. Cost_of_Service_Parameters'!Q61 -> 0.55 | N45: ='3. Cost_of_Service_Parameters'!S61 -> 0.55 | P45: ='3. Cost_of_Service_Parameters'!U61 -> 0.55 | R45: ='3. Cost_of_Service_Parameters'!W61 -> 0.55 | T45: ='3. Cost_of_Service_Parameters'!Y61 -> 0.55 | V45: ='3. Cost_of_Service_Parameters'!AA61 -> 0.55 | X45: ='3. Cost_of_Service_Parameters'!AC61 -> 0.55 | Z45: ='3. Cost_of_Service_Parameters'!AE61 -> 0.55
A46: CCA | B46: =B45*B43 -> 0 | D46: =D45*D43 -> 0 | F46: =F45*F43 -> 80942.125 | H46: =H45*H43 -> 163868.0312 | J46: =J45*J43 -> 203993.8251 | L46: =L45*L43 -> 179426.9522 | N46: =N45*N43 -> 84620.59842 | P46: =P45*P43 -> 38079.26929 | R46: =R45*R43 -> 17135.67118 | T46: =T45*T43 -> 7711.052031 | V46: =V45*V43 -> 3469.973414 | X46: =X45*X43 -> 1561.488036 | Z46: =Z45*Z43 -> 702.6696163
A47: Closing UCC | B47: =IF((B41-B46)<0, 0, B41-B46) -> 0 | D47: =IF((D41-D46)<0, 0, D41-D46) -> 0 | F47: =IF((F41-F46)<0, 0, F41-F46) -> 213392.875 | H47: =IF((H41-H46)<0, 0, H41-H46) -> 218622.8438 | J47: =IF((J41-J46)<0, 0, J41-J46) -> 319179.0587 | L47: =IF((L41-L46)<0, 0, L41-L46) -> 153855.6335 | N47: =IF((N41-N46)<0, 0, N41-N46) -> 69235.03507 | P47: =IF((P41-P46)<0, 0, P41-P46) -> 31155.76578 | R47: =IF((R41-R46)<0, 0, R41-R46) -> 14020.0946 | T47: =IF((T41-T46)<0, 0, T41-T46) -> 6309.042571 | V47: =IF((V41-V46)<0, 0, V41-V46) -> 2839.069157 | X47: =IF((X41-X46)<0, 0, X41-X46) -> 1277.581121 | Z47: =IF((Z41-Z46)<0, 0, Z41-Z46) -> 574.9115042
A49: UCC - General Equipment | B49: =B34 -> 2006 | D49: 2007 | F49: 2008 | H49: 2009 | J49: 2010 | L49: 2011 | N49: =N34 -> 2012 | P49: =P34 -> 2013 | R49: =R34 -> 2014 | T49: =T34 -> 2015 | V49: =V34 -> 2016 | X49: =X34 -> 2017 | Z49: =Z34 -> 2018
B50: Audited Actual | D50: Audited Actual | F50: Audited Actual | H50: Audited Actual | J50: Audited Actual | L50: Audited Actual | N50: =N35 -> Forecast | P50: =P35 -> Forecast | R50: =R35 -> Forecast | T50: =T35 -> Forecast | V50: =V35 -> Forecast | X50: =X35 -> Forecast | Z50: =Z35 -> Forecast
A52: Opening UCC | B52: 0 | D52: =B56-B61 -> 0 | F52: =D56-D61 -> 0 | H52: =F56-F61 -> 280948.5 | J52: =H56-H61 -> 292057.2 | L52: =J56-J61 -> 293429.16 | N52: =L56-L61 -> 291681.504 | P52: =N56-N61 -> 243802.4472 | R52: =P56-P61 -> 195041.9578 | T52: =R56-R61 -> 156033.5662 | V52: =T56-T61 -> 124826.853 | X52: =V56-V61 -> 99861.48237 | Z52: =X56-X61 -> 79889.1859
A53: Capital Additions Tools & Equipment | B53: ='2. Smart_Meter_Costs'!G187 -> 0 | D53: ='2. Smart_Meter_Costs'!I187 -> 0 | F53: ='2. Smart_Meter_Costs'!K187 -> 0 | H53: ='2. Smart_Meter_Costs'!M187 -> 0 | J53: ='2. Smart_Meter_Costs'!O187 -> 0 | L53: ='2. Smart_Meter_Costs'!Q187 -> 0 | N53: ='2. Smart_Meter_Costs'!S187 -> 0 | P53: ='2. Smart_Meter_Costs'!U187 -> 0 | R53: ='2. Smart_Meter_Costs'!W187 -> 0 | T53: ='2. Smart_Meter_Costs'!Y187 -> 0 | V53: ='2. Smart_Meter_Costs'!AA187 -> 0 | X53: ='2. Smart_Meter_Costs'!AC187 -> 0 | Z53: ='2. Smart_Meter_Costs'!AE187 -> 0
A54: Capital Additions Other Equipment | B54: ='2. Smart_Meter_Costs'!G189 -> 0 | D54: ='2. Smart_Meter_Costs'!I189 -> 0 | F54: ='2. Smart_Meter_Costs'!K189 -> 312165 | H54: ='2. Smart_Meter_Costs'!M189 -> 74776 | J54: ='2. Smart_Meter_Costs'!O189 -> 66426 | L54: ='2. Smart_Meter_Costs'!Q189 -> 63264.64 | N54: ='2. Smart_Meter_Costs'!S189 -> 11619.16 | P54: ='2. Smart_Meter_Costs'!U189 -> 0 | R54: ='2. Smart_Meter_Costs'!W189 -> 0 | T54: ='2. Smart_Meter_Costs'!Y189 -> 0 | V54: ='2. Smart_Meter_Costs'!AA189 -> 0 | X54: ='2. Smart_Meter_Costs'!AC189 -> 0 | Z54: ='2. Smart_Meter_Costs'!AE189 -> 0
A55: Retirements/Removals (if applicable)
A56: UCC Before Half Year Rule | B56: =SUM(B52:B54)-B55 -> 0 | D56: =SUM(D52:D54)-D55 -> 0 | F56: =SUM(F52:F54)-F55 -> 312165 | H56: =SUM(H52:H54)-H55 -> 355724.5 | J56: =SUM(J52:J54)-J55 -> 358483.2 | L56: =SUM(L52:L54)-L55 -> 356693.8 | N56: =SUM(N52:N54)-N55 -> 303300.664 | P56: =SUM(P52:P54)-P55 -> 243802.4472 | R56: =SUM(R52:R54)-R55 -> 195041.9578 | T56: =SUM(T52:T54)-T55 -> 156033.5662 | V56: =SUM(V52:V54)-V55 -> 124826.853 | X56: =SUM(X52:X54)-X55 -> 99861.48237 | Z56: =SUM(Z52:Z54)-Z55 -> 79889.1859
A57: Half Year Rule (1/2 Additions - Disposals) | B57: =IF(((SUM(B53:B54)-B55)/2)<0, 0, (SUM(B53:B54)-B55)/2) -> 0 | D57: =IF(((SUM(D53:D54)-D55)/2)<0, 0, (SUM(D53:D54)-D55)/2) -> 0 | F57: =IF(((SUM(F53:F54)-F55)/2)<0, 0, (SUM(F53:F54)-F55)/2) -> 156082.5 | H57: =IF(((SUM(H53:H54)-H55)/2)<0, 0, (SUM(H53:H54)-H55)/2) -> 37388 | J57: =IF(((SUM(J53:J54)-J55)/2)<0, 0, (SUM(J53:J54)-J55)/2) -> 33213 | L57: =IF(((SUM(L53:L54)-L55)/2)<0, 0, (SUM(L53:L54)-L55)/2) -> 31632.32 | N57: =IF(((SUM(N53:N54)-N55)/2)<0, 0, (SUM(N53:N54)-N55)/2) -> 5809.58 | P57: =IF(((SUM(P53:P54)-P55)/2)<0, 0, (SUM(P53:P54)-P55)/2) -> 0 | R57: =IF(((SUM(R53:R54)-R55)/2)<0, 0, (SUM(R53:R54)-R55)/2) -> 0 | T57: =IF(((SUM(T53:T54)-T55)/2)<0, 0, (SUM(T53:T54)-T55)/2) -> 0 | V57: =IF(((SUM(V53:V54)-V55)/2)<0, 0, (SUM(V53:V54)-V55)/2) -> 0 | X57: =IF(((SUM(X53:X54)-X55)/2)<0, 0, (SUM(X53:X54)-X55)/2) -> 0 | Z57: =IF(((SUM(Z53:Z54)-Z55)/2)<0, 0, (SUM(Z53:Z54)-Z55)/2) -> 0
A58: Reduced UCC | B58: =B57+B52 -> 0 | D58: =D57+D52 -> 0 | F58: =F57+F52 -> 156082.5 | H58: =H57+H52 -> 318336.5 | J58: =J57+J52 -> 325270.2 | L58: =L57+L52 -> 325061.48 | N58: =N57+N52 -> 297491.084 | P58: =P57+P52 -> 243802.4472 | R58: =R57+R52 -> 195041.9578 | T58: =T57+T52 -> 156033.5662 | V58: =V57+V52 -> 124826.853 | X58: =X57+X52 -> 99861.48237 | Z58: =Z57+Z52 -> 79889.1859
A59: CCA Rate Class | B59: ='3. Cost_of_Service_Parameters'!G63 -> 8 | D59: ='3. Cost_of_Service_Parameters'!I63 -> 8 | F59: ='3. Cost_of_Service_Parameters'!K63 -> 8 | H59: ='3. Cost_of_Service_Parameters'!M63 -> 8 | J59: ='3. Cost_of_Service_Parameters'!O63 -> 8 | L59: ='3. Cost_of_Service_Parameters'!Q63 -> 8 | N59: ='3. Cost_of_Service_Parameters'!S63 -> 8 | P59: ='3. Cost_of_Service_Parameters'!U63 -> 8 | R59: ='3. Cost_of_Service_Parameters'!W63 -> 8 | T59: ='3. Cost_of_Service_Parameters'!Y63 -> 8 | V59: ='3. Cost_of_Service_Parameters'!AA63 -> 8 | X59: ='3. Cost_of_Service_Parameters'!AC63 -> 8 | Z59: ='3. Cost_of_Service_Parameters'!AE63 -> 8
A60: CCA Rate | B60: ='3. Cost_of_Service_Parameters'!G64 -> 0.2 | D60: ='3. Cost_of_Service_Parameters'!I64 -> 0.2 | F60: ='3. Cost_of_Service_Parameters'!K64 -> 0.2 | H60: ='3. Cost_of_Service_Parameters'!M64 -> 0.2 | J60: ='3. Cost_of_Service_Parameters'!O64 -> 0.2 | L60: ='3. Cost_of_Service_Parameters'!Q64 -> 0.2 | N60: ='3. Cost_of_Service_Parameters'!S64 -> 0.2 | P60: ='3. Cost_of_Service_Parameters'!U64 -> 0.2 | R60: ='3. Cost_of_Service_Parameters'!W64 -> 0.2 | T60: ='3. Cost_of_Service_Parameters'!Y64 -> 0.2 | V60: ='3. Cost_of_Service_Parameters'!AA64 -> 0.2 | X60: ='3. Cost_of_Service_Parameters'!AC64 -> 0.2 | Z60: ='3. Cost_of_Service_Parameters'!AE64 -> 0.2
A61: CCA | B61: =B60*B58 -> 0 | D61: =D60*D58 -> 0 | F61: =F60*F58 -> 31216.5 | H61: =H60*H58 -> 63667.3 | J61: =J60*J58 -> 65054.04 | L61: =L60*L58 -> 65012.296 | N61: =N60*N58 -> 59498.2168 | P61: =P60*P58 -> 48760.48944 | R61: =R60*R58 -> 39008.39155 | T61: =T60*T58 -> 31206.71324 | V61: =V60*V58 -> 24965.37059 | X61: =X60*X58 -> 19972.29647 | Z61: =Z60*Z58 -> 15977.83718
A62: Closing UCC | B62: =IF((B56-B61)<0, 0, B56-B61) -> 0 | D62: =IF((D56-D61)<0, 0, D56-D61) -> 0 | F62: =IF((F56-F61)<0, 0, F56-F61) -> 280948.5 | H62: =IF((H56-H61)<0, 0, H56-H61) -> 292057.2 | J62: =IF((J56-J61)<0, 0, J56-J61) -> 293429.16 | L62: =IF((L56-L61)<0, 0, L56-L61) -> 291681.504 | N62: =IF((N56-N61)<0, 0, N56-N61) -> 243802.4472 | P62: =IF((P56-P61)<0, 0, P56-P61) -> 195041.9578 | R62: =IF((R56-R61)<0, 0, R56-R61) -> 156033.5662 | T62: =IF((T56-T61)<0, 0, T56-T61) -> 124826.853 | V62: =IF((V56-V61)<0, 0, V56-V61) -> 99861.48237 | X62: =IF((X56-X61)<0, 0, X56-X61) -> 79889.1859 | Z62: =IF((Z56-Z61)<0, 0, Z56-Z61) -> 63911.34872
A64: UCC - Applications Software | B64: =B49 -> 2006 | D64: =D49 -> 2007 | F64: =F49 -> 2008 | H64: =H49 -> 2009 | J64: =J49 -> 2010 | L64: =L49 -> 2011 | N64: =N49 -> 2012 | P64: =P49 -> 2013 | R64: =R49 -> 2014 | T64: =T49 -> 2015 | V64: =V49 -> 2016 | X64: =X49 -> 2017 | Z64: =Z49 -> 2018
B65: =B50 -> Audited Actual | D65: =D50 -> Audited Actual | F65: =F50 -> Audited Actual | H65: =H50 -> Audited Actual | J65: =J50 -> Audited Actual | L65: =L50 -> Audited Actual | N65: =N50 -> Forecast | P65: =P50 -> Forecast | R65: =R50 -> Forecast | T65: =T50 -> Forecast | V65: =V50 -> Forecast | X65: =X50 -> Forecast | Z65: =Z50 -> Forecast
A67: Opening UCC | B67: 0 | D67: =B70-B75 -> 0 | F67: =D70-D75 -> 0 | H67: =F70-F75 -> 0 | J67: =H70-H75 -> 0 | L67: =J70-J75 -> 4688.83 | N67: =L70-L75 -> 94919.9165 | P67: =N70-N75 -> 18934.95 | R67: =P70-P75 -> 0 | T67: =R70-R75 -> 0 | V67: =T70-T75 -> 0 | X67: =V70-V75 -> 0 | Z67: =X70-X75 -> 0
A68: Capital Additions Applications Software | B68: ='2. Smart_Meter_Costs'!G191 -> 0 | D68: ='2. Smart_Meter_Costs'!I191 -> 0 | F68: ='2. Smart_Meter_Costs'!K191 -> 0 | H68: ='2. Smart_Meter_Costs'!M191 -> 0 | J68: ='2. Smart_Meter_Costs'!O191 -> 9377.66 | L68: ='2. Smart_Meter_Costs'!Q191 -> 189839.833 | N68: ='2. Smart_Meter_Costs'!S191 -> 37869.9 | P68: ='2. Smart_Meter_Costs'!U191 -> 0 | R68: ='2. Smart_Meter_Costs'!W191 -> 0 | T68: ='2. Smart_Meter_Costs'!Y191 -> 0 | V68: ='2. Smart_Meter_Costs'!AA191 -> 0 | X68: ='2. Smart_Meter_Costs'!AC191 -> 0 | Z68: ='2. Smart_Meter_Costs'!AE191 -> 0
A69: Retirements/Removals (if applicable)
A70: UCC Before Half Year Rule | B70: =SUM(B67:B68)-B69 -> 0 | D70: =SUM(D67:D68)-D69 -> 0 | F70: =SUM(F67:F68)-F69 -> 0 | H70: =SUM(H67:H68)-H69 -> 0 | J70: =SUM(J67:J68)-J69 -> 9377.66 | L70: =SUM(L67:L68)-L69 -> 194528.663 | N70: =SUM(N67:N68)-N69 -> 132789.8165 | P70: =SUM(P67:P68)-P69 -> 18934.95 | R70: =SUM(R67:R68)-R69 -> 0 | T70: =SUM(T67:T68)-T69 -> 0 | V70: =SUM(V67:V68)-V69 -> 0 | X70: =SUM(X67:X68)-X69 -> 0 | Z70: =SUM(Z67:Z68)-Z69 -> 0
A71: Half Year Rule (1/2 Additions - Disposals) | B71: =IF(((SUM(B68:B68)-B69)/2)<0, 0, (SUM(B68:B68)-B69)/2) -> 0 | D71: =IF(((SUM(D68:D68)-D69)/2)<0, 0, (SUM(D68:D68)-D69)/2) -> 0 | F71: =IF(((SUM(F68:F68)-F69)/2)<0, 0, (SUM(F68:F68)-F69)/2) -> 0 | H71: =IF(((SUM(H68:H68)-H69)/2)<0, 0, (SUM(H68:H68)-H69)/2) -> 0 | J71: =IF(((SUM(J68:J68)-J69)/2)<0, 0, (SUM(J68:J68)-J69)/2) -> 4688.83 | L71: =IF(((SUM(L68:L68)-L69)/2)<0, 0, (SUM(L68:L68)-L69)/2) -> 94919.9165 | N71: =IF(((SUM(N68:N68)-N69)/2)<0, 0, (SUM(N68:N68)-N69)/2) -> 18934.95 | P71: =IF(((SUM(P68:P68)-P69)/2)<0, 0, (SUM(P68:P68)-P69)/2) -> 0 | R71: =IF(((SUM(R68:R68)-R69)/2)<0, 0, (SUM(R68:R68)-R69)/2) -> 0 | T71: =IF(((SUM(T68:T68)-T69)/2)<0, 0, (SUM(T68:T68)-T69)/2) -> 0 | V71: =IF(((SUM(V68:V68)-V69)/2)<0, 0, (SUM(V68:V68)-V69)/2) -> 0 | X71: =IF(((SUM(X68:X68)-X69)/2)<0, 0, (SUM(X68:X68)-X69)/2) -> 0 | Z71: =IF(((SUM(Z68:Z68)-Z69)/2)<0, 0, (SUM(Z68:Z68)-Z69)/2) -> 0
A72: Reduced UCC | B72: =B71+B67 -> 0 | D72: =D71+D67 -> 0 | F72: =F71+F67 -> 0 | H72: =H71+H67 -> 0 | J72: =J71+J67 -> 4688.83 | L72: =L71+L67 -> 99608.7465 | N72: =N71+N67 -> 113854.8665 | P72: =P71+P67 -> 18934.95 | R72: =R71+R67 -> 0 | T72: =T71+T67 -> 0 | V72: =V71+V67 -> 0 | X72: =X71+X67 -> 0 | Z72: =Z71+Z67 -> 0
A73: CCA Rate Class | B73: ='3. Cost_of_Service_Parameters'!G66 -> 12 | D73: ='3. Cost_of_Service_Parameters'!I66 -> 12 | F73: ='3. Cost_of_Service_Parameters'!K66 -> 12 | H73: ='3. Cost_of_Service_Parameters'!M66 -> 12 | J73: ='3. Cost_of_Service_Parameters'!O66 -> 12 | L73: ='3. Cost_of_Service_Parameters'!Q66 -> 12 | N73: ='3. Cost_of_Service_Parameters'!S66 -> 12 | P73: ='3. Cost_of_Service_Parameters'!U66 -> 12 | R73: ='3. Cost_of_Service_Parameters'!W66 -> 12 | T73: ='3. Cost_of_Service_Parameters'!Y66 -> 12 | V73: ='3. Cost_of_Service_Parameters'!AA66 -> 12 | X73: ='3. Cost_of_Service_Parameters'!AC66 -> 12 | Z73: ='3. Cost_of_Service_Parameters'!AE66 -> 12
A74: CCA Rate | B74: ='3. Cost_of_Service_Parameters'!G67 -> 1 | D74: ='3. Cost_of_Service_Parameters'!I67 -> 1 | F74: ='3. Cost_of_Service_Parameters'!K67 -> 1 | H74: ='3. Cost_of_Service_Parameters'!M67 -> 1 | J74: ='3. Cost_of_Service_Parameters'!O67 -> 1 | L74: ='3. Cost_of_Service_Parameters'!Q67 -> 1 | N74: ='3. Cost_of_Service_Parameters'!S67 -> 1 | P74: ='3. Cost_of_Service_Parameters'!U67 -> 1 | R74: ='3. Cost_of_Service_Parameters'!W67 -> 1 | T74: ='3. Cost_of_Service_Parameters'!Y67 -> 1 | V74: ='3. Cost_of_Service_Parameters'!AA67 -> 1 | X74: ='3. Cost_of_Service_Parameters'!AC67 -> 1 | Z74: ='3. Cost_of_Service_Parameters'!AE67 -> 1
A75: CCA | B75: =B74*B72 -> 0 | D75: =D74*D72 -> 0 | F75: =F74*F72 -> 0 | H75: =H74*H72 -> 0 | J75: =J74*J72 -> 4688.83 | L75: =L74*L72 -> 99608.7465 | N75: =N74*N72 -> 113854.8665 | P75: =P74*P72 -> 18934.95 | R75: =R74*R72 -> 0 | T75: =T74*T72 -> 0 | V75: =V74*V72 -> 0 | X75: =X74*X72 -> 0 | Z75: =Z74*Z72 -> 0
A76: Closing UCC | B76: =IF((B70-B75)<0, 0, B70-B75) -> 0 | D76: =IF((D70-D75)<0, 0, D70-D75) -> 0 | F76: =IF((F70-F75)<0, 0, F70-F75) -> 0 | H76: =IF((H70-H75)<0, 0, H70-H75) -> 0 | J76: =IF((J70-J75)<0, 0, J70-J75) -> 4688.83 | L76: =IF((L70-L75)<0, 0, L70-L75) -> 94919.9165 | N76: =IF((N70-N75)<0, 0, N70-N75) -> 18934.95 | P76: =IF((P70-P75)<0, 0, P70-P75) -> 0 | R76: =IF((R70-R75)<0, 0, R70-R75) -> 0 | T76: =IF((T70-T75)<0, 0, T70-T75) -> 0 | V76: =IF((V70-V75)<0, 0, V70-V75) -> 0 | X76: =IF((X70-X75)<0, 0, X70-X75) -> 0 | Z76: =IF((Z70-Z75)<0, 0, Z70-Z75) -> 0

Sheet 7_Taxes_PILs
A18: PILs Calculation
C20: ='2. Smart_Meter_Costs'!G18& " " &'2. Smart_Meter_Costs'!G19 -> 2006 Audited Actual | E20: ='2. Smart_Meter_Costs'!I18& " " &'2. Smart_Meter_Costs'!I19 -> 2007 Audited Actual | G20: ='2. Smart_Meter_Costs'!K18& " " &'2. Smart_Meter_Costs'!K19 -> 2008 Audited Actual | I20: ='2. Smart_Meter_Costs'!M18& " " &'2. Smart_Meter_Costs'!M19 -> 2009 Audited Actual | K20: ='2. Smart_Meter_Costs'!O18& " " &'2. Smart_Meter_Costs'!O19 -> 2010 Audited Actual | M20: ='2. Smart_Meter_Costs'!Q18& " " &'2. Smart_Meter_Costs'!Q19 -> 2011 Audited Actual | O20: ='2. Smart_Meter_Costs'!S18& " " &'2. Smart_Meter_Costs'!S19 -> 2012 Forecast | Q20: ='2. Smart_Meter_Costs'!U18& " " &'2. Smart_Meter_Costs'!U19 -> 2013 Forecast | S20: ='2. Smart_Meter_Costs'!W18& " " &'2. Smart_Meter_Costs'!W19 -> 2014 Forecast | U20: ='2. Smart_Meter_Costs'!Y18& " " &'2. Smart_Meter_Costs'!Y19 -> 2015 Forecast | W20: ='2. Smart_Meter_Costs'!AA18& " " &'2. Smart_Meter_Costs'!AA19 -> 2016 Forecast | Y20: ='2. Smart_Meter_Costs'!AC18& " " &'2. Smart_Meter_Costs'!AC19 -> 2017 Forecast | AA20: ='2. Smart_Meter_Costs'!AE18& " " &'2. Smart_Meter_Costs'!AE19 -> 2018 Forecast
A22: INCOME TAX
B23: Net Income | C23: ='5. SM_Rev_Reqt'!G$66 -> 0 | E23: ='5. SM_Rev_Reqt'!I$66 -> 0 | G23: ='5. SM_Rev_Reqt'!K$66 -> 11908.38092 | I23: ='5. SM_Rev_Reqt'!M$66 -> 32228.88107 | K23: ='5. SM_Rev_Reqt'!O$66 -> 106754.288 | M23: ='5. SM_Rev_Reqt'!Q$66 -> 185017.1363 | O23: ='5. SM_Rev_Reqt'!S$66 -> 192397.2241 | Q23: ='5. SM_Rev_Reqt'!U$66 -> 174545.0961 | S23: ='5. SM_Rev_Reqt'!W$66 -> 152746.8037 | U23: ='5. SM_Rev_Reqt'!Y$66 -> 135337.6526 | W23: ='5. SM_Rev_Reqt'!AA$66 -> 121732.2549 | Y23: ='5. SM_Rev_Reqt'!AC$66 -> 108382.9162 | AA23: ='5. SM_Rev_Reqt'!AE$66 -> 95033.57744
B24: Amortization | C24: ='5. SM_Rev_Reqt'!G$64 -> 0 | E24: ='5. SM_Rev_Reqt'!I$64 -> 0 | G24: ='5. SM_Rev_Reqt'!K$64 -> 39839 | I24: ='5. SM_Rev_Reqt'!M$64 -> 111517.1333 | K24: ='5. SM_Rev_Reqt'!O$64 -> 283920.6033 | M24: ='5. SM_Rev_Reqt'!Q$64 -> 479229.5973 | O24: ='5. SM_Rev_Reqt'!S$64 -> 541644.4135 | Q24: ='5. SM_Rev_Reqt'!U$64 -> 549314.5724 | S24: ='5. SM_Rev_Reqt'!W$64 -> 542361.4304 | U24: ='5. SM_Rev_Reqt'!Y$64 -> 358733.3504 | W24: ='5. SM_Rev_Reqt'!AA$64 -> 345479.7804 | Y24: ='5. SM_Rev_Reqt'!AC$64 -> 345479.7804 | AA24: ='5. SM_Rev_Reqt'!AE$64 -> 345479.7804
B25: CCA - Smart Meters | C25: =-'6. UCC_Calculation'!B31 -> 0 | E25: =-'6. UCC_Calculation'!D31 -> 0 | G25: =-'6. UCC_Calculation'!F31 -> 0 | I25: =-'6. UCC_Calculation'!H31 -> -37310.4 | K25: =-'6. UCC_Calculation'!J31 -> -388030.82 | M25: =-'6. UCC_Calculation'!L31 -> -728021.256 | O25: =-'6. UCC_Calculation'!N31 -> -689629.0954 | Q25: =-'6. UCC_Calculation'!P31 -> -562190.8668 | S25: =-'6. UCC_Calculation'!R31 -> -449752.6935 | U25: =-'6. UCC_Calculation'!T31 -> -359802.1548 | W25: =-'6. UCC_Calculation'!V31 -> -287841.7238 | Y25: =-'6. UCC_Calculation'!X31 -> -230273.3791 | AA25: =-'6. UCC_Calculation'!Z31 -> -184218.7032
B26: CCA - Computers | C26: =-'6. UCC_Calculation'!B46 -> 0 | E26: =-'6. UCC_Calculation'!D46 -> 0 | G26: =-'6. UCC_Calculation'!F46 -> -80942.125 | I26: =-'6. UCC_Calculation'!H46 -> -163868.0312 | K26: =-'6. UCC_Calculation'!J46 -> -203993.8251 | M26: =-'6. UCC_Calculation'!L46 -> -179426.9522 | O26: =-'6. UCC_Calculation'!N46 -> -84620.59842 | Q26: =-'6. UCC_Calculation'!P46 -> -38079.26929 | S26: =-'6. UCC_Calculation'!R46 -> -17135.67118 | U26: =-'6. UCC_Calculation'!T46 -> -7711.052031 | W26: =-'6. UCC_Calculation'!V46 -> -3469.973414 | Y26: =-'6. UCC_Calculation'!X46 -> -1561.488036 | AA26: =-'6. UCC_Calculation'!Z46 -> -702.6696163
B27: CCA - Applications Software | C27: =-'6. UCC_Calculation'!B75 -> 0 | E27: =-'6. UCC_Calculation'!D75 -> 0 | G27: =-'6. UCC_Calculation'!F75 -> 0 | I27: =-'6. UCC_Calculation'!H75 -> 0 | K27: =-'6. UCC_Calculation'!J75 -> -4688.83 | M27: =-'6. UCC_Calculation'!L75 -> -99608.7465 | O27: =-'6. UCC_Calculation'!N75 -> -113854.8665 | Q27: =-'6. UCC_Calculation'!P75 -> -18934.95 | S27: =-'6. UCC_Calculation'!R75 -> 0 | U27: =-'6. UCC_Calculation'!T75 -> 0 | W27: =-'6. UCC_Calculation'!V75 -> 0 | Y27: =-'6. UCC_Calculation'!X75 -> 0 | AA27: =-'6. UCC_Calculation'!Z75 -> 0
B28: CCA - Other Equipment | C28: =-'6. UCC_Calculation'!B61 -> 0 | E28: =-'6. UCC_Calculation'!D61 -> 0 | G28: =-'6. UCC_Calculation'!F61 -> -31216.5 | I28: =-'6. UCC_Calculation'!H61 -> -63667.3 | K28: =-'6. UCC_Calculation'!J61 -> -65054.04 | M28: =-'6. UCC_Calculation'!L61 -> -65012.296 | O28: =-'6. UCC_Calculation'!N61 -> -59498.2168 | Q28: =-'6. UCC_Calculation'!P61 -> -48760.48944 | S28: =-'6. UCC_Calculation'!R61 -> -39008.39155 | U28: =-'6. UCC_Calculation'!T61 -> -31206.71324 | W28: =-'6. UCC_Calculation'!V61 -> -24965.37059 | Y28: =-'6. UCC_Calculation'!X61 -> -19972.29647 | AA28: =-'6. UCC_Calculation'!Z61 -> -15977.83718
B29: Change in taxable income | C29: =SUM(C23:C28) -> 0 | E29: 0 | G29: -60411.24408 | I29: -121099.7168 | K29: -271092.6237 | M29: -407822.5171 | O29: -213561.1395 | Q29: 55894.0929 | S29: =SUM(S23:S28) -> 189211.4779 | U29: =SUM(U23:U28) -> 95351.08288 | W29: =SUM(W23:W28) -> 150934.9674 | Y29: =SUM(Y23:Y28) -> 202055.533 | AA29: =SUM(AA23:AA28) -> 239614.1478
B31: Tax Rate (from Sheet 3) | C31: ='3. Cost_of_Service_Parameters'!G40 -> 0.3612 | E31: ='3. Cost_of_Service_Parameters'!I40 -> 0.3612 | G31: ='3. Cost_of_Service_Parameters'!K40 -> 0.335 | I31: ='3. Cost_of_Service_Parameters'!M40 -> 0.33 | K31: ='3. Cost_of_Service_Parameters'!O40 -> 0.31 | M31: ='3. Cost_of_Service_Parameters'!Q40 -> 0.2825 | O31: ='3. Cost_of_Service_Parameters'!S40 -> 0.265 | Q31: ='3. Cost_of_Service_Parameters'!U40 -> 0.265 | S31: ='3. Cost_of_Service_Parameters'!W40 -> 0.265 | U31: ='3. Cost_of_Service_Parameters'!Y40 -> 0.265 | W31: ='3. Cost_of_Service_Parameters'!AA40 -> 0.265 | Y31: ='3. Cost_of_Service_Parameters'!AC40 -> 0.265 | AA31: ='3. Cost_of_Service_Parameters'!AE40 -> 0.265
B33: Income Taxes Payable | C33: =C29*C31 -> 0 | E33: 0 | G33: -20237.76677 | I33: -39962.90656 | K33: -84038.71335 | M33: -115209.8611 | O33: -56593.70197 | Q33: =Q29*Q31 -> 14811.93462 | S33: =S29*S31 -> 50141.04164 | U33: =U29*U31 -> 25268.03696 | W33: =W29*W31 -> 39997.76636 | Y33: =Y29*Y31 -> 53544.71623 | AA33: =AA29*AA31 -> 63497.74916
A35: ONTARIO CAPITAL TAX
B36: Smart Meters | C36: ='4. SM_Assets_and_Rate_Base'!G35 -> 0 | E36: ='4. SM_Assets_and_Rate_Base'!I35 -> 0 | G36: ='4. SM_Assets_and_Rate_Base'!K35 -> 0 | I36: ='4. SM_Assets_and_Rate_Base'!M35 -> 360667.2 | K36: ='4. SM_Assets_and_Rate_Base'!O35 -> 3437557.233 | M36: ='4. SM_Assets_and_Rate_Base'!Q35 -> 4133772.4 | O36: ='4. SM_Assets_and_Rate_Base'!S35 -> 3931881.109 | Q36: ='4. SM_Assets_and_Rate_Base'!U35 -> 3621618.048 | S36: ='4. SM_Assets_and_Rate_Base'!W35 -> 3311354.988 | U36: ='4. SM_Assets_and_Rate_Base'!Y35 -> 3001091.928 | W36: ='4. SM_Assets_and_Rate_Base'!AA35 -> 2690828.867 | Y36: ='4. SM_Assets_and_Rate_Base'!AC35 -> 2380565.807 | AA36: ='4. SM_Assets_and_Rate_Base'!AE35 -> 2070302.746
B37: Computer Hardware | C37: ='4. SM_Assets_and_Rate_Base'!G54 -> 0 | E37: ='4. SM_Assets_and_Rate_Base'!I54 -> 0 | G37: ='4. SM_Assets_and_Rate_Base'!K54 -> 0 | I37: ='4. SM_Assets_and_Rate_Base'!M54 -> 10629.9 | K37: ='4. SM_Assets_and_Rate_Base'!O54 -> 138179.73 | M37: ='4. SM_Assets_and_Rate_Base'!Q54 -> 106948.19 | O37: ='4. SM_Assets_and_Rate_Base'!S54 -> 75716.65 | Q37: ='4. SM_Assets_and_Rate_Base'!U54 -> 44485.11 | S37: ='4. SM_Assets_and_Rate_Base'!W54 -> 13253.57 | U37: ='4. SM_Assets_and_Rate_Base'!Y54 -> 0 | W37: ='4. SM_Assets_and_Rate_Base'!AA54 -> 0 | Y37: ='4. SM_Assets_and_Rate_Base'!AC54 -> 0 | AA37: ='4. SM_Assets_and_Rate_Base'!AE54 -> 0
B38: Computer Software (Including Application Software) | C38: ='4. SM_Assets_and_Rate_Base'!G73 -> 0 | E38: ='4. SM_Assets_and_Rate_Base'!I73 -> 0 | G38: ='4. SM_Assets_and_Rate_Base'!K73 -> 264901.5 | I38: ='4. SM_Assets_and_Rate_Base'!M73 -> 347592.8 | K38: ='4. SM_Assets_and_Rate_Base'!O73 -> 409891.3 | M38: ='4. SM_Assets_and_Rate_Base'!Q73 -> 469199.724 | O38: ='4. SM_Assets_and_Rate_Base'!S73 -> 338253.362 | Q38: ='4. SM_Assets_and_Rate_Base'!U73 -> 165650.11 | S38: ='4. SM_Assets_and_Rate_Base'!W73 -> 0 | U38: ='4. SM_Assets_and_Rate_Base'!Y73 -> 0 | W38: ='4. SM_Assets_and_Rate_Base'!AA73 -> 0 | Y38: ='4. SM_Assets_and_Rate_Base'!AC73 -> 0 | AA38: ='4. SM_Assets_and_Rate_Base'!AE73 -> 0
B39: Tools & Equipment | C39: ='4. SM_Assets_and_Rate_Base'!G92 -> 0 | E39: ='4. SM_Assets_and_Rate_Base'!I92 -> 0 | G39: ='4. SM_Assets_and_Rate_Base'!K92 -> 0 | I39: ='4. SM_Assets_and_Rate_Base'!M92 -> 0 | K39: ='4. SM_Assets_and_Rate_Base'!O92 -> 0 | M39: ='4. SM_Assets_and_Rate_Base'!Q92 -> 0 | O39: ='4. SM_Assets_and_Rate_Base'!S92 -> 0 | Q39: ='4. SM_Assets_and_Rate_Base'!U92 -> 0 | S39: ='4. SM_Assets_and_Rate_Base'!W92 -> 0 | U39: ='4. SM_Assets_and_Rate_Base'!Y92 -> 0 | W39: ='4. SM_Assets_and_Rate_Base'!AA92 -> 0 | Y39: ='4. SM_Assets_and_Rate_Base'!AC92 -> 0 | AA39: ='4. SM_Assets_and_Rate_Base'!AE92 -> 0
B40: Other Equipment | C40: ='4. SM_Assets_and_Rate_Base'!G111 -> 0 | E40: ='4. SM_Assets_and_Rate_Base'!I111 -> 0 | G40: ='4. SM_Assets_and_Rate_Base'!K111 -> 301759.5 | I40: ='4. SM_Assets_and_Rate_Base'!M111 -> 353231.9667 | K40: ='4. SM_Assets_and_Rate_Base'!O111 -> 391647.7 | M40: ='4. SM_Assets_and_Rate_Base'!Q111 -> 422579.052 | O40: ='4. SM_Assets_and_Rate_Base'!S111 -> 399368.7973 | Q40: ='4. SM_Assets_and_Rate_Base'!U111 -> 364152.0773 | S40: ='4. SM_Assets_and_Rate_Base'!W111 -> 328935.3573 | U40: ='4. SM_Assets_and_Rate_Base'!Y111 -> 293718.6373 | W40: ='4. SM_Assets_and_Rate_Base'!AA111 -> 258501.9173 | Y40: ='4. SM_Assets_and_Rate_Base'!AC111 -> 223285.1973 | AA40: ='4. SM_Assets_and_Rate_Base'!AE111 -> 188068.4773
B41: Rate Base | C41: =SUM(C36:C40) -> 0 | E41: =SUM(E36:E40) -> 0 | G41: =SUM(G36:G40) -> 566661 | I41: =SUM(I36:I40) -> 1072121.867 | K41: =SUM(K36:K40) -> 4377275.963 | M41: =SUM(M36:M40) -> 5132499.366 | O41: =SUM(O36:O40) -> 4745219.918 | Q41: =SUM(Q36:Q40) -> 4195905.346 | S41: =SUM(S36:S40) -> 3653543.915 | U41: =SUM(U36:U40) -> 3294810.565 | W41: =SUM(W36:W40) -> 2949330.785 | Y41: =SUM(Y36:Y40) -> 2603851.004 | AA41: =SUM(AA36:AA40) -> 2258371.224
B42: Less: Exemption
B43: Deemed Taxable Capital | C43: =C41-C42 -> 0 | E43: 0 | G43: 566661 | I43: 1072121.867 | K43: 4377275.963 | M43: 5132499.366 | O43: 4745219.918 | Q43: 4195905.346 | S43: =S41-S42 -> 3653543.915 | U43: =U41-U42 -> 3294810.565 | W43: =W41-W42 -> 2949330.785 | Y43: =Y41-Y42 -> 2603851.004 | AA43: =AA41-AA42 -> 2258371.224
B45: Ontario Capital Tax Rate (from Sheet 3) | C45: ='3. Cost_of_Service_Parameters'!G41 -> 0.003 | E45: ='3. Cost_of_Service_Parameters'!I41 -> 0.00225 | G45: ='3. Cost_of_Service_Parameters'!K41 -> 0.00225 | I45: ='3. Cost_of_Service_Parameters'!M41 -> 0.00225 | K45: ='3. Cost_of_Service_Parameters'!O41 -> 0.00075 | M45: ='3. Cost_of_Service_Parameters'!Q41 -> 0 | O45: ='3. Cost_of_Service_Parameters'!S41 -> 0 | Q45: ='3. Cost_of_Service_Parameters'!U41 -> 0 | S45: ='3. Cost_of_Service_Parameters'!W41 -> 0 | U45: ='3. Cost_of_Service_Parameters'!Y41 -> 0 | W45: ='3. Cost_of_Service_Parameters'!AA41 -> 0 | Y45: ='3. Cost_of_Service_Parameters'!AC41 -> 0 | AA45: ='3. Cost_of_Service_Parameters'!AE41 -> 0
B47: Net Amount (Taxable Capital x Rate) | C47: =C43*C45 -> 0 | E47: 0 | G47: 1274.98725 | I47: 2412.2742 | K47: 3282.956972 | M47: 0 | O47: 0 | Q47: =Q43*Q45 -> 0 | S47: =S43*S45 -> 0 | U47: =U43*U45 -> 0 | W47: =W43*W45 -> 0 | Y47: =Y43*Y45 -> 0 | AA47: =AA43*AA45 -> 0
B50: Change in Income Taxes Payable | C50: =C33 -> 0 | E50: 0 | G50: -20237.76677 | I50: -39962.90656 | K50: -84038.71335 | M50: -115209.8611 | O50: -56593.70197 | Q50: =Q33 -> 14811.93462 | S50: =S33 -> 50141.04164 | U50: =U33 -> 25268.03696 | W50: =W33 -> 39997.76636 | Y50: =Y33 -> 53544.71623 | AA50: =AA33 -> 63497.74916
B51: Change in OCT | C51: =C47 -> 0 | E51: 0 | G51: 1274.98725 | I51: 2412.2742 | K51: 3282.956972 | M51: 0 | O51: 0 | Q51: =Q47 -> 0 | S51: =S47 -> 0 | U51: =U47 -> 0 | W51: =W47 -> 0 | Y51: =Y47 -> 0 | AA51: =AA47 -> 0
B52: PILs | C52: =SUM(C50:C51) -> 0 | E52: 0 | G52: -18962.77952 | I52: -37550.63236 | K52: -80755.75637 | M52: -115209.8611 | O52: -56593.70197 | Q52: 14811.93462 | S52: =SUM(S50:S51) -> 50141.04164 | U52: =SUM(U50:U51) -> 25268.03696 | W52: =SUM(W50:W51) -> 39997.76636 | Y52: =SUM(Y50:Y51) -> 53544.71623 | AA52: =SUM(AA50:AA51) -> 63497.74916
A55: Gross Up PILs
B56: Tax Rate | C56: =C31 -> 0.3612 | E56: =E31 -> 0.3612 | G56: 0.335 | I56: 0.33 | K56: 0.31 | M56: 0.2825 | O56: 0.265 | Q56: =Q31 -> 0.265 | S56: =S31 -> 0.265 | U56: =U31 -> 0.265 | W56: =W31 -> 0.265 | Y56: =Y31 -> 0.265 | AA56: =AA31 -> 0.265
B57: Change in Income Taxes Payable | C57: =C50/(1-C56) -> 0 | E57: 0 | G57: -30432.73198 | I57: -59646.12919 | K57: -121795.2367 | M57: -160571.235 | O57: -76998.23397 | Q57: 20152.292 | S57: =S50/(1-S56) -> 68219.10427 | U57: =U50/(1-U56) -> 34378.28158 | W57: =W50/(1-W56) -> 54418.72975 | Y57: =Y50/(1-Y56) -> 72849.95406 | AA57: =AA50/(1-AA56) -> 86391.49546
B58: Change in OCT | C58: =C51 -> 0 | E58: 0 | G58: 1274.98725 | I58: 2412.2742 | K58: 3282.956972 | M58: 0 | O58: 0 | Q58: =Q51 -> 0 | S58: =S51 -> 0 | U58: =U51 -> 0 | W58: =W51 -> 0 | Y58: =Y51 -> 0 | AA58: =AA51 -> 0
B59: PILs | C59: =SUM(C57:C58) -> 0 | E59: 0 | G59: -29157.74473 | I59: -57233.85499 | K59: -118512.2798 | M59: -160571.235 | O59: -76998.23397 | Q59: 20152.292 | S59: =SUM(S57:S58) -> 68219.10427 | U59: =SUM(U57:U58) -> 34378.28158 | W59: =SUM(W57:W58) -> 54418.72975 | Y59: =SUM(Y57:Y58) -> 72849.95406 | AA59: =SUM(AA57:AA58) -> 86391.49546

Sheet 8. Funding_Adder_Revs
B13: This worksheet calculates the funding adder revenues.
J20: Account 1555 - Sub-account Funding Adder Revenues
B22: Interest Rates | C22: Approved Deferral and Variance Accounts | D22: CWIP | F22: Date | G22: Year | H22: Quarter | J22: Opening Balance (Principal) | K22: Funding Adder Revenues | L22: Interest Rate | M22: Interest | N22: Closing Balance | O22: Annual amounts | P22: Board Approved Smart Meter Funding Adder (from Tariff)
B24: 2006 Q1 | F24: 2006-01-01 | G24: =YEAR(F24) -> 2006 | H24: =IF(MONTH(F24)=0,"",IF(MONTH(F24)<4,"Q1",IF(MONTH(F24)<7,"Q2",IF(MONTH(F24)<10,"Q3","Q4")))) -> Q1 | I24: =CONCATENATE(G24," ",H24) -> 2006 Q1 | J24: 0 | K24: 0 | L24: =VLOOKUP(I24,$B$22:$D$55,2) -> 0 | M24: =ROUND(J24*L24/12,2) -> 0 | N24: =J24+K24+M24 -> 0
B25: 2006 Q2 | C25: 0.0414 | D25: 0.0468 | F25: 2006-02-01 | G25: =YEAR(F25) -> 2006 | H25: =IF(MONTH(F25)=0,"",IF(MONTH(F25)<4,"Q1",IF(MONTH(F25)<7,"Q2",IF(MONTH(F25)<10,"Q3","Q4")))) -> Q1 | I25: =CONCATENATE(G25," ",H25) -> 2006 Q1 | J25: =J24+K24 -> 0 | K25: 0 | L25: 0 | M25: =ROUND(J25*L25/12,2) -> 0 | N25: =J25+K25+M25 -> 0
B26: 2006 Q3 | C26: 0.0459 | D26: 0.0505 | F26: 2006-03-01 | G26: 2006 | H26: Q1 | I26: 2006 Q1 | J26: =J25+K25 -> 0 | K26: 0 | L26: 0 | M26: 0 | N26: 0
B27: 2006 Q4 | C27: 0.0459 | D27: 0.0472 | F27: 2006-04-01 | G27: 2006 | H27: Q2 | I27: 2006 Q2 | J27: 0 | K27: 0 | L27: 0.0414 | M27: 0 | N27: 0
B28: 2007 Q1 | C28: 0.0459 | D28: 0.0472 | F28: 2006-05-01 | G28: 2006 | H28: Q2 | I28: 2006 Q2 | J28: 0 | K28: 9726 | L28: 0.0414 | M28: 0 | N28: 9726 | P28: 0.28
B29: 2007 Q2 | C29: 0.0459 | D29: 0.0472 | F29: 2006-06-01 | G29: 2006 | H29: Q2 | I29: 2006 Q2 | J29: 9726 | K29: 4899 | L29: 0.0414 | M29: 33.55 | N29: 14658.55 | P29: 0.28
B30: 2007 Q3 | C30: 0.0459 | D30: 0.0518 | F30: 2006-07-01 | G30: 2006 | H30: Q3 | I30: 2006 Q3 | J30: 14625 | K30: 18871 | L30: 0.0459 | M30: 55.94 | N30: 33551.94 | P30: 0.28
B31: 2007 Q4 | C31: 0.0514 | D31: 0.0518 | F31: 2006-08-01 | G31: 2006 | H31: Q3 | I31: 2006 Q3 | J31: 33496 | K31: 10795 | L31: 0.0459 | M31: 128.12 | N31: 44419.12 | P31: 0.28
B32: 2008 Q1 | C32: 0.0514 | D32: 0.0518 | F32: 2006-09-01 | G32: 2006 | H32: Q3 | I32: 2006 Q3 | J32: 44291 | K32: 8929 | L32: 0.0459 | M32: 169.41 | N32: 53389.41 | P32: 0.28
B33: 2008 Q2 | C33: 0.0408 | D33: 0.0518 | F33: 2006-10-01 | G33: 2006 | H33: Q4 | I33: 2006 Q4 | J33: 53220 | K33: 8204 | L33: 0.0459 | M33: 203.57 | N33: 61627.57 | P33: 0.28
B34: 2008 Q3 | C34: 0.0335 | D34: 0.0543 | F34: 2006-11-01 | G34: 2006 | H34: Q4 | I34: 2006 Q4 | J34: 61424 | K34: 9791 | L34: 0.0459 | M34: 234.95 | N34: 71449.95 | P34: 0.28
B35: 2008 Q4 | C35: 0.0335 | D35: 0.0543 | F35: 2006-12-01 | G35: 2006 | H35: Q4 | I35: 2006 Q4 | J35: 71215 | K35: 11001 | L35: 0.0459 | M35: 272.4 | N35: 82488.4 | O35: =SUM(K24:K35)+SUM(M24:M35) -> 83313.94 | P35: 0.28
B36: 2009 Q1 | C36: 0.0245 | D36: 0.0661 | F36: 2007-01-01 | G36: 2007 | H36: Q1 | I36: 2007 Q1 | J36: 82216 | K36: 12101 | L36: 0.0459 | M36: 314.48 | N36: 94631.48 | P36: 0.28
B37: 2009 Q2 | C37: 0.01 | D37: 0.0661 | F37: 2007-02-01 | G37: 2007 | H37: Q1 | I37: 2007 Q1 | J37: 94317 | K37: 10972 | L37: 0.0459 | M37: 360.76 | N37: 105649.76 | P37: 0.28
B38: 2009 Q3 | C38: 0.0055 | D38: 0.0567 | F38: 2007-03-01 | G38: 2007 | H38: Q1 | I38: 2007 Q1 | J38: 105289 | K38: 11130 | L38: 0.0459 | M38: 402.73 | N38: 116821.73 | P38: 0.28
B39: 2009 Q4 | C39: 0.0055 | D39: 0.0466 | F39: 2007-04-01 | G39: 2007 | H39: Q2 | I39: 2007 Q2 | J39: 116419 | K39: 8399 | L39: 0.0459 | M39: 445.3 | N39: 125263.3 | P39: 0.28
B40: 2010 Q1 | C40: 0.0055 | D40: 0.0434 | F40: 2007-05-01 | G40: 2007 | H40: Q2 | I40: 2007 Q2 | J40: 124818 | K40: 9126 | L40: 0.0459 | M40: 477.43 | N40: 134421.43 | P40: 0.28
B41: 2010 Q2 | C41: 0.0055 | D41: 0.0434 | F41: 2007-06-01 | G41: 2007 | H41: Q2 | I41: 2007 Q2 | J41: 133944 | K41: 9624 | L41: 0.0459 | M41: 512.34 | N41: 144080.34 | P41: 0.28
B42: 2010 Q3 | C42: 0.0089 | D42: 0.0466 | F42: 2007-07-01 | G42: 2007 | H42: Q3 | I42: 2007 Q3 | J42: 143568 | K42: 12060 | L42: 0.0459 | M42: 549.15 | N42: 156177.15 | P42: 0.28
B43: 2010 Q4 | C43: 0.012 | D43: 0.0401 | F43: 2007-08-01 | G43: 2007 | H43: Q3 | I43: 2007 Q3 | J43: 155628 | K43: 12051 | L43: 0.0459 | M43: 595.28 | N43: 168274.28 | P43: 0.28
B44: 2011 Q1 | C44: 0.0147 | D44: 0.0429 | F44: 2007-09-01 | G44: 2007 | H44: Q3 | I44: 2007 Q3 | J44: 167679 | K44: 11204 | L44: 0.0459 | M44: 641.37 | N44: 179524.37 | P44: 0.28
B45: 2011 Q2 | C45: 0.0147 | D45: 0.0429 | F45: 2007-10-01 | G45: 2007 | H45: Q4 | I45: 2007 Q4 | J45: 178883 | K45: 7406 | L45: 0.0514 | M45: 766.22 | N45: 187055.22 | P45: 0.28
B46: 2011 Q3 | C46: 0.0147 | D46: 0.0429 | F46: 2007-11-01 | G46: 2007 | H46: Q4 | I46: 2007 Q4 | J46: 186289 | K46: 9979 | L46: 0.0514 | M46: 797.94 | N46: 197065.94 | P46: 0.28
B47: 2011 Q4 | C47: =C46 -> 0.0147 | D47: 0.0392 | F47: 2007-12-01 | G47: 2007 | H47: Q4 | I47: 2007 Q4 | J47: 196268 | K47: 11596 | L47: 0.0514 | M47: 840.68 | N47: 208704.68 | O47: =SUM(K36:K47)+SUM(M36:M47) -> 132351.68 | P47: 0.28
B48: 2012 Q1 | C48: 0.0147 | D48: 0.0392 | F48: 2008-01-01 | G48: 2008 | H48: Q1 | I48: 2008 Q1 | J48: 207864 | K48: 13947 | L48: 0.0514 | M48: 890.35 | N48: 222701.35 | P48: 0.28
B49: 2012 Q2 | C49: 0.0147 | D49: 0.0351 | F49: 2008-02-01 | G49: 2008 | H49: Q1 | I49: 2008 Q1 | J49: 221811 | K49: 8475 | L49: 0.0514 | M49: 950.09 | N49: 231236.09 | P49: 0.28
B50: 2012 Q3 | C50: 0.0147 | D50: 0.0351 | F50: 2008-03-01 | G50: 2008 | H50: Q1 | I50: 2008 Q1 | J50: 230286 | K50: 9415 | L50: 0.0514 | M50: 986.39 | N50: 240687.39 | P50: 0.28
B51: 2012 Q4 | C51: 0.0147 | D51: 0.0351 | F51: 2008-04-01 | G51: 2008 | H51: Q2 | I51: 2008 Q2 | J51: 239701 | K51: 13742 | L51: 0.0408 | M51: 814.98 | N51: 254257.98 | P51: 0.28
B52: 2013 Q1 | C52: 0.0147 | D52: 0.0351 | F52: 2008-05-01 | G52: 2008 | H52: Q2 | I52: 2008 Q2 | J52: 253443 | K52: 5120 | L52: 0.0408 | M52: 861.71 | N52: 259424.71 | P52: 0.28
B53: 2013 Q2 | C53: 0.0147 | D53: 0.0351 | F53: 2008-06-01 | G53: 2008 | H53: Q2 | I53: 2008 Q2 | J53: 258563 | K53: 15878 | L53: 0.0408 | M53: 879.11 | N53: 275320.11 | P53: 0.28
B54: 2013 Q3 | C54: 0.0147 | D54: 0.0351 | F54: 2008-07-01 | G54: 2008 | H54: Q3 | I54: 2008 Q3 | J54: 274441 | K54: 13551 | L54: 0.0335 | M54: 766.15 | N54: 288758.15 | P54: 0.28
B55: 2013 Q4 | C55: 0.0147 | D55: 0.0351 | F55: 2008-08-01 | G55: 2008 | H55: Q3 | I55: 2008 Q3 | J55: 287992 | K55: 9889 | L55: 0.0335 | M55: 803.98 | N55: 298684.98 | P55: 0.28
F56: 2008-09-01 | G56: 2008 | H56: Q3 | I56: 2008 Q3 | J56: 297881 | K56: 9948 | L56: =VLOOKUP(I56,$B$22:$D$55,2) -> 0.0335 | M56: 831.58 | N56: 308660.58 | P56: 0.28
F57: 2008-10-01 | G57: 2008 | H57: Q4 | I57: 2008 Q4 | J57: 307829 | K57: 11354 | L57: 0.0335 | M57: 859.36 | N57: 320042.36 | P57: 0.28
F58: 2008-11-01 | G58: 2008 | H58: Q4 | I58: 2008 Q4 | J58: 319183 | K58: 9579 | L58: 0.0335 | M58: 891.05 | N58: 329653.05 | P58: 0.28
F59: 2008-12-01 | G59: 2008 | H59: Q4 | I59: 2008 Q4 | J59: 328762 | K59: 10399 | L59: 0.0335 | M59: 917.79 | N59: 340078.79 | O59: =SUM(K48:K59)+SUM(M48:M59) -> 141749.54 | P59: 0.28
F60: 2009-01-01 | G60: 2009 | H60: Q1 | I60: 2009 Q1 | J60: 339161 | K60: 12501 | L60: 0.0245 | M60: 692.45 | N60: 352354.45 | P60: 0.28
F61: 2009-02-01 | G61: 2009 | H61: Q1 | I61: 2009 Q1 | J61: 351662 | K61: 9485 | L61: 0.0245 | M61: 717.98 | N61: 361864.98 | P61: 0.28
F62: 2009-03-01 | G62: 2009 | H62: Q1 | I62: 2009 Q1 | J62: 361147 | K62: 12119 | L62: 0.0245 | M62: 737.34 | N62: 374003.34 | P62: 0.28
F63: 2009-04-01 | G63: 2009 | H63: Q2 | I63: 2009 Q2 | J63: 373266 | K63: 9336 | L63: 0.01 | M63: 311.06 | N63: 382913.06 | P63: 0.28
F64: 2009-05-01 | G64: 2009 | H64: Q2 | I64: 2009 Q2 | J64: 382602 | K64: 44948 | L64: 0.01 | M64: 318.84 | N64: 427868.84 | P64: 1
F65: 2009-06-01 | G65: 2009 | H65: Q2 | I65: 2009 Q2 | J65: 427550 | K65: 42335 | L65: 0.01 | M65: 356.29 | N65: 470241.29 | P65: 1
F66: 2009-07-01 | G66: 2009 | H66: Q3 | I66: 2009 Q3 | J66: 469885 | K66: 41092 | L66: 0.0055 | M66: 215.36 | N66: 511192.36 | P66: 1
F67: 2009-08-01 | G67: 2009 | H67: Q3 | I67: 2009 Q3 | J67: 510977 | K67: 31149 | L67: 0.0055 | M67: 234.2 | N67: 542360.2 | P67: 1
F68: 2009-09-01 | G68: 2009 | H68: Q3 | I68: 2009 Q3 | J68: 542126 | K68: 41966 | L68: 0.0055 | M68: 248.47 | N68: 584340.47 | P68: 1
F69: 2009-10-01 | G69: 2009 | H69: Q4 | I69: 2009 Q4 | J69: 584092 | K69: 36023 | L69: 0.0055 | M69: 267.71 | N69: 620382.71 | P69: 1
F70: 2009-11-01 | G70: 2009 | H70: Q4 | I70: 2009 Q4 | J70: 620115 | K70: 46787 | L70: 0.0055 | M70: 284.22 | N70: 667186.22 | P70: 1
F71: 2009-12-01 | G71: 2009 | H71: Q4 | I71: 2009 Q4 | J71: 666902 | K71: 32820 | L71: 0.0055 | M71: 305.66 | N71: 700027.66 | O71: =SUM(K60:K71)+SUM(M60:M71) -> 365250.58 | P71: 1
F72: 2010-01-01 | G72: 2010 | H72: Q1 | I72: 2010 Q1 | J72: 699722 | K72: 49349 | L72: 0.0055 | M72: 320.71 | N72: 749391.71 | P72: 1
F73: 2010-02-01 | G73: 2010 | H73: Q1 | I73: 2010 Q1 | J73: 749071 | K73: 31529 | L73: 0.0055 | M73: 343.32 | N73: 780943.32 | P73: 1
F74: 2010-03-01 | G74: 2010 | H74: Q1 | I74: 2010 Q1 | J74: 780600 | K74: 51350 | L74: 0.0055 | M74: 357.78 | N74: 832307.78 | P74: 1
F75: 2010-04-01 | G75: 2010 | H75: Q2 | I75: 2010 Q2 | J75: 831950 | K75: 35917 | L75: 0.0055 | M75: 381.31 | N75: 868248.31 | P75: 1
F76: 2010-05-01 | G76: 2010 | H76: Q2 | I76: 2010 Q2 | J76: 867867 | K76: 39735 | L76: 0.0055 | M76: 397.77 | N76: 907999.77 | P76: 1
F77: 2010-06-01 | G77: 2010 | H77: Q2 | I77: 2010 Q2 | J77: 907602 | K77: 38728 | L77: 0.0055 | M77: 415.98 | N77: 946745.98 | P77: 1
F78: 2010-07-01 | G78: 2010 | H78: Q3 | I78: 2010 Q3 | J78: 946330 | K78: 45137 | L78: 0.0089 | M78: 701.86 | N78: 992168.86 | P78: 1
F79: 2010-08-01 | G79: 2010 | H79: Q3 | I79: 2010 Q3 | J79: 991467 | K79: 33691 | L79: 0.0089 | M79: 735.34 | N79: 1025893.34 | P79: 1
F80: 2010-09-01 | G80: 2010 | H80: Q3 | I80: 2010 Q3 | J80: 1025158 | K80: 44833 | L80: 0.0089 | M80: 760.33 | N80: 1070751.33 | P80: 1
F81: 2010-10-01 | G81: 2010 | H81: Q4 | I81: 2010 Q4 | J81: 1069991 | K81: 32732 | L81: 0.012 | M81: 1069.99 | N81: 1103792.99 | P81: 1
F82: 2010-11-01 | G82: 2010 | H82: Q4 | I82: 2010 Q4 | J82: 1102723 | K82: 45168 | L82: 0.012 | M82: 1102.72 | N82: 1148993.72 | P82: 1
F83: 2010-12-01 | G83: 2010 | H83: Q4 | I83: 2010 Q4 | J83: 1147891 | K83: 26506 | L83: 0.012 | M83: 1147.89 | N83: 1175544.89 | O83: =SUM(K72:K83)+SUM(M72:M83) -> 482410 | P83: 1
F84: 2011-01-01 | G84: 2011 | H84: Q1 | I84: 2011 Q1 | J84: 1174397 | K84: 40418.43 | L84: 0.0147 | M84: 1438.64 | N84: 1216254.07 | P84: 2.13
F85: 2011-02-01 | G85: 2011 | H85: Q1 | I85: 2011 Q1 | J85: 1214815.43 | K85: 54797.48 | L85: 0.0147 | M85: 1488.15 | N85: 1271101.06 | P85: 2.13
F86: 2011-03-01 | G86: 2011 | H86: Q1 | I86: 2011 Q1 | J86: 1269612.91 | K86: 191840.37 | L86: 0.0147 | M86: 1555.28 | N86: 1463008.56 | P86: 2.13
F87: 2011-04-01 | G87: 2011 | H87: Q2 | I87: 2011 Q2 | J87: 1461453.28 | K87: 67672.33 | L87: 0.0147 | M87: 1790.28 | N87: 1530915.89 | P87: 2.13
F88: 2011-05-01 | G88: 2011 | H88: Q2 | I88: 2011 Q2 | J88: 1529125.61 | K88: 90292.3 | L88: =VLOOKUP(I88,$B$22:$D$55,2) -> 0.0147 | M88: 1873.18 | N88: 1621291.09 | P88: 2.13
F89: 2011-06-01 | G89: =YEAR(F89) -> 2011 | H89: =IF(MONTH(F89)=0,"",IF(MONTH(F89)<4,"Q1",IF(MONTH(F89)<7,"Q2",IF(MONTH(F89)<10,"Q3","Q4")))) -> Q2 | I89: =CONCATENATE(G89," ",H89) -> 2011 Q2 | J89: 1619417.91 | K89: 79049.76 | L89: 0.0147 | M89: =ROUND(J89*L89/12,2) -> 1983.79 | N89: =J89+K89+M89 -> 1700451.46 | P89: 2.13
F90: 2011-07-01 | G90: 2011 | H90: Q3 | I90: 2011 Q3 | J90: =J89+K89 -> 1698467.67 | K90: 90732.23 | L90: 0.0147 | M90: 2080.62 | N90: 1791280.52 | P90: 2.13
F91: 2011-08-01 | G91: 2011 | H91: Q3 | I91: 2011 Q3 | J91: 1789199.9 | K91: 84804.57 | L91: 0.0147 | M91: 2191.77 | N91: 1876196.24 | P91: 2.13
F92: 2011-09-01 | G92: 2011 | H92: Q3 | I92: 2011 Q3 | J92: 1874004.47 | K92: 86746.89 | L92: 0.0147 | M92: 2295.66 | N92: 1963047.02 | P92: 2.13
F93: 2011-10-01 | G93: 2011 | H93: Q4 | I93: 2011 Q4 | J93: 1960751.36 | K93: 79884.14 | L93: 0.0147 | M93: 2401.92 | N93: 2043037.42 | P93: 2.13
F94: 2011-11-01 | G94: 2011 | H94: Q4 | I94: 2011 Q4 | J94: 2040635.5 | K94: 102532.05 | L94: 0.0147 | M94: 2499.78 | N94: 2145667.33 | P94: 2.13
F95: 2011-12-01 | G95: 2011 | H95: Q4 | I95: 2011 Q4 | J95: 2143167.55 | K95: 48711.25 | L95: 0.0147 | M95: 2625.38 | N95: 2194504.18 | O95: =SUM(K84:K95)+SUM(M84:M95) -> 1041706.25 | P95: 2.13
F96: 2012-01-01 | G96: 2012 | H96: Q1 | I96: 2012 Q1 | J96: 2191878.8 | K96: 112261.18 | L96: 0.0147 | M96: 2685.05 | N96: 2306825.03 | P96: 1.5
F97: 2012-02-01 | G97: 2012 | H97: Q1 | I97: 2012 Q1 | J97: 2304139.98 | K97: 59883.33 | L97: 0.0147 | M97: 2822.57 | N97: 2366845.88 | P97: 1.5
F98: 2012-03-01 | G98: 2012 | H98: Q1 | I98: 2012 Q1 | J98: 2364023.31 | K98: 14370.52 | L98: 0.0147 | M98: 2895.93 | N98: 2381289.76 | P98: 1.5
F99: 2012-04-01 | G99: 2012 | H99: Q2 | I99: 2012 Q2 | J99: 2378393.83 | K99: 47606.78 | L99: 0.0147 | M99: 2913.53 | N99: 2428914.14 | P99: 1.5
F100: 2012-05-01 | G100: 2012 | H100: Q2 | I100: 2012 Q2 | J100: 2426000.61 | K100: 57561.23 | L100: 0.0147 | M100: 2971.85 | N100: 2486533.69 | P100: 1.5
F101: 2012-06-01 | G101: 2012 | H101: Q2 | I101: 2012 Q2 | J101: 2483561.84 | K101: 66559.7 | L101: 0.0147 | M101: 3042.36 | N101: 2553163.9 | P101: 1.5
F102: 2012-07-01 | G102: 2012 | H102: Q3 | I102: 2012 Q3 | J102: 2550121.54 | K102: 52656.55 | L102: 0.0147 | M102: 3123.9 | N102: 2605901.99 | P102: 1.5
F103: 2012-08-01 | G103: 2012 | H103: Q3 | I103: 2012 Q3 | J103: 2602778.09 | K103: 79341.45 | L103: 0.0147 | M103: 3188.4 | N103: 2685307.94 | P103: 1.5
F104: 2012-09-01 | G104: 2012 | H104: Q3 | I104: 2012 Q3 | J104: 2682119.54 | K104: 58835.8 | L104: 0.0147 | M104: 3285.6 | N104: 2744240.94 | P104: 1.5
F105: 2012-10-01 | G105: 2012 | H105: Q4 | I105: 2012 Q4 | J105: 2740955.34 | K105: 60818.45 | L105: 0.0147 | M105: 3357.67 | N105: 2805131.46 | P105: 1.5
F106: 2012-11-01 | G106: 2012 | H106: Q4 | I106: 2012 Q4 | J106: 2801773.79 | K106: 61341 | L106: 0.0147 | M106: 3432.17 | N106: 2866546.96 | P106: 1.5
F107: 2012-12-01 | G107: 2012 | H107: Q4 | I107: 2012 Q4 | J107: 2863114.79 | K107: 61414.5 | L107: 0.0147 | M107: 3507.32 | N107: 2928036.61 | O107: =SUM(K96:K107)+SUM(M96:M107) -> 769876.84 | P107: 1.5
F108: 2013-01-01 | G108: 2013 | H108: Q1 | I108: 2013 Q1 | J108: 2924529.29 | K108: 0 | L108: 0.0147 | M108: =ROUND(J108*L108/12,2) -> 3582.55 | N108: =J108+K108+M108 -> 2928111.84 | P108: 0
F109: 2013-02-01 | G109: 2013 | H109: Q1 | I109: 2013 Q1 | J109: 2924529.29 | K109: 0 | L109: 0.0147 | M109: 3582.55 | N109: 2928111.84 | P109: 0
F110: 2013-03-01 | G110: 2013 | H110: Q1 | I110: 2013 Q1 | J110: 2924529.29 | K110: 0 | L110: 0.0147 | M110: 3582.55 | N110: 2928111.84 | P110: 0
F111: 2013-04-01 | G111: 2013 | H111: Q2 | I111: 2013 Q2 | J111: 2924529.29 | K111: 0 | L111: 0.0147 | M111: 3582.55 | N111: 2928111.84 | P111: 0
F112: 2013-05-01 | G112: 2013 | H112: Q2 | I112: 2013 Q2 | J112: 2924529.29 | K112: 0 | M112: 0 | N112: 2924529.29 | P112: 0
F113: 2013-06-01 | G113: 2013 | H113: Q2 | I113: 2013 Q2 | J113: 2924529.29 | K113: 0 | M113: 0 | N113: 2924529.29 | P113: 0
F114: 2013-07-01 | G114: 2013 | H114: Q3 | I114: 2013 Q3 | J114: 2924529.29 | K114: 0 | M114: 0 | N114: 2924529.29 | P114: 0
F115: 2013-08-01 | G115: 2013 | H115: Q3 | I115: 2013 Q3 | J115: 2924529.29 | K115: 0 | M115: 0 | N115: 2924529.29 | P115: 0
F116: 2013-09-01 | G116: 2013 | H116: Q3 | I116: 2013 Q3 | J116: 2924529.29 | K116: 0 | M116: 0 | N116: 2924529.29 | P116: 0
F117: 2013-10-01 | G117: 2013 | H117: Q4 | I117: 2013 Q4 | J117: 2924529.29 | K117: 0 | M117: 0 | N117: 2924529.29 | P117: 0
F118: 2013-11-01 | G118: 2013 | H118: Q4 | I118: 2013 Q4 | J118: 2924529.29 | K118: 0 | M118: 0 | N118: 2924529.29 | P118: 0
F119: 2013-12-01 | G119: 2013 | H119: Q4 | I119: 2013 Q4 | J119: 2924529.29 | K119: 0 | M119: 0 | N119: 2924529.29 | O119: =SUM(K108:K119)+SUM(M108:M119) -> 14330.2 | P119: 0
F121: Total Funding Adder Revenues Collected | K121: =SUM(K24:K107) -> 2924529.29 | M121: =SUM(M24:M107) -> 92129.54 | N121: =K121+M121 -> 3016658.83 | O121: =SUM(O24:O107) -> 3016658.83

Sheet 8A. Opex_Interest_monthly
B13: This worksheet calculates the interest on OM&A and amortization/depreciation expense, based on monthly data.
J21: Account 1556 - Sub-accounts Operating Expenses, Amortization Expenses, Carrying Charges
B23: Prescribed Interest Rates | C23: Approved Deferral and Variance Accounts | D23: CWIP | F23: Date | G23: Year | H23: Quarter | J23: Opening Balance (Principal) | K23: OM&A Expenses | L23: Amortization / Depreciation Expense | M23: Closing Balance (Principal) | N23: (Annual) Interest Rate | O23: Interest (on opening balance) | P23: Cumulative Interest
B25: ='8. Funding_Adder_Revs'!B24 -> 2006 Q1 | C25: ='8. Funding_Adder_Revs'!C24 -> 0 | D25: ='8. Funding_Adder_Revs'!D24 -> 0 | F25: ='8. Funding_Adder_Revs'!F24 -> 2006-01-01 | G25: ='8. Funding_Adder_Revs'!G24 -> 2006 | H25: ='8. Funding_Adder_Revs'!H24 -> Q1 | J25: 0 | M25: =J25+K25+L25 -> 0 | N25: ='8. Funding_Adder_Revs'!L24 -> 0 | O25: =J25*N25/12 -> 0 | P25: =O25 -> 0
B26: ='8. Funding_Adder_Revs'!B25 -> 2006 Q2 | C26: ='8. Funding_Adder_Revs'!C25 -> 0.0414 | D26: ='8. Funding_Adder_Revs'!D25 -> 0.0468 | F26: ='8. Funding_Adder_Revs'!F25 -> 2006-02-01 | G26: ='8. Funding_Adder_Revs'!G25 -> 2006 | H26: ='8. Funding_Adder_Revs'!H25 -> Q1 | J26: =M25 -> 0 | M26: =J26+K26+L26 -> 0 | N26: ='8. Funding_Adder_Revs'!L25 -> 0 | O26: =J26*N26/12 -> 0 | P26: =O26+P25 -> 0
B27: ='8. Funding_Adder_Revs'!B26 -> 2006 Q3 | C27: ='8. Funding_Adder_Revs'!C26 -> 0.0459 | D27: ='8. Funding_Adder_Revs'!D26 -> 0.0505 | F27: ='8. Funding_Adder_Revs'!F26 -> 2006-03-01 | G27: ='8. Funding_Adder_Revs'!G26 -> 2006 | H27: ='8. Funding_Adder_Revs'!H26 -> Q1 | J27: =M26 -> 0 | M27: 0 | N27: ='8. Funding_Adder_Revs'!L26 -> 0 | O27: 0 | P27: =O27+P26 -> 0
B28: ='8. Funding_Adder_Revs'!B27 -> 2006 Q4 | C28: ='8. Funding_Adder_Revs'!C27 -> 0.0459 | D28: ='8. Funding_Adder_Revs'!D27 -> 0.0472 | F28: ='8. Funding_Adder_Revs'!F27 -> 2006-04-01 | G28: ='8. Funding_Adder_Revs'!G27 -> 2006 | H28: ='8. Funding_Adder_Revs'!H27 -> Q2 | J28: 0 | M28: 0 | N28: ='8. Funding_Adder_Revs'!L27 -> 0.0414 | O28: 0 | P28: 0
B29: ='8. Funding_Adder_Revs'!B28 -> 2007 Q1 | C29: ='8. Funding_Adder_Revs'!C28 -> 0.0459 | D29: ='8. Funding_Adder_Revs'!D28 -> 0.0472 | F29: ='8. Funding_Adder_Revs'!F28 -> 2006-05-01 | G29: ='8. Funding_Adder_Revs'!G28 -> 2006 | H29: ='8. Funding_Adder_Revs'!H28 -> Q2 | J29: 0 | M29: 0 | N29: ='8. Funding_Adder_Revs'!L28 -> 0.0414 | O29: 0 | P29: 0
B30: ='8. Funding_Adder_Revs'!B29 -> 2007 Q2 | C30: ='8. Funding_Adder_Revs'!C29 -> 0.0459 | D30: ='8. Funding_Adder_Revs'!D29 -> 0.0472 | F30: ='8. Funding_Adder_Revs'!F29 -> 2006-06-01 | G30: ='8. Funding_Adder_Revs'!G29 -> 2006 | H30: ='8. Funding_Adder_Revs'!H29 -> Q2 | J30: 0 | M30: 0 | N30: ='8. Funding_Adder_Revs'!L29 -> 0.0414 | O30: 0 | P30: 0
B31: ='8. Funding_Adder_Revs'!B30 -> 2007 Q3 | C31: ='8. Funding_Adder_Revs'!C30 -> 0.0459 | D31: ='8. Funding_Adder_Revs'!D30 -> 0.0518 | F31: ='8. Funding_Adder_Revs'!F30 -> 2006-07-01 | G31: ='8. Funding_Adder_Revs'!G30 -> 2006 | H31: ='8. Funding_Adder_Revs'!H30 -> Q3 | J31: 0 | M31: 0 | N31: ='8. Funding_Adder_Revs'!L30 -> 0.0459 | O31: 0 | P31: 0
B32: ='8. Funding_Adder_Revs'!B31 -> 2007 Q4 | C32: ='8. Funding_Adder_Revs'!C31 -> 0.0514 | D32: ='8. Funding_Adder_Revs'!D31 -> 0.0518 | F32: ='8. Funding_Adder_Revs'!F31 -> 2006-08-01 | G32: ='8. Funding_Adder_Revs'!G31 -> 2006 | H32: ='8. Funding_Adder_Revs'!H31 -> Q3 | J32: 0 | M32: 0 | N32: ='8. Funding_Adder_Revs'!L31 -> 0.0459 | O32: 0 | P32: 0
B33: ='8. Funding_Adder_Revs'!B32 -> 2008 Q1 | C33: ='8. Funding_Adder_Revs'!C32 -> 0.0514 | D33: ='8. Funding_Adder_Revs'!D32 -> 0.0518 | F33: ='8. Funding_Adder_Revs'!F32 -> 2006-09-01 | G33: ='8. Funding_Adder_Revs'!G32 -> 2006 | H33: ='8. Funding_Adder_Revs'!H32 -> Q3 | J33: 0 | M33: 0 | N33: ='8. Funding_Adder_Revs'!L32 -> 0.0459 | O33: 0 | P33: 0
B34: ='8. Funding_Adder_Revs'!B33 -> 2008 Q2 | C34: ='8. Funding_Adder_Revs'!C33 -> 0.0408 | D34: ='8. Funding_Adder_Revs'!D33 -> 0.0518 | F34: ='8. Funding_Adder_Revs'!F33 -> 2006-10-01 | G34: ='8. Funding_Adder_Revs'!G33 -> 2006 | H34: ='8. Funding_Adder_Revs'!H33 -> Q4 | J34: 0 | M34: 0 | N34: ='8. Funding_Adder_Revs'!L33 -> 0.0459 | O34: 0 | P34: 0
B35: ='8. Funding_Adder_Revs'!B34 -> 2008 Q3 | C35: ='8. Funding_Adder_Revs'!C34 -> 0.0335 | D35: ='8. Funding_Adder_Revs'!D34 -> 0.0543 | F35: ='8. Funding_Adder_Revs'!F34 -> 2006-11-01 | G35: ='8. Funding_Adder_Revs'!G34 -> 2006 | H35: ='8. Funding_Adder_Revs'!H34 -> Q4 | J35: 0 | M35: 0 | N35: ='8. Funding_Adder_Revs'!L34 -> 0.0459 | O35: 0 | P35: 0
B36: ='8. Funding_Adder_Revs'!B35 -> 2008 Q4 | C36: ='8. Funding_Adder_Revs'!C35 -> 0.0335 | D36: ='8. Funding_Adder_Revs'!D35 -> 0.0543 | F36: ='8. Funding_Adder_Revs'!F35 -> 2006-12-01 | G36: ='8. Funding_Adder_Revs'!G35 -> 2006 | H36: ='8. Funding_Adder_Revs'!H35 -> Q4 | J36: 0 | M36: 0 | N36: ='8. Funding_Adder_Revs'!L35 -> 0.0459 | O36: 0 | P36: 0
B37: ='8. Funding_Adder_Revs'!B36 -> 2009 Q1 | C37: ='8. Funding_Adder_Revs'!C36 -> 0.0245 | D37: ='8. Funding_Adder_Revs'!D36 -> 0.0661 | F37: ='8. Funding_Adder_Revs'!F36 -> 2007-01-01 | G37: ='8. Funding_Adder_Revs'!G36 -> 2007 | H37: ='8. Funding_Adder_Revs'!H36 -> Q1 | J37: 0 | M37: 0 | N37: ='8. Funding_Adder_Revs'!L36 -> 0.0459 | O37: 0 | P37: 0
B38: ='8. Funding_Adder_Revs'!B37 -> 2009 Q2 | C38: ='8. Funding_Adder_Revs'!C37 -> 0.01 | D38: ='8. Funding_Adder_Revs'!D37 -> 0.0661 | F38: ='8. Funding_Adder_Revs'!F37 -> 2007-02-01 | G38: ='8. Funding_Adder_Revs'!G37 -> 2007 | H38: ='8. Funding_Adder_Revs'!H37 -> Q1 | J38: 0 | M38: 0 | N38: ='8. Funding_Adder_Revs'!L37 -> 0.0459 | O38: 0 | P38: 0
B39: ='8. Funding_Adder_Revs'!B38 -> 2009 Q3 | C39: ='8. Funding_Adder_Revs'!C38 -> 0.0055 | D39: ='8. Funding_Adder_Revs'!D38 -> 0.0567 | F39: ='8. Funding_Adder_Revs'!F38 -> 2007-03-01 | G39: ='8. Funding_Adder_Revs'!G38 -> 2007 | H39: ='8. Funding_Adder_Revs'!H38 -> Q1 | J39: 0 | M39: 0 | N39: ='8. Funding_Adder_Revs'!L38 -> 0.0459 | O39: 0 | P39: 0
B40: ='8. Funding_Adder_Revs'!B39 -> 2009 Q4 | C40: ='8. Funding_Adder_Revs'!C39 -> 0.0055 | D40: ='8. Funding_Adder_Revs'!D39 -> 0.0466 | F40: ='8. Funding_Adder_Revs'!F39 -> 2007-04-01 | G40: ='8. Funding_Adder_Revs'!G39 -> 2007 | H40: ='8. Funding_Adder_Revs'!H39 -> Q2 | J40: 0 | M40: 0 | N40: ='8. Funding_Adder_Revs'!L39 -> 0.0459 | O40: 0 | P40: 0
B41: ='8. Funding_Adder_Revs'!B40 -> 2010 Q1 | C41: ='8. Funding_Adder_Revs'!C40 -> 0.0055 | D41: ='8. Funding_Adder_Revs'!D40 -> 0.0434 | F41: ='8. Funding_Adder_Revs'!F40 -> 2007-05-01 | G41: ='8. Funding_Adder_Revs'!G40 -> 2007 | H41: ='8. Funding_Adder_Revs'!H40 -> Q2 | J41: 0 | M41: 0 | N41: ='8. Funding_Adder_Revs'!L40 -> 0.0459 | O41: 0 | P41: 0
B42: ='8. Funding_Adder_Revs'!B41 -> 2010 Q2 | C42: ='8. Funding_Adder_Revs'!C41 -> 0.0055 | D42: ='8. Funding_Adder_Revs'!D41 -> 0.0434 | F42: ='8. Funding_Adder_Revs'!F41 -> 2007-06-01 | G42: ='8. Funding_Adder_Revs'!G41 -> 2007 | H42: ='8. Funding_Adder_Revs'!H41 -> Q2 | J42: 0 | M42: 0 | N42: ='8. Funding_Adder_Revs'!L41 -> 0.0459 | O42: 0 | P42: 0
B43: ='8. Funding_Adder_Revs'!B42 -> 2010 Q3 | C43: ='8. Funding_Adder_Revs'!C42 -> 0.0089 | D43: ='8. Funding_Adder_Revs'!D42 -> 0.0466 | F43: ='8. Funding_Adder_Revs'!F42 -> 2007-07-01 | G43: ='8. Funding_Adder_Revs'!G42 -> 2007 | H43: ='8. Funding_Adder_Revs'!H42 -> Q3 | J43: 0 | M43: 0 | N43: ='8. Funding_Adder_Revs'!L42 -> 0.0459 | O43: 0 | P43: 0
B44: ='8. Funding_Adder_Revs'!B43 -> 2010 Q4 | C44: ='8. Funding_Adder_Revs'!C43 -> 0.012 | D44: ='8. Funding_Adder_Revs'!D43 -> 0.0401 | F44: ='8. Funding_Adder_Revs'!F43 -> 2007-08-01 | G44: ='8. Funding_Adder_Revs'!G43 -> 2007 | H44: ='8. Funding_Adder_Revs'!H43 -> Q3 | J44: 0 | M44: 0 | N44: ='8. Funding_Adder_Revs'!L43 -> 0.0459 | O44: 0 | P44: 0
B45: ='8. Funding_Adder_Revs'!B44 -> 2011 Q1 | C45: ='8. Funding_Adder_Revs'!C44 -> 0.0147 | D45: ='8. Funding_Adder_Revs'!D44 -> 0.0429 | F45: ='8. Funding_Adder_Revs'!F44 -> 2007-09-01 | G45: ='8. Funding_Adder_Revs'!G44 -> 2007 | H45: ='8. Funding_Adder_Revs'!H44 -> Q3 | J45: 0 | M45: 0 | N45: ='8. Funding_Adder_Revs'!L44 -> 0.0459 | O45: 0 | P45: 0
B46: ='8. Funding_Adder_Revs'!B45 -> 2011 Q2 | C46: ='8. Funding_Adder_Revs'!C45 -> 0.0147 | D46: ='8. Funding_Adder_Revs'!D45 -> 0.0429 | F46: ='8. Funding_Adder_Revs'!F45 -> 2007-10-01 | G46: ='8. Funding_Adder_Revs'!G45 -> 2007 | H46: ='8. Funding_Adder_Revs'!H45 -> Q4 | J46: 0 | M46: 0 | N46: ='8. Funding_Adder_Revs'!L45 -> 0.0514 | O46: 0 | P46: 0
B47: ='8. Funding_Adder_Revs'!B46 -> 2011 Q3 | C47: ='8. Funding_Adder_Revs'!C46 -> 0.0147 | D47: ='8. Funding_Adder_Revs'!D46 -> 0.0429 | F47: ='8. Funding_Adder_Revs'!F46 -> 2007-11-01 | G47: ='8. Funding_Adder_Revs'!G46 -> 2007 | H47: ='8. Funding_Adder_Revs'!H46 -> Q4 | J47: 0 | M47: 0 | N47: ='8. Funding_Adder_Revs'!L46 -> 0.0514 | O47: 0 | P47: 0
B48: ='8. Funding_Adder_Revs'!B47 -> 2011 Q4 | C48: ='8. Funding_Adder_Revs'!C47 -> 0.0147 | D48: ='8. Funding_Adder_Revs'!D47 -> 0.0392 | F48: ='8. Funding_Adder_Revs'!F47 -> 2007-12-01 | G48: ='8. Funding_Adder_Revs'!G47 -> 2007 | H48: ='8. Funding_Adder_Revs'!H47 -> Q4 | J48: 0 | M48: 0 | N48: ='8. Funding_Adder_Revs'!L47 -> 0.0514 | O48: 0 | P48: 0
B49: ='8. Funding_Adder_Revs'!B48 -> 2012 Q1 | C49: ='8. Funding_Adder_Revs'!C48 -> 0.0147 | D49: ='8. Funding_Adder_Revs'!D48 -> 0.0392 | F49: ='8. Funding_Adder_Revs'!F48 -> 2008-01-01 | G49: ='8. Funding_Adder_Revs'!G48 -> 2008 | H49: ='8. Funding_Adder_Revs'!H48 -> Q1 | J49: 0 | L49: ='5. SM_Rev_Reqt'!K$58/12 -> 3319.916667 | M49: 3319.916667 | N49: ='8. Funding_Adder_Revs'!L48 -> 0.0514 | O49: 0 | P49: 0
B50: ='8. Funding_Adder_Revs'!B49 -> 2012 Q2 | C50: ='8. Funding_Adder_Revs'!C49 -> 0.0147 | D50: ='8. Funding_Adder_Revs'!D49 -> 0.0351 | F50: ='8. Funding_Adder_Revs'!F49 -> 2008-02-01 | G50: ='8. Funding_Adder_Revs'!G49 -> 2008 | H50: ='8. Funding_Adder_Revs'!H49 -> Q1 | J50: 3319.916667 | L50: ='5. SM_Rev_Reqt'!K$58/12 -> 3319.916667 | M50: 6639.833333 | N50: ='8. Funding_Adder_Revs'!L49 -> 0.0514 | O50: 14.22030972 | P50: 14.22030972
B51: ='8. Funding_Adder_Revs'!B50 -> 2012 Q3 | C51: ='8. Funding_Adder_Revs'!C50 -> 0.0147 | D51: ='8. Funding_Adder_Revs'!D50 -> 0.0351 | F51: ='8. Funding_Adder_Revs'!F50 -> 2008-03-01 | G51: ='8. Funding_Adder_Revs'!G50 -> 2008 | H51: ='8. Funding_Adder_Revs'!H50 -> Q1 | J51: 6639.833333 | L51: ='5. SM_Rev_Reqt'!K$58/12 -> 3319.916667 | M51: 9959.75 | N51: ='8. Funding_Adder_Revs'!L50 -> 0.0514 | O51: 28.44061944 | P51: 42.66092917
B52: ='8. Funding_Adder_Revs'!B51 -> 2012 Q4 | C52: ='8. Funding_Adder_Revs'!C51 -> 0.0147 | D52: ='8. Funding_Adder_Revs'!D51 -> 0.0351 | F52: ='8. Funding_Adder_Revs'!F51 -> 2008-04-01 | G52: ='8. Funding_Adder_Revs'!G51 -> 2008 | H52: ='8. Funding_Adder_Revs'!H51 -> Q2 | J52: 9959.75 | L52: ='5. SM_Rev_Reqt'!K$58/12 -> 3319.916667 | M52: 13279.66667 | N52: ='8. Funding_Adder_Revs'!L51 -> 0.0408 | O52: 33.86315 | P52: 76.52407917
B53: ='8. Funding_Adder_Revs'!B52 -> 2013 Q1 | C53: ='8. Funding_Adder_Revs'!C52 -> 0.0147 | D53: ='8. Funding_Adder_Revs'!D52 -> 0.0351 | F53: ='8. Funding_Adder_Revs'!F52 -> 2008-05-01 | G53: ='8. Funding_Adder_Revs'!G52 -> 2008 | H53: ='8. Funding_Adder_Revs'!H52 -> Q2 | J53: 13279.66667 | L53: ='5. SM_Rev_Reqt'!K$58/12 -> 3319.916667 | M53: 16599.58333 | N53: ='8. Funding_Adder_Revs'!L52 -> 0.0408 | O53: 45.15086667 | P53: 121.6749458
B54: ='8. Funding_Adder_Revs'!B53 -> 2013 Q2 | C54: ='8. Funding_Adder_Revs'!C53 -> 0.0147 | D54: ='8. Funding_Adder_Revs'!D53 -> 0.0351 | F54: ='8. Funding_Adder_Revs'!F53 -> 2008-06-01 | G54: ='8. Funding_Adder_Revs'!G53 -> 2008 | H54: ='8. Funding_Adder_Revs'!H53 -> Q2 | J54: 16599.58333 | L54: ='5. SM_Rev_Reqt'!K$58/12 -> 3319.916667 | M54: 19919.5 | N54: ='8. Funding_Adder_Revs'!L53 -> 0.0408 | O54: 56.43858333 | P54: 178.1135292
B55: ='8. Funding_Adder_Revs'!B54 -> 2013 Q3 | C55: ='8. Funding_Adder_Revs'!C54 -> 0.0147 | D55: ='8. Funding_Adder_Revs'!D54 -> 0.0351 | F55: ='8. Funding_Adder_Revs'!F54 -> 2008-07-01 | G55: ='8. Funding_Adder_Revs'!G54 -> 2008 | H55: ='8. Funding_Adder_Revs'!H54 -> Q3 | J55: 19919.5 | L55: ='5. SM_Rev_Reqt'!K$58/12 -> 3319.916667 | M55: 23239.41667 | N55: ='8. Funding_Adder_Revs'!L54 -> 0.0335 | O55: 55.60860417 | P55: 233.7221333
B56: ='8. Funding_Adder_Revs'!B55 -> 2013 Q4 | C56: ='8. Funding_Adder_Revs'!C55 -> 0.0147 | D56: ='8. Funding_Adder_Revs'!D55 -> 0.0351 | F56: ='8. Funding_Adder_Revs'!F55 -> 2008-08-01 | G56: ='8. Funding_Adder_Revs'!G55 -> 2008 | H56: ='8. Funding_Adder_Revs'!H55 -> Q3 | J56: 23239.41667 | L56: ='5. SM_Rev_Reqt'!K$58/12 -> 3319.916667 | M56: 26559.33333 | N56: ='8. Funding_Adder_Revs'!L55 -> 0.0335 | O56: 64.87670486 | P56: 298.5988382
F57: ='8. Funding_Adder_Revs'!F56 -> 2008-09-01 | G57: ='8. Funding_Adder_Revs'!G56 -> 2008 | H57: ='8. Funding_Adder_Revs'!H56 -> Q3 | J57: 26559.33333 | L57: ='5. SM_Rev_Reqt'!K$58/12 -> 3319.916667 | M57: 29879.25 | N57: ='8. Funding_Adder_Revs'!L56 -> 0.0335 | O57: 74.14480556 | P57: 372.7436438
F58: ='8. Funding_Adder_Revs'!F57 -> 2008-10-01 | G58: ='8. Funding_Adder_Revs'!G57 -> 2008 | H58: ='8. Funding_Adder_Revs'!H57 -> Q4 | J58: 29879.25 | L58: ='5. SM_Rev_Reqt'!K$58/12 -> 3319.916667 | M58: 33199.16667 | N58: ='8. Funding_Adder_Revs'!L57 -> 0.0335 | O58: 83.41290625 | P58: 456.15655
F59: ='8. Funding_Adder_Revs'!F58 -> 2008-11-01 | G59: ='8. Funding_Adder_Revs'!G58 -> 2008 | H59: ='8. Funding_Adder_Revs'!H58 -> Q4 | J59: 33199.16667 | L59: ='5. SM_Rev_Reqt'!K$58/12 -> 3319.916667 | M59: 36519.08333 | N59: ='8. Funding_Adder_Revs'!L58 -> 0.0335 | O59: 92.68100694 | P59: 548.8375569
F60: ='8. Funding_Adder_Revs'!F59 -> 2008-12-01 | G60: ='8. Funding_Adder_Revs'!G59 -> 2008 | H60: ='8. Funding_Adder_Revs'!H59 -> Q4 | J60: 36519.08333 | L60: ='5. SM_Rev_Reqt'!K$58/12 -> 3319.916667 | M60: 39839 | N60: ='8. Funding_Adder_Revs'!L59 -> 0.0335 | O60: 101.9491076 | P60: 650.7866646
F61: ='8. Funding_Adder_Revs'!F60 -> 2009-01-01 | G61: ='8. Funding_Adder_Revs'!G60 -> 2009 | H61: ='8. Funding_Adder_Revs'!H60 -> Q1 | J61: 39839 | L61: ='5. SM_Rev_Reqt'!M$58/12 -> 9293.094444 | M61: 49132.09444 | N61: ='8. Funding_Adder_Revs'!L60 -> 0.0245 | O61: 81.33795833 | P61: 732.1246229
F62: ='8. Funding_Adder_Revs'!F61 -> 2009-02-01 | G62: ='8. Funding_Adder_Revs'!G61 -> 2009 | H62: ='8. Funding_Adder_Revs'!H61 -> Q1 | J62: 49132.09444 | L62: ='5. SM_Rev_Reqt'!M$58/12 -> 9293.094444 | M62: 58425.18889 | N62: ='8. Funding_Adder_Revs'!L61 -> 0.0245 | O62: 100.3113595 | P62: 832.4359824
F63: ='8. Funding_Adder_Revs'!F62 -> 2009-03-01 | G63: ='8. Funding_Adder_Revs'!G62 -> 2009 | H63: ='8. Funding_Adder_Revs'!H62 -> Q1 | J63: 58425.18889 | L63: ='5. SM_Rev_Reqt'!M$58/12 -> 9293.094444 | M63: 67718.28333 | N63: ='8. Funding_Adder_Revs'!L62 -> 0.0245 | O63: 119.2847606 | P63: 951.7207431
F64: ='8. Funding_Adder_Revs'!F63 -> 2009-04-01 | G64: ='8. Funding_Adder_Revs'!G63 -> 2009 | H64: ='8. Funding_Adder_Revs'!H63 -> Q2 | J64: 67718.28333 | L64: ='5. SM_Rev_Reqt'!M$58/12 -> 9293.094444 | M64: 77011.37778 | N64: ='8. Funding_Adder_Revs'!L63 -> 0.01 | O64: 56.43190278 | P64: 1008.152646
F65: ='8. Funding_Adder_Revs'!F64 -> 2009-05-01 | G65: ='8. Funding_Adder_Revs'!G64 -> 2009 | H65: ='8. Funding_Adder_Revs'!H64 -> Q2 | J65: 77011.37778 | L65: ='5. SM_Rev_Reqt'!M$58/12 -> 9293.094444 | M65: 86304.47222 | N65: ='8. Funding_Adder_Revs'!L64 -> 0.01 | O65: 64.17614815 | P65: 1072.328794
F66: ='8. Funding_Adder_Revs'!F65 -> 2009-06-01 | G66: ='8. Funding_Adder_Revs'!G65 -> 2009 | H66: ='8. Funding_Adder_Revs'!H65 -> Q2 | J66: 86304.47222 | L66: ='5. SM_Rev_Reqt'!M$58/12 -> 9293.094444 | M66: 95597.56667 | N66: ='8. Funding_Adder_Revs'!L65 -> 0.01 | O66: 71.92039352 | P66: 1144.249188
F67: ='8. Funding_Adder_Revs'!F66 -> 2009-07-01 | G67: ='8. Funding_Adder_Revs'!G66 -> 2009 | H67: ='8. Funding_Adder_Revs'!H66 -> Q3 | J67: 95597.56667 | L67: ='5. SM_Rev_Reqt'!M$58/12 -> 9293.094444 | M67: 104890.6611 | N67: ='8. Funding_Adder_Revs'!L66 -> 0.0055 | O67: 43.81555139 | P67: 1188.064739
F68: ='8. Funding_Adder_Revs'!F67 -> 2009-08-01 | G68: ='8. Funding_Adder_Revs'!G67 -> 2009 | H68: ='8. Funding_Adder_Revs'!H67 -> Q3 | J68: 104890.6611 | L68: ='5. SM_Rev_Reqt'!M$58/12 -> 9293.094444 | M68: 114183.7556 | N68: ='8. Funding_Adder_Revs'!L67 -> 0.0055 | O68: 48.07488634 | P68: 1236.139625
F69: ='8. Funding_Adder_Revs'!F68 -> 2009-09-01 | G69: ='8. Funding_Adder_Revs'!G68 -> 2009 | H69: ='8. Funding_Adder_Revs'!H68 -> Q3 | J69: 114183.7556 | L69: ='5. SM_Rev_Reqt'!M$58/12 -> 9293.094444 | M69: 123476.85 | N69: ='8. Funding_Adder_Revs'!L68 -> 0.0055 | O69: 52.3342213 | P69: 1288.473847
F70: ='8. Funding_Adder_Revs'!F69 -> 2009-10-01 | G70: ='8. Funding_Adder_Revs'!G69 -> 2009 | H70: ='8. Funding_Adder_Revs'!H69 -> Q4 | J70: 123476.85 | L70: ='5. SM_Rev_Reqt'!M$58/12 -> 9293.094444 | M70: 132769.9444 | N70: ='8. Funding_Adder_Revs'!L69 -> 0.0055 | O70: 56.59355625 | P70: 1345.067403
F71: ='8. Funding_Adder_Revs'!F70 -> 2009-11-01 | G71: ='8. Funding_Adder_Revs'!G70 -> 2009 | H71: ='8. Funding_Adder_Revs'!H70 -> Q4 | J71: 132769.9444 | L71: ='5. SM_Rev_Reqt'!M$58/12 -> 9293.094444 | M71: 142063.0389 | N71: ='8. Funding_Adder_Revs'!L70 -> 0.0055 | O71: 60.8528912 | P71: 1405.920294
F72: ='8. Funding_Adder_Revs'!F71 -> 2009-12-01 | G72: ='8. Funding_Adder_Revs'!G71 -> 2009 | H72: ='8. Funding_Adder_Revs'!H71 -> Q4 | J72: 142063.0389 | K72: 50841.58 | L72: ='5. SM_Rev_Reqt'!M$58/12 -> 9293.094444 | M72: 202197.7133 | N72: ='8. Funding_Adder_Revs'!L71 -> 0.0055 | O72: 65.11222616 | P72: 1471.03252
F73: ='8. Funding_Adder_Revs'!F72 -> 2010-01-01 | G73: ='8. Funding_Adder_Revs'!G72 -> 2010 | H73: ='8. Funding_Adder_Revs'!H72 -> Q1 | J73: 202197.7133 | K73: 687.4 | L73: ='5. SM_Rev_Reqt'!O$58/12 -> 23660.05028 | M73: 226545.1636 | N73: ='8. Funding_Adder_Revs'!L72 -> 0.0055 | O73: 92.67395194 | P73: 1563.706472
F74: ='8. Funding_Adder_Revs'!F73 -> 2010-02-01 | G74: ='8. Funding_Adder_Revs'!G73 -> 2010 | H74: ='8. Funding_Adder_Revs'!H73 -> Q1 | J74: 226545.1636 | K74: 4187.24 | L74: ='5. SM_Rev_Reqt'!O$58/12 -> 23660.05028 | M74: 254392.4539 | N74: ='8. Funding_Adder_Revs'!L73 -> 0.0055 | O74: 103.8332 | P74: 1667.539672
F75: ='8. Funding_Adder_Revs'!F74 -> 2010-03-01 | G75: ='8. Funding_Adder_Revs'!G74 -> 2010 | H75: ='8. Funding_Adder_Revs'!H74 -> Q1 | J75: 254392.4539 | K75: 3697.92 | L75: ='5. SM_Rev_Reqt'!O$58/12 -> 23660.05028 | M75: 281750.4242 | N75: ='8. Funding_Adder_Revs'!L74 -> 0.0055 | O75: 116.5965414 | P75: 1784.136213
F76: ='8. Funding_Adder_Revs'!F75 -> 2010-04-01 | G76: ='8. Funding_Adder_Revs'!G75 -> 2010 | H76: ='8. Funding_Adder_Revs'!H75 -> Q2 | J76: 281750.4242 | K76: 4752.03 | L76: ='5. SM_Rev_Reqt'!O$58/12 -> 23660.05028 | M76: 310162.5044 | N76: ='8. Funding_Adder_Revs'!L75 -> 0.0055 | O76: 129.1356111 | P76: 1913.271825
F77: ='8. Funding_Adder_Revs'!F76 -> 2010-05-01 | G77: ='8. Funding_Adder_Revs'!G76 -> 2010 | H77: ='8. Funding_Adder_Revs'!H76 -> Q2 | J77: 310162.5044 | K77: 3896 | L77: ='5. SM_Rev_Reqt'!O$58/12 -> 23660.05028 | M77: 337718.5547 | N77: ='8. Funding_Adder_Revs'!L76 -> 0.0055 | O77: 142.1578145 | P77: 2055.429639
F78: ='8. Funding_Adder_Revs'!F77 -> 2010-06-01 | G78: ='8. Funding_Adder_Revs'!G77 -> 2010 | H78: ='8. Funding_Adder_Revs'!H77 -> Q2 | J78: 337718.5547 | K78: 21588.96 | L78: ='5. SM_Rev_Reqt'!O$58/12 -> 23660.05028 | M78: 382967.565 | N78: ='8. Funding_Adder_Revs'!L77 -> 0.0055 | O78: 154.7876709 | P78: 2210.21731
F79: ='8. Funding_Adder_Revs'!F78 -> 2010-07-01 | G79: ='8. Funding_Adder_Revs'!G78 -> 2010 | H79: ='8. Funding_Adder_Revs'!H78 -> Q3 | J79: 382967.565 | K79: 1689.21 | L79: ='5. SM_Rev_Reqt'!O$58/12 -> 23660.05028 | M79: 408316.8253 | N79: ='8. Funding_Adder_Revs'!L78 -> 0.0089 | O79: 284.0342774 | P79: 2494.251587
F80: ='8. Funding_Adder_Revs'!F79 -> 2010-08-01 | G80: ='8. Funding_Adder_Revs'!G79 -> 2010 | H80: ='8. Funding_Adder_Revs'!H79 -> Q3 | J80: 408316.8253 | K80: 6089.46 | L80: ='5. SM_Rev_Reqt'!O$58/12 -> 23660.05028 | M80: 438066.3356 | N80: ='8. Funding_Adder_Revs'!L79 -> 0.0089 | O80: 302.8349787 | P80: 2797.086566
F81: ='8. Funding_Adder_Revs'!F80 -> 2010-09-01 | G81: ='8. Funding_Adder_Revs'!G80 -> 2010 | H81: ='8. Funding_Adder_Revs'!H80 -> Q3 | J81: 438066.3356 | K81: 14381.07 | L81: ='5. SM_Rev_Reqt'!O$58/12 -> 23660.05028 | M81: 476107.4558 | N81: ='8. Funding_Adder_Revs'!L80 -> 0.0089 | O81: 324.8991989 | P81: 3121.985765
F82: ='8. Funding_Adder_Revs'!F81 -> 2010-10-01 | G82: ='8. Funding_Adder_Revs'!G81 -> 2010 | H82: ='8. Funding_Adder_Revs'!H81 -> Q4 | J82: 476107.4558 | K82: 4108.48 | L82: ='5. SM_Rev_Reqt'!O$58/12 -> 23660.05028 | M82: 503875.9861 | N82: ='8. Funding_Adder_Revs'!L81 -> 0.012 | O82: 476.1074558 | P82: 3598.093221
F83: ='8. Funding_Adder_Revs'!F82 -> 2010-11-01 | G83: ='8. Funding_Adder_Revs'!G82 -> 2010 | H83: ='8. Funding_Adder_Revs'!H82 -> Q4 | J83: 503875.9861 | K83: 8928.42 | L83: ='5. SM_Rev_Reqt'!O$58/12 -> 23660.05028 | M83: 536464.4564 | N83: ='8. Funding_Adder_Revs'!L82 -> 0.012 | O83: 503.8759861 | P83: 4101.969207
F84: ='8. Funding_Adder_Revs'!F83 -> 2010-12-01 | G84: ='8. Funding_Adder_Revs'!G83 -> 2010 | H84: ='8. Funding_Adder_Revs'!H83 -> Q4 | J84: 536464.4564 | K84: =13840.32+(10143-4.5) -> 23978.82 | L84: ='5. SM_Rev_Reqt'!O$58/12 -> 23660.05028 | M84: 584103.3267 | N84: ='8. Funding_Adder_Revs'!L83 -> 0.012 | O84: 536.4644564 | P84: 4638.433663
F85: ='8. Funding_Adder_Revs'!F84 -> 2011-01-01 | G85: ='8. Funding_Adder_Revs'!G84 -> 2011 | H85: ='8. Funding_Adder_Revs'!H84 -> Q1 | J85: 584103.3267 | K85: 6311.39 | L85: ='5. SM_Rev_Reqt'!Q$58/12 -> 39935.79978 | M85: 630350.5164 | N85: ='8. Funding_Adder_Revs'!L84 -> 0.0147 | O85: 715.5265752 | P85: 5353.960238
F86: ='8. Funding_Adder_Revs'!F85 -> 2011-02-01 | G86: ='8. Funding_Adder_Revs'!G85 -> 2011 | H86: ='8. Funding_Adder_Revs'!H85 -> Q1 | J86: 630350.5164 | K86: 5950.69 | L86: ='5. SM_Rev_Reqt'!Q$58/12 -> 39935.79978 | M86: 676237.0062 | N86: ='8. Funding_Adder_Revs'!L85 -> 0.0147 | O86: 772.1793826 | P86: 6126.139621
F87: ='8. Funding_Adder_Revs'!F86 -> 2011-03-01 | G87: ='8. Funding_Adder_Revs'!G86 -> 2011 | H87: ='8. Funding_Adder_Revs'!H86 -> Q1 | J87: 676237.0062 | K87: 5909.04 | L87: ='5. SM_Rev_Reqt'!Q$58/12 -> 39935.79978 | M87: 722081.846 | N87: ='8. Funding_Adder_Revs'!L86 -> 0.0147 | O87: 828.3903326 | P87: 6954.529954
F88: ='8. Funding_Adder_Revs'!F87 -> 2011-04-01 | G88: ='8. Funding_Adder_Revs'!G87 -> 2011 | H88: ='8. Funding_Adder_Revs'!H87 -> Q2 | J88: 722081.846 | K88: 5921.78 | L88: ='5. SM_Rev_Reqt'!Q$58/12 -> 39935.79978 | M88: 767939.4258 | N88: ='8. Funding_Adder_Revs'!L87 -> 0.0147 | O88: 884.5502613 | P88: 7839.080215
F89: ='8. Funding_Adder_Revs'!F88 -> 2011-05-01 | G89: ='8. Funding_Adder_Revs'!G88 -> 2011 | H89: ='8. Funding_Adder_Revs'!H88 -> Q2 | J89: 767939.4258 | K89: 34393.94 | L89: ='5. SM_Rev_Reqt'!Q$58/12 -> 39935.79978 | M89: 842269.1656 | N89: ='8. Funding_Adder_Revs'!L88 -> 0.0147 | O89: 940.7257966 | P89: 8779.806012
F90: ='8. Funding_Adder_Revs'!F89 -> 2011-06-01 | G90: ='8. Funding_Adder_Revs'!G89 -> 2011 | H90: ='8. Funding_Adder_Revs'!H89 -> Q2 | J90: 842269.1656 | K90: 6102.45 | L90: ='5. SM_Rev_Reqt'!Q$58/12 -> 39935.79978 | M90: =J90+K90+L90 -> 888307.4153 | N90: ='8. Funding_Adder_Revs'!L89 -> 0.0147 | O90: =J90*N90/12 -> 1031.779728 | P90: 9811.585739
F91: ='8. Funding_Adder_Revs'!F90 -> 2011-07-01 | G91: ='8. Funding_Adder_Revs'!G90 -> 2011 | H91: ='8. Funding_Adder_Revs'!H90 -> Q3 | J91: =M90 -> 888307.4153 | K91: 13118.52 | L91: ='5. SM_Rev_Reqt'!Q$58/12 -> 39935.79978 | M91: 941361.7351 | N91: ='8. Funding_Adder_Revs'!L90 -> 0.0147 | O91: 1088.176584 | P91: =O91+P90 -> 10899.76232
F92: ='8. Funding_Adder_Revs'!F91 -> 2011-08-01 | G92: ='8. Funding_Adder_Revs'!G91 -> 2011 | H92: ='8. Funding_Adder_Revs'!H91 -> Q3 | J92: 941361.7351 | K92: 20285.41 | L92: ='5. SM_Rev_Reqt'!Q$58/12 -> 39935.79978 | M92: 1001582.945 | N92: ='8. Funding_Adder_Revs'!L91 -> 0.0147 | O92: 1153.168126 | P92: 12052.93045
F93: ='8. Funding_Adder_Revs'!F92 -> 2011-09-01 | G93: ='8. Funding_Adder_Revs'!G92 -> 2011 | H93: ='8. Funding_Adder_Revs'!H92 -> Q3 | J93: 1001582.945 | K93: 13537.01 | L93: ='5. SM_Rev_Reqt'!Q$58/12 -> 39935.79978 | M93: 1055055.755 | N93: ='8. Funding_Adder_Revs'!L92 -> 0.0147 | O93: 1226.939107 | P93: 13279.86956
F94: ='8. Funding_Adder_Revs'!F93 -> 2011-10-01 | G94: ='8. Funding_Adder_Revs'!G93 -> 2011 | H94: ='8. Funding_Adder_Revs'!H93 -> Q4 | J94: 1055055.755 | K94: 29808.9 | L94: ='5. SM_Rev_Reqt'!Q$58/12 -> 39935.79978 | M94: 1124800.454 | N94: ='8. Funding_Adder_Revs'!L93 -> 0.0147 | O94: 1292.443299 | P94: 14572.31286
F95: ='8. Funding_Adder_Revs'!F94 -> 2011-11-01 | G95: ='8. Funding_Adder_Revs'!G94 -> 2011 | H95: ='8. Funding_Adder_Revs'!H94 -> Q4 | J95: 1124800.454 | K95: 9875.93 | L95: ='5. SM_Rev_Reqt'!Q$58/12 -> 39935.79978 | M95: 1174612.184 | N95: ='8. Funding_Adder_Revs'!L94 -> 0.0147 | O95: 1377.880557 | P95: 15950.19341
F96: ='8. Funding_Adder_Revs'!F95 -> 2011-12-01 | G96: ='8. Funding_Adder_Revs'!G95 -> 2011 | H96: ='8. Funding_Adder_Revs'!H95 -> Q4 | J96: 1174612.184 | K96: =68987.38+(2068) -> 71055.38 | L96: ='5. SM_Rev_Reqt'!Q$58/12 -> 39935.79978 | M96: 1285603.364 | N96: ='8. Funding_Adder_Revs'!L95 -> 0.0147 | O96: 1438.899926 | P96: 17389.09334
F97: ='8. Funding_Adder_Revs'!F96 -> 2012-01-01 | G97: ='8. Funding_Adder_Revs'!G96 -> 2012 | H97: ='8. Funding_Adder_Revs'!H96 -> Q1 | J97: 1285603.364 | K97: 15293.27 | L97: ='5. SM_Rev_Reqt'!S$58/12 -> 45137.03446 | M97: 1346033.668 | N97: ='8. Funding_Adder_Revs'!L96 -> 0.0147 | O97: 1574.864121 | P97: 18963.95746
F98: ='8. Funding_Adder_Revs'!F97 -> 2012-02-01 | G98: ='8. Funding_Adder_Revs'!G97 -> 2012 | H98: ='8. Funding_Adder_Revs'!H97 -> Q1 | J98: 1346033.668 | K98: 9813 | L98: ='5. SM_Rev_Reqt'!S$58/12 -> 45137.03446 | M98: 1400983.703 | N98: ='8. Funding_Adder_Revs'!L97 -> 0.0147 | O98: 1648.891244 | P98: 20612.8487
F99: ='8. Funding_Adder_Revs'!F98 -> 2012-03-01 | G99: ='8. Funding_Adder_Revs'!G98 -> 2012 | H99: ='8. Funding_Adder_Revs'!H98 -> Q1 | J99: 1400983.703 | K99: 60957.03 | L99: ='5. SM_Rev_Reqt'!S$58/12 -> 45137.03446 | M99: 1507077.767 | N99: ='8. Funding_Adder_Revs'!L98 -> 0.0147 | O99: 1716.205036 | P99: 22329.05374
F100: ='8. Funding_Adder_Revs'!F99 -> 2012-04-01 | G100: ='8. Funding_Adder_Revs'!G99 -> 2012 | H100: ='8. Funding_Adder_Revs'!H99 -> Q2 | J100: 1507077.767 | K100: 17456.7 | L100: ='5. SM_Rev_Reqt'!S$58/12 -> 45137.03446 | M100: 1569671.502 | N100: ='8. Funding_Adder_Revs'!L99 -> 0.0147 | O100: 1846.170265 | P100: 24175.224
F101: ='8. Funding_Adder_Revs'!F100 -> 2012-05-01 | G101: ='8. Funding_Adder_Revs'!G100 -> 2012 | H101: ='8. Funding_Adder_Revs'!H100 -> Q2 | J101: 1569671.502 | K101: 18119 | L101: ='5. SM_Rev_Reqt'!S$58/12 -> 45137.03446 | M101: 1632927.536 | N101: ='8. Funding_Adder_Revs'!L100 -> 0.0147 | O101: 1922.84759 | P101: 26098.07159
F102: ='8. Funding_Adder_Revs'!F101 -> 2012-06-01 | G102: ='8. Funding_Adder_Revs'!G101 -> 2012 | H102: ='8. Funding_Adder_Revs'!H101 -> Q2 | J102: 1632927.536 | K102: 40650.38 | L102: ='5. SM_Rev_Reqt'!S$58/12 -> 45137.03446 | M102: 1718714.951 | N102: ='8. Funding_Adder_Revs'!L101 -> 0.0147 | O102: 2000.336232 | P102: 28098.40783
F103: ='8. Funding_Adder_Revs'!F102 -> 2012-07-01 | G103: ='8. Funding_Adder_Revs'!G102 -> 2012 | H103: ='8. Funding_Adder_Revs'!H102 -> Q3 | J103: 1718714.951 | K103: 23844.31 | L103: ='5. SM_Rev_Reqt'!S$58/12 -> 45137.03446 | M103: 1787696.295 | N103: ='8. Funding_Adder_Revs'!L102 -> 0.0147 | O103: 2105.425815 | P103: 30203.83364
F104: ='8. Funding_Adder_Revs'!F103 -> 2012-08-01 | G104: ='8. Funding_Adder_Revs'!G103 -> 2012 | H104: ='8. Funding_Adder_Revs'!H103 -> Q3 | J104: 1787696.295 | K104: -39962.13 | L104: ='5. SM_Rev_Reqt'!S$58/12 -> 45137.03446 | M104: 1792871.2 | N104: ='8. Funding_Adder_Revs'!L103 -> 0.0147 | O104: 2189.927962 | P104: 32393.7616
F105: ='8. Funding_Adder_Revs'!F104 -> 2012-09-01 | G105: ='8. Funding_Adder_Revs'!G104 -> 2012 | H105: ='8. Funding_Adder_Revs'!H104 -> Q3 | J105: 1792871.2 | K105: 33632.79 | L105: ='5. SM_Rev_Reqt'!S$58/12 -> 45137.03446 | M105: 1871641.024 | N105: ='8. Funding_Adder_Revs'!L104 -> 0.0147 | O105: 2196.26722 | P105: 34590.02882
F106: ='8. Funding_Adder_Revs'!F105 -> 2012-10-01 | G106: ='8. Funding_Adder_Revs'!G105 -> 2012 | H106: ='8. Funding_Adder_Revs'!H105 -> Q4 | J106: 1871641.024 | K106: 10418.42 | L106: ='5. SM_Rev_Reqt'!S$58/12 -> 45137.03446 | M106: 1927196.479 | N106: ='8. Funding_Adder_Revs'!L105 -> 0.0147 | O106: 2292.760255 | P106: 36882.78908
F107: ='8. Funding_Adder_Revs'!F106 -> 2012-11-01 | G107: ='8. Funding_Adder_Revs'!G106 -> 2012 | H107: ='8. Funding_Adder_Revs'!H106 -> Q4 | J107: 1927196.479 | K107: 10000 | L107: ='5. SM_Rev_Reqt'!S$58/12 -> 45137.03446 | M107: 1982333.513 | N107: ='8. Funding_Adder_Revs'!L106 -> 0.0147 | O107: 2360.815686 | P107: 39243.60476
F108: ='8. Funding_Adder_Revs'!F107 -> 2012-12-01 | G108: ='8. Funding_Adder_Revs'!G107 -> 2012 | H108: ='8. Funding_Adder_Revs'!H107 -> Q4 | J108: 1982333.513 | K108: =25109 -> 25109 | L108: ='5. SM_Rev_Reqt'!S$58/12 -> 45137.03446 | M108: 2052579.548 | N108: ='8. Funding_Adder_Revs'!L107 -> 0.0147 | O108: 2428.358553 | P108: 41671.96332
F109: ='8. Funding_Adder_Revs'!F108 -> 2013-01-01 | G109: ='8. Funding_Adder_Revs'!G108 -> 2013 | H109: ='8. Funding_Adder_Revs'!H108 -> Q1 | J109: =M108 -> 2052579.548 | K109: ='2. Smart_Meter_Costs'!$U$174/12 -> 25916.66667 | L109: ='5. SM_Rev_Reqt'!U$58/12 -> 45776.21436 | M109: =J109+K109+L109 -> 2124272.429 | N109: ='8. Funding_Adder_Revs'!L108 -> 0.0147 | O109: =J109*N109/12 -> 2514.409946 | P109: =O109+P108 -> 44186.37326
F110: ='8. Funding_Adder_Revs'!F109 -> 2013-02-01 | G110: ='8. Funding_Adder_Revs'!G109 -> 2013 | H110: ='8. Funding_Adder_Revs'!H109 -> Q1 | J110: 2124272.429 | K110: ='2. Smart_Meter_Costs'!$U$174/12 -> 25916.66667 | L110: ='5. SM_Rev_Reqt'!U$58/12 -> 45776.21436 | M110: 2195965.31 | N110: ='8. Funding_Adder_Revs'!L109 -> 0.0147 | O110: 2602.233725 | P110: 46788.60699
F111: ='8. Funding_Adder_Revs'!F110 -> 2013-03-01 | G111: ='8. Funding_Adder_Revs'!G110 -> 2013 | H111: ='8. Funding_Adder_Revs'!H110 -> Q1 | J111: 2195965.31 | K111: ='2. Smart_Meter_Costs'!$U$174/12 -> 25916.66667 | L111: ='5. SM_Rev_Reqt'!U$58/12 -> 45776.21436 | M111: 2267658.191 | N111: ='8. Funding_Adder_Revs'!L110 -> 0.0147 | O111: 2690.057504 | P111: 49478.66449
F112: ='8. Funding_Adder_Revs'!F111 -> 2013-04-01 | G112: ='8. Funding_Adder_Revs'!G111 -> 2013 | H112: ='8. Funding_Adder_Revs'!H111 -> Q2 | J112: 2267658.191 | K112: ='2. Smart_Meter_Costs'!$U$174/12 -> 25916.66667 | L112: ='5. SM_Rev_Reqt'!U$58/12 -> 45776.21436 | M112: 2339351.072 | N112: ='8. Funding_Adder_Revs'!L111 -> 0.0147 | O112: 2777.881283 | P112: 52256.54577
F113: ='8. Funding_Adder_Revs'!F112 -> 2013-05-01 | G113: ='8. Funding_Adder_Revs'!G112 -> 2013 | H113: ='8. Funding_Adder_Revs'!H112 -> Q2 | J113: 2339351.072 | K113: ='2. Smart_Meter_Costs'!$U$174/12 -> 25916.66667 | L113: ='5. SM_Rev_Reqt'!U$58/12 -> 45776.21436 | M113: 2411043.953 | N113: ='8. Funding_Adder_Revs'!L112 -> 0 | O113: 0 | P113: 52256.54577
F114: ='8. Funding_Adder_Revs'!F113 -> 2013-06-01 | G114: ='8. Funding_Adder_Revs'!G113 -> 2013 | H114: ='8. Funding_Adder_Revs'!H113 -> Q2 | J114: 2411043.953 | K114: ='2. Smart_Meter_Costs'!$U$174/12 -> 25916.66667 | L114: ='5. SM_Rev_Reqt'!U$58/12 -> 45776.21436 | M114: 2482736.834 | N114: ='8. Funding_Adder_Revs'!L113 -> 0 | O114: 0 | P114: 52256.54577
F115: ='8. Funding_Adder_Revs'!F114 -> 2013-07-01 | G115: ='8. Funding_Adder_Revs'!G114 -> 2013 | H115: ='8. Funding_Adder_Revs'!H114 -> Q3 | J115: 2482736.834 | K115: ='2. Smart_Meter_Costs'!$U$174/12 -> 25916.66667 | L115: ='5. SM_Rev_Reqt'!U$58/12 -> 45776.21436 | M115: 2554429.715 | N115: ='8. Funding_Adder_Revs'!L114 -> 0 | O115: 0 | P115: 52256.54577
F116: ='8. Funding_Adder_Revs'!F115 -> 2013-08-01 | G116: ='8. Funding_Adder_Revs'!G115 -> 2013 | H116: ='8. Funding_Adder_Revs'!H115 -> Q3 | J116: 2554429.715 | K116: ='2. Smart_Meter_Costs'!$U$174/12 -> 25916.66667 | L116: ='5. SM_Rev_Reqt'!U$58/12 -> 45776.21436 | M116: 2626122.596 | N116: ='8. Funding_Adder_Revs'!L115 -> 0 | O116: 0 | P116: 52256.54577
F117: ='8. Funding_Adder_Revs'!F116 -> 2013-09-01 | G117: ='8. Funding_Adder_Revs'!G116 -> 2013 | H117: ='8. Funding_Adder_Revs'!H116 -> Q3 | J117: 2626122.596 | K117: ='2. Smart_Meter_Costs'!$U$174/12 -> 25916.66667 | L117: ='5. SM_Rev_Reqt'!U$58/12 -> 45776.21436 | M117: 2697815.477 | N117: ='8. Funding_Adder_Revs'!L116 -> 0 | O117: 0 | P117: 52256.54577
F118: ='8. Funding_Adder_Revs'!F117 -> 2013-10-01 | G118: ='8. Funding_Adder_Revs'!G117 -> 2013 | H118: ='8. Funding_Adder_Revs'!H117 -> Q4 | J118: 2697815.477 | K118: ='2. Smart_Meter_Costs'!$U$174/12 -> 25916.66667 | L118: ='5. SM_Rev_Reqt'!U$58/12 -> 45776.21436 | M118: 2769508.358 | N118: ='8. Funding_Adder_Revs'!L117 -> 0 | O118: 0 | P118: 52256.54577
F119: ='8. Funding_Adder_Revs'!F118 -> 2013-11-01 | G119: ='8. Funding_Adder_Revs'!G118 -> 2013 | H119: ='8. Funding_Adder_Revs'!H118 -> Q4 | J119: 2769508.358 | K119: ='2. Smart_Meter_Costs'!$U$174/12 -> 25916.66667 | L119: ='5. SM_Rev_Reqt'!U$58/12 -> 45776.21436 | M119: 2841201.239 | N119: ='8. Funding_Adder_Revs'!L118 -> 0 | O119: 0 | P119: 52256.54577
F120: ='8. Funding_Adder_Revs'!F119 -> 2013-12-01 | G120: ='8. Funding_Adder_Revs'!G119 -> 2013 | H120: ='8. Funding_Adder_Revs'!H119 -> Q4 | J120: 2841201.239 | K120: ='2. Smart_Meter_Costs'!$U$174/12 -> 25916.66667 | L120: ='5. SM_Rev_Reqt'!U$58/12 -> 45776.21436 | M120: 2912894.12 | N120: ='8. Funding_Adder_Revs'!L119 -> 0 | O120: 0 | P120: 52256.54577
K122: =SUM(K25:K108) -> 596428.8 | L122: =SUM(L25:L108) -> 1456150.748 | M122: =K122+L122 -> 2052579.548

Sheet 8B. Opex_Interest_annual
B13: This worksheet calculates the interest on OM&A and amortization/depreciation expense, in the absence of monthly data.
B21: Year | D21: OM&A | F21: Amortization Expense | H21: Cumulative OM&A and Amortization Expense | J21: Average Cumulative OM&A and Amortization Expense | L21: Average Annual Prescribed Interest Rate for Deferral and Variance Accounts (from Sheets 8A and 8B) | N21: Simple Interest on OM&A and Amortization Expenses
D22: (from Sheet 5) | F22: (from Sheet 5)
B23: 2006 | D23: ='5. SM_Rev_Reqt'!G50 -> 0 | F23: ='5. SM_Rev_Reqt'!G58 -> 0 | H23: =D23+F23 -> 0 | J23: =H23/2 -> 0 | L23: =AVERAGE('8A. Opex_Interest_monthly'!$C$26:$C$28,'8A. Opex_Interest_monthly'!$C$26) -> 0.04365 | N23: =J23*L23 -> 0
B24: 2007 | D24: ='5. SM_Rev_Reqt'!I50 -> 0 | F24: ='5. SM_Rev_Reqt'!I58 -> 0 | H24: =H23+D24+F24 -> 0 | J24: =(H24+H23)/2 -> 0 | L24: =AVERAGE('8A. Opex_Interest_monthly'!$C$29:$C$32) -> 0.047275 | N24: 0
B25: 2008 | D25: ='5. SM_Rev_Reqt'!K50 -> 0 | F25: ='5. SM_Rev_Reqt'!K58 -> 39839 | H25: 39839 | J25: 19919.5 | L25: =AVERAGE('8A. Opex_Interest_monthly'!$C$33:$C$36) -> 0.0398 | N25: 792.7961
B26: 2009 | D26: ='5. SM_Rev_Reqt'!M50 -> 50842 | F26: ='5. SM_Rev_Reqt'!M58 -> 111517.1333 | H26: 202198.1333 | J26: 121018.5667 | L26: =AVERAGE('8A. Opex_Interest_monthly'!$C$37:$C$40) -> 0.011375 | N26: 1376.586196
B27: 2010 | D27: ='5. SM_Rev_Reqt'!O50 -> 97985 | F27: ='5. SM_Rev_Reqt'!O58 -> 283920.6033 | H27: 584103.7367 | J27: 393150.935 | L27: =AVERAGE('8A. Opex_Interest_monthly'!$C$41:$C$44) -> 0.007975 | N27: 3135.378707
B28: 2011 | D28: ='5. SM_Rev_Reqt'!Q50 -> 222270 | F28: ='5. SM_Rev_Reqt'!Q58 -> 479229.5973 | H28: 1285603.334 | J28: 934853.5353 | L28: =AVERAGE('8A. Opex_Interest_monthly'!$C$45:$C$48) -> 0.0147 | N28: 13742.34697
B29: 2012 | D29: ='5. SM_Rev_Reqt'!S50 -> 269097.22 | F29: ='5. SM_Rev_Reqt'!S58 -> 541644.4135 | H29: 2096344.968 | J29: 1690974.151 | L29: =AVERAGE('8A. Opex_Interest_monthly'!N97:N108) -> 0.0147 | N29: 24857.32002
B30: 2013 | D30: ='5. SM_Rev_Reqt'!U50 -> 311000 | F30: ='5. SM_Rev_Reqt'!U58 -> 549314.5724 | H30: 2956659.54 | J30: 2526502.254 | L30: =AVERAGE('8A. Opex_Interest_monthly'!N109:N120) -> 0.0049 | N30: 12379.86104
B32: Cumulative Interest to 2011 | N32: =SUM(N23:N28) -> 19047.10797
B33: Cumulative Interest to 2012 | N33: =SUM(N23:N29) -> 43904.42799
B34: Cumulative Interest to 2013 | N34: =SUM(N23:N30) -> 56284.28903

Sheet 9. SMFA_SMDR_SMIRR
B14: This worksheet calculates the Smart Meter Disposition Rider and the Smart Meter Incremental Revenue Requirement Rate Rider, if applicable. This worksheet also calculates any new Smart Meter Funding Adder that a distributor may wish to request. However, please note that in many 2011 IRM decisions, the Board noted that current funding adders will cease on April 30, 2011 and that the Board's expectation is that distributors will file for a final review of prudence at the earliest opportunity. The Board also noted that the SMFA is a tool designed to provide advance funding and to mitigate the anticipated rate impact of smart meter costs when recovery of those costs is approved by the Board. The Board observed that the SMFA was not intended to be compensatory (return on and of capital) on a cumulative basis over the term the SMFA was in effect. The SMFA was initially designed to fund future investment, and not fully fund prior capital investment. Distributors that seek a new SMFA should provide evidence to support its proposal. This would include documentation of where the distributor is with respect to its smart meter deployment program, and reasons as to why the distributor's circumstances are such that continuation of the SMFA is warranted. Press the "UPDATE WORKSHEET" button after choosing the applicable adders/riders.
B20: Check if applicable
E22: Smart Meter Funding Adder (SMFA)
E24: Smart Meter Disposition Rider (SMDR) | G24: The SMDR is calculated based on costs to December 31, 2011
C26: X | E26: Smart Meter Incremental Revenue Requirement Rate Rider (SMIRR) | G26: The SMIRR is calculated based on the incremental revenue requirement associated with the recovery of capital related costs to December 31, 2012 and associated OM&A.
G28: 2006 | I28: 2007 | K28: 2008 | M28: 2009 | O28: 2010 | Q28: 2011 | S28: 2012 | U28: 2013 | W28: 2014 | Y28: 2015 | AA28: 2016 | AC28: 2017 | AE28: 2018 | AG28: Total
C30: Deferred and forecasted Smart Meter Incremental Revenue Requirement (from Sheet 5) | G30: ='5. SM_Rev_Reqt'!G70 -> 0 | I30: ='5. SM_Rev_Reqt'!I70 -> 0 | K30: ='5. SM_Rev_Reqt'!K70 -> 33538.23503 | M30: ='5. SM_Rev_Reqt'!M70 -> 171350.7909 | O30: ='5. SM_Rev_Reqt'!O70 -> 482757.36 | Q30: ='5. SM_Rev_Reqt'!Q70 -> 877540.8024 | S30: ='5. SM_Rev_Reqt'!S70 -> 1083782.863 | U30: ='5. SM_Rev_Reqt'!U70 -> 1198026.912 | W30: ='5. SM_Rev_Reqt'!W70 -> 1077481.681 | Y30: ='5. SM_Rev_Reqt'!Y70 -> 828339.2969 | AA30: ='5. SM_Rev_Reqt'!AA70 -> 810373.0835 | AC30: ='5. SM_Rev_Reqt'!AC70 -> 804517.0793 | AE30: ='5. SM_Rev_Reqt'!AE70 -> 793771.3921 | AG30: =SUM(G30:S30) -> 2648970.051
C32: Interest on Deferred and forecasted OM&A and Amortization Expense (Sheet 8A/8B) | G32: =IF($C35="X",G35,IF($C37="X",G37,0)) -> 0 | I32: =IF($C35="X",I35,IF($C37="X",I37,0)) -> 0 | K32: =IF($C35="X",K35,IF($C37="X",K37,0)) -> 650.7866646 | M32: =IF($C35="X",M35,IF($C37="X",M37,0)) -> 820.2458556 | O32: =IF($C35="X",O35,IF($C37="X",O37,0)) -> 3167.401143 | Q32: =IF($C35="X",Q35,IF($C37="X",Q37,0)) -> 12750.65967 | S32: =IF($C35="X",S35,IF($C37="X",S37,0)) -> 24282.86998 | AG32: =SUM(G32:S32) -> 41671.96332
C33: (Check one of the boxes below)
C35: X | E35: Sheet 8A (Interest calculated on monthly balances) | G35: =IF($C35="X",SUM('8A. Opex_Interest_monthly'!O25:O36),"") -> 0 | I35: =IF($C35="X",SUM('8A. Opex_Interest_monthly'!O37:O48),"") -> 0 | K35: =IF($C35="X",SUM('8A. Opex_Interest_monthly'!O49:O60),"") -> 650.7866646 | M35: =IF($C35="X",SUM('8A. Opex_Interest_monthly'!O61:O72),"") -> 820.2458556 | O35: =IF($C35="X",SUM('8A. Opex_Interest_monthly'!O73:O84),"") -> 3167.401143 | Q35: =IF($C35="X",SUM('8A. Opex_Interest_monthly'!O85:O96),"") -> 12750.65967 | S35: =IF($C35="X",SUM('8A. Opex_Interest_monthly'!O97:O108),"") -> 24282.86998 | U35: =IF($C35="X",SUM('8A. Opex_Interest_monthly'!O109:O120),"") -> 10584.58246 | W35: =IF($C35="X",SUM('8A. Opex_Interest_monthly'!Q109:Q120),"") -> 0 | Y35: =IF($C35="X",SUM('8A. Opex_Interest_monthly'!S109:S120),"") -> 0 | AA35: =IF($C35="X",SUM('8A. Opex_Interest_monthly'!U109:U120),"") -> 0 | AC35: =IF($C35="X",SUM('8A. Opex_Interest_monthly'!W109:W120),"") -> 0 | AE35: =IF($C35="X",SUM('8A. Opex_Interest_monthly'!Y109:Y120),"") -> 0 | AG35: =IF($C$35="X",SUM(G35:S35),"") -> 41671.96332
E37: Sheet 8B (Interest calculated on average annual balances) | G37: =IF($C37="X",'8B. Opex_Interest_annual'!N23,"") ->  | I37: =IF($C37="X",'8B. Opex_Interest_annual'!N24,"") ->  | K37: =IF($C37="X",'8B. Opex_Interest_annual'!N25,"") ->  | M37: =IF($C37="X",'8B. Opex_Interest_annual'!N26,"") ->  | O37: =IF($C37="X",'8B. Opex_Interest_annual'!N27,"") ->  | Q37: =IF($C37="X",'8B. Opex_Interest_annual'!N28,"") ->  | S37: =IF($C37="X",'8B. Opex_Interest_annual'!N29,"") ->  | U37: =IF($C37="X",'8B. Opex_Interest_annual'!N30,"") ->  | W37: =IF($C37="X",'8B. Opex_Interest_annual'!P30,"") ->  | Y37: =IF($C37="X",'8B. Opex_Interest_annual'!R30,"") ->  | AA37: =IF($C37="X",'8B. Opex_Interest_annual'!T30,"") ->  | AC37: =IF($C37="X",'8B. Opex_Interest_annual'!V30,"") ->  | AE37: =IF($C37="X",'8B. Opex_Interest_annual'!X30,"") ->  | AG37: =IF($C$37="X",SUM(G37:S37),"") -> 
C40: SMFA Revenues (from Sheet 8) | G40: =SUM('8. Funding_Adder_Revs'!K24:K35) -> 82216 | I40: =SUM('8. Funding_Adder_Revs'!K36:K47) -> 125648 | K40: =SUM('8. Funding_Adder_Revs'!K48:K59) -> 131297 | M40: =SUM('8. Funding_Adder_Revs'!K60:K71) -> 360561 | O40: =SUM('8. Funding_Adder_Revs'!K72:K83) -> 474675 | Q40: =SUM('8. Funding_Adder_Revs'!K84:K95) -> 1017481.8 | S40: =SUM('8. Funding_Adder_Revs'!K96:K107) -> 732650.49 | U40: =SUM('8. Funding_Adder_Revs'!K108:K119) -> 0 | W40: 0 | Y40: 0 | AA40: 0 | AC40: 0 | AE40: 0 | AG40: =SUM(G40:U40) -> 2924529.29
C42: SMFA Interest (from Sheet 8) | G42: =SUM('8. Funding_Adder_Revs'!M24:M35) -> 1097.94 | I42: =SUM('8. Funding_Adder_Revs'!M36:M47) -> 6703.68 | K42: =SUM('8. Funding_Adder_Revs'!M48:M59) -> 10452.54 | M42: =SUM('8. Funding_Adder_Revs'!M60:M71) -> 4689.58 | O42: =SUM('8. Funding_Adder_Revs'!M72:M83) -> 7735 | Q42: =SUM('8. Funding_Adder_Revs'!M84:M95) -> 24224.45 | S42: =SUM('8. Funding_Adder_Revs'!M96:M107) -> 37226.35 | U42: =SUM('8. Funding_Adder_Revs'!M108:M119) -> 14330.2 | W42: 0 | Y42: 0 | AA42: 0 | AC42: 0 | AE42: 0 | AG42: =SUM(G42:U42) -> 106459.74
C44: Net Deferred Revenue Requirement | G44: =(G30+G32)-(G40+G42) -> -83313.94 | I44: =(I30+I32)-(I40+I42) -> -132351.68 | K44: =(K30+K32)-(K40+K42) -> -107560.5183 | M44: =(M30+M32)-(M40+M42) -> -193079.5433 | O44: =(O30+O32)-(O40+O42) -> 3514.761158 | Q44: =(Q30+Q32)-(Q40+Q42) -> -151414.788 | S44: =(S30+S32)-(S40+S42) -> 338188.8925 | U44: =(U30+U32)-(U40+U42) -> 1183696.712 | W44: =(W30+W32)-(W40+W42) -> 1077481.681 | Y44: =(Y30+Y32)-(Y40+Y42) -> 828339.2969 | AA44: =(AA30+AA32)-(AA40+AA42) -> 810373.0835 | AC44: =(AC30+AC32)-(AC40+AC42) -> 804517.0793 | AE44: =(AE30+AE32)-(AE40+AE42) -> 793771.3921 | AG44: =(AG30+AG32)-(AG40+AG42) -> -340347.0158
C46: Number of Metered Customers (average for 2016 year) | U46: =39588+2220 -> 41808
D47: - Number of metered customers for which smart meter were deployed as part of program). Residential and GS < 50 kW customer classes and any other metered classes involved (e.g. GS 50 to 4999 kW for which interval meters were upgraded to utilize AMI and ODS assets)
C49: Calculation of Smart Meter Funding Adder (per metered customer per month)
D51: Net Deferred Revenues | F51: May 1, 2006 to December 31, 2012 | G51: =AG44 -> -340347.0158
D53: SMFA | F53: May 1, 2012 to April 30, 201X | G53: =IF(U46=0,"",ROUND(S44/(U46*12),2)) -> 0.67
D55: Check: Forecasted SMFA Revenues for 2012 test year | G55: =IF(S46=0,"",G53*S46*12) -> 
C57: Calculation of Smart Meter Disposition Rider (per metered customer per month)
D59: Years for collection or refunding | G59: 1
D61: Deferred Incremental Revenue Requirement from 2006 to December 31, 2012 | G61: =SUM(G30:S30)+SUM(G32:S32) -> 2690642.014
E62: plus Interest on OM&A and Amortization
D63: SMFA Revenues collected from 2006 to 2013 test year (inclusive) | G63: =AG40+SUM(G42:U42) -> 3030989.03
E64: Plus Simple Interest on SMFA Revenues
D65: Net Deferred Revenue Requirement | G65: =G61-G63 -> -340347.0158
D67: SMDR | F67: May 1, 2013 to April 30, 2014 | G67: =IF(U46=0,"",ROUND(G65/(U46*12*G59),2)) -> -0.68 | I67: =IF(ISERROR(G69/G65), "Error", IF(G69/G65>=95%, "Match", "Error")) -> Match
D69: Check: Forecasted SMDR Revenues | G69: =IF(ISERROR(G67*U46*12*G59), "", G67*U46*12*G59) -> -341153.28
C71: Calculation of 2017 Smart Meter Incremental Revenue Requirement Rate Rider (per metered customer per month)
D73: Incremental Revenue Requirement for 2017 (for installed smart meters) | G73: =AC30 -> 804517.0793
D75: SMIRR | G75: =IF(ISERROR(ROUND(G73/(U46*12),2)), "", ROUND(G73/(U46*12),2)) -> 1.6 | I75: =IF(ISERROR(G77/G73), "Error", IF(G77/G73>=95%, "Match", "Error")) -> Match
D77: Check: Forecasted SMIRR Revenues | G77: =IF(ISERROR(G75*U46*12), "", G75*U46*12) -> 802713.6

Sheet 10A. Cost_Alloc_SMDR
B13: This worksheet calculates the class-specific SMDRs according to accepted practice. A distributor may choose to use its own methodology, but should provide analogous support for its allocation and derivation of class-specific SMDRs and SMIRRs.
B20: Class-specific SMDRs
B22: Revenue Requirement for Historical Years | C22: 2006 | E22: 2007 | G22: 2008 | I22: 2009 | K22: 2010 | M22: 2011 | O22: 2012 | Q22: Total 2006 to 2012 | R22: Explanation / Allocator | T22: Residential | V22: GS < 50 kW | X22: GS 50 to 4999 kW | Z22: Other (please specify) | AB22: Total
R23: Check Row if SMDR/SMIRR apply to class | T23: X | V23: X | AB23: =COUNTIF(T23:Z23,"X") -> 2
T24: % | V24: % | X24: % | Z24: %
R25: Weighted Meter Cost - Capital | T25: ='[4]Allocation of 1.1 costs'!$C$42 -> 0.8156217423 | V25: ='[4]Allocation of 1.1 costs'!$D$42 -> 0.1843782577 | X25: 0 | Z25: 0 | AB25: =T25+V25+X25+Z25 -> 1
B26: Return on Capital | C26: ='5. SM_Rev_Reqt'!G47 -> 0 | E26: ='5. SM_Rev_Reqt'!I47 -> 0 | G26: ='5. SM_Rev_Reqt'!K47 -> 22856.97976 | I26: ='5. SM_Rev_Reqt'!M47 -> 66225.51254 | K26: ='5. SM_Rev_Reqt'!O47 -> 219364.0364 | M26: ='5. SM_Rev_Reqt'!Q47 -> 336612.44 | O26: ='5. SM_Rev_Reqt'!S47 -> 350039.463 | Q26: =SUM(C26,E26,G26,I26,K26,M26,O26) -> 995098.4317 | R26: Allocated per class | T26: =Q26*T25 -> 811623.9167 | V26: =Q26*V25 -> 183474.5151 | X26: =Q26*X25 -> 0 | Z26: =Q26*Z25 -> 0
B28: Depreciation/Amortization expense and related interest | C28: ='5. SM_Rev_Reqt'!G58 -> 0 | E28: ='5. SM_Rev_Reqt'!I58 -> 0 | G28: ='5. SM_Rev_Reqt'!K58 -> 39839 | I28: ='5. SM_Rev_Reqt'!M58 -> 111517.1333 | K28: ='5. SM_Rev_Reqt'!O58 -> 283920.6033 | M28: ='5. SM_Rev_Reqt'!Q58 -> 479229.5973 | O28: ='5. SM_Rev_Reqt'!S58 -> 541644.4135
C29: =IF(C28+C32=0,0,'9. SMFA_SMDR_SMIRR'!G32*C28/(C28+C32)) -> 0 | E29: =IF(E28+E32=0,0,'9. SMFA_SMDR_SMIRR'!I32*E28/(E28+E32)) -> 0 | G29: =IF(G28+G32=0,0,'9. SMFA_SMDR_SMIRR'!K32*G28/(G28+G32)) -> 650.7866646 | I29: =IF(I28+I32=0,0,'9. SMFA_SMDR_SMIRR'!M32*I28/(I28+I32)) -> 563.3897186 | K29: =IF(K28+K32=0,0,'9. SMFA_SMDR_SMIRR'!O32*K28/(K28+K32)) -> 2354.74535 | M29: =IF(M28+M32=0,0,'9. SMFA_SMDR_SMIRR'!Q32*M28/(M28+M32)) -> 8710.615836 | O29: =IF(O28+O32=0,0,'9. SMFA_SMDR_SMIRR'!S32*O28/(O28+O32)) -> 16223.02386 | R29: =R25 -> Weighted Meter Cost - Capital | T29: =T25 -> 0.8156217423 | V29: =V25 -> 0.1843782577 | X29: =X25 -> 0 | Z29: =Z25 -> 0 | AB29: =T29+V29+X29+Z29 -> 1
C30: =C28+C29 -> 0 | E30: =E28+E29 -> 0 | G30: =G28+G29 -> 40489.78666 | I30: =I28+I29 -> 112080.5231 | K30: =K28+K29 -> 286275.3487 | M30: =M28+M29 -> 487940.2132 | O30: =O28+O29 -> 557867.4374 | Q30: =SUM(C30,E30,G30,I30,K30,M30,O30) -> 1484653.309 | R30: =R26 -> Allocated per class | T30: =Q30*T29 -> 1210915.519 | V30: =Q30*V29 -> 273737.7904 | X30: =Q30*X29 -> 0 | Z30: =Q30*Z29 -> 0
B32: Operating Expenses and related interest | C32: ='5. SM_Rev_Reqt'!G50 -> 0 | E32: ='5. SM_Rev_Reqt'!I50 -> 0 | G32: ='5. SM_Rev_Reqt'!K50 -> 0 | I32: ='5. SM_Rev_Reqt'!M50 -> 50842 | K32: ='5. SM_Rev_Reqt'!O50 -> 97985 | M32: ='5. SM_Rev_Reqt'!Q50 -> 222270 | O32: ='5. SM_Rev_Reqt'!S50 -> 269097.22 | R32: Number of Smart Meters installed by Class | T32: # | V32: # | X32: # | Z32: #
C33: ='9. SMFA_SMDR_SMIRR'!G32 -> 0 | E33: ='9. SMFA_SMDR_SMIRR'!I32 -> 0 | G33: =IF((G28+G32)=0,0,'9. SMFA_SMDR_SMIRR'!K32*G32/(G28+G32)) -> 0 | I33: =IF((I28+I32)=0,0,'9. SMFA_SMDR_SMIRR'!M32*I32/(I28+I32)) -> 256.856137 | K33: =IF((K28+K32)=0,0,'9. SMFA_SMDR_SMIRR'!O32*K32/(K28+K32)) -> 812.6557932 | M33: =IF((M28+M32)=0,0,'9. SMFA_SMDR_SMIRR'!Q32*M32/(M28+M32)) -> 4040.043838 | O33: =IF((O28+O32)=0,0,'9. SMFA_SMDR_SMIRR'!S32*O32/(O28+O32)) -> 8059.846114 | T33: ='[4]Allocation of 1.1 costs'!$B$17 -> 38524 | V33: ='[4]Allocation of 1.1 costs'!$C$17 -> 2097 | X33: 0 | Z33: 0
C34: =C32+C33 -> 0 | E34: =E32+E33 -> 0 | G34: =G32+G33 -> 0 | I34: =I32+I33 -> 51098.85614 | K34: =K32+K33 -> 98797.65579 | M34: =M32+M33 -> 226310.0438 | O34: =O32+O33 -> 277157.0661 | Q34: =SUM(C34,E34,G34,I34,K34,M34,O34) -> 653363.6219 | R34: Allocated per class | T34: =IF(SUM($T33,$V33,$X33,$Z33)=0,0,$Q34*T33/(SUM($T33,$V33,$X33,$Z33))) -> 619634.6759 | V34: =IF(SUM($T33,$V33,$X33,$Z33)=0,0,$Q34*V33/(SUM($T33,$V33,$X33,$Z33))) -> 33728.94599 | X34: =IF(SUM($T33,$V33,$X33,$Z33)=0,0,$Q34*X33/(SUM($T33,$V33,$X33,$Z33))) -> 0 | Z34: =IF(SUM($T33,$V33,$X33,$Z33)=0,0,$Q34*Z33/(SUM($T33,$V33,$X33,$Z33))) -> 0
B36: Revenue Requirement before Taxes/PILs | Q36: =Q26+Q30+Q34 -> 3133115.363 | T36: =T26+T30+T34 -> 2642174.111 | V36: =V26+V30+V34 -> 490941.2515 | X36: =X26+X30+X34 -> 0 | Z36: =Z26+Z30+Z34 -> 0 | AB36: =Q36-SUM(T36,V36,X36,Z36) -> 0
R38: Revenue Requirement before PILs | T38: =IF(T36=0,0,T36/SUM($T36,$V36,$X36,$Z36)) -> 0.8433057214 | V38: =IF(V36=0,0,V36/SUM($T36,$V36,$X36,$Z36)) -> 0.1566942786 | X38: =IF(X36=0,0,X36/SUM($T36,$V36,$X36,$Z36)) -> 0 | Z38: =IF(Z36=0,0,Z36/SUM($T36,$V36,$X36,$Z36)) -> 0 | AB38: =T38+V38+X38+Z38 -> 1
B40: Grossed-up Taxes/PILs | C40: ='5. SM_Rev_Reqt'!G68 -> 0 | E40: ='5. SM_Rev_Reqt'!I68 -> 0 | G40: ='5. SM_Rev_Reqt'!K68 -> -29157.74473 | I40: ='5. SM_Rev_Reqt'!M68 -> -57233.85499 | K40: ='5. SM_Rev_Reqt'!O68 -> -118512.2798 | M40: ='5. SM_Rev_Reqt'!Q68 -> -160571.235 | O40: ='5. SM_Rev_Reqt'!S68 -> -76998.23397 | Q40: =SUM(C40,E40,G40,I40,K40,M40,O40) -> -442473.3484 | T40: =Q40*T38 -> -373140.3063 | V40: =Q40*V38 -> -69333.04212 | X40: =Q40*X38 -> 0 | Z40: =Q40*Z38 -> 0
B42: Total Revenue Requirement plus interest on OM&A and depreciation expense | Q42: =Q36+Q40 -> 2690642.014 | T42: =T36+T40 -> 2269033.805 | V42: =V36+V40 -> 421608.2093 | X42: =X40+X36 -> 0 | Z42: =Z40+Z36 -> 0
R43: Percentage of costs allocated to each class | T43: =IF(SUM($T42,$V42,$X42,$Z42)=0,0,T42/(SUM($T42,$V42,$X42,$Z42))) -> 0.8433057214 | V43: =IF(SUM($T42,$V42,$X42,$Z42)=0,0,V42/(SUM($T42,$V42,$X42,$Z42))) -> 0.1566942786 | X43: =IF(SUM($T42,$V42,$X42,$Z42)=0,0,X42/(SUM($T42,$V42,$X42,$Z42))) -> 0 | Z43: =IF(SUM($T42,$V42,$X42,$Z42)=0,0,Z42/(SUM($T42,$V42,$X42,$Z42))) -> 0
Q44: =Q42-'9. SMFA_SMDR_SMIRR'!G61 -> 0 | R44: Percentage of costs for classes with SMDR/SMIRR | T44: =IF(T23="X",T43,0) -> 0.8433057214 | V44: =IF(V23="X",V43,0) -> 0.1566942786 | X44: =IF(X23="X",X43,0) -> 0 | Z44: =IF(Z23="X",Z43,0) -> 0
T45: =IF(SUM($T44,$V44,$X44,$Z44)=0,0,T44/SUM($T44,$V44,$X44,$Z44)) -> 0.8433057214 | V45: =IF(SUM($T44,$V44,$X44,$Z44)=0,0,V44/SUM($T44,$V44,$X44,$Z44)) -> 0.1566942786 | X45: =IF(SUM($T44,$V44,$X44,$Z44)=0,0,X44/SUM($T44,$V44,$X44,$Z44)) -> 0 | Z45: =IF(SUM($T44,$V44,$X44,$Z44)=0,0,Z44/SUM($T44,$V44,$X44,$Z44)) -> 0
T47: % | V47: % | X47: % | Z47: %
O48: SMFA Revenues directly attributable to class | T48: ='[5]Summary Tables'!$L$17 -> 0.9450694589 | V48: ='[5]Summary Tables'!$L$18 -> 0.0549305411 | AB48: =T48+V48+X48+Z48 -> 1
O49: Residual SMFA Revenues (from other metered classes) attributed evenly | T49: =IF(T23="X",T48,0) -> 0.9450694589 | V49: =IF(V23="X",V48,0) -> 0.0549305411 | X49: =IF(X23="X",X48,0) -> 0 | Z49: =IF(Z23="X",Z48,0) -> 0 | AB49: =T49+V49+X49+Z49 -> 1
T50: =IF(T23="X",(100%-$AB49)/$AB$23,0) -> 5.551115123e-17 | V50: =IF(V23="X",(100%-$AB49)/$AB$23,0) -> 5.551115123e-17 | X50: =IF(X23="X",(100%-$AB49)/$AB$23,0) -> 0 | Z50: =IF(Z23="X",(100%-$AB49)/$AB$23,0) -> 0
O51: Total | T51: =T48+T50 -> 0.9450694589 | V51: =V48+V50 -> 0.0549305411 | X51: =X48+X50 -> 0 | Z51: =Z48+Z50 -> 0
B53: SMFA Revenues plus interest expense | Q53: ='9. SMFA_SMDR_SMIRR'!G63 -> 3030989.03 | T53: =Q53*T51 -> 2864495.163 | V53: =Q53*V51 -> 166493.8675 | X53: =Q53*X51 -> 0 | Z53: =Q53*Z51 -> 0
B55: Net Deferred Revenue Requirement to be recovered via SMDR | Q55: =Q42-Q53 -> -340347.0158 | T55: =IF(T23="X",T42-T53,0) -> -595461.3577 | V55: =IF(V23="X",V42-V53,0) -> 255114.3419 | X55: =IF(X23="X",X42-X53,0) -> 0 | Z55: =IF(Z23="X",Z42-Z53,0) -> 0
B57: Average number of metered customers by class (2013) | Q57: Average number of customers (2013) | T57: =T33 -> 38524 | V57: =V33 -> 2097 | X57: 0 | Z57: 0
B59: Number of Years for SMDR recovery | Q59: 1 | R59: years | T59: =Q59 -> 1 | V59: =Q59 -> 1 | X59: =Q59 -> 1 | Z59: =Q59 -> 1
B61: Smart Meter Disposition Rider ($/month per metered customer in the customer class) | T61: =IF(T23="X",IF(T57*T59=0,"",ROUND(T55/(T57*T59*12),2)),"") -> -1.29 | V61: =IF(V23="X",IF(V57*V59=0,"",ROUND(V55/(V57*V59*12),2)),"") -> 10.14 | X61: =IF(X23="X",IF(X57*X59=0,"",ROUND(X55/(X57*X59*12),2)),"") ->  | Z61: =IF(Z23="X",IF(Z57*Z59=0,"",ROUND(Z55/(Z57*Z59*12),2)),"") -> 
B63: Estimated SMDR Revenues | Q63: =T63+V63+X63+Z63 -> -341188.56 | T63: =IF(T23="X",IF(T57=0,0,T61*T59*T57*12),0) -> -596351.52 | V63: =IF(V23="X",IF(V57=0,0,V61*V59*V57*12),0) -> 255162.96 | X63: =IF(X23="X",IF(X57=0,0,X61*X59*X57*12),0) -> 0 | Z63: =IF(Z23="X",IF(Z57=0,0,Z61*Z59*Z57*12),0) -> 0
Q65: =Q55-Q63 -> 841.5441643

Sheet 10B. Cost_Alloc_SMIRR
B13: This worksheet calculates the class-specific SMIRRs according to accepted practice. A distributor may choose to use its own methodology, but should provide analogous support for its allocation and derivation of class-specific SMDRs and SMIRRs.
B20: Class-specific SMDRs
B22: Revenue Requirement for 2013 | C22: 2006 | E22: 2007 | G22: 2008 | I22: 2009 | K22: 2010 | M22: 2011 | O22: 2012 | Q22: 2013 | R22: Explanation / Allocator | T22: Residential | V22: GS < 50 kW | X22: GS 50 to 4999 kW | Z22: ='10A. Cost_Alloc_SMDR'!Z22 -> Other (please specify) | AB22: Total
R23: Check Row if SMDR/SMIRR apply to class | T23: =IF('10A. Cost_Alloc_SMDR'!T23="X","X","") -> X | V23: =IF('10A. Cost_Alloc_SMDR'!V23="X","X","") -> X | X23: =IF('10A. Cost_Alloc_SMDR'!X23="X","X","") ->  | Z23: =IF('10A. Cost_Alloc_SMDR'!Z23="X","X","") ->  | AB23: =COUNTIF(T23:Z23,"X") -> 2
T24: % | V24: % | X24: % | Z24: %
R25: Weighted Meter Cost - Capital | T25: ='10A. Cost_Alloc_SMDR'!T25 -> 0.8156217423 | V25: ='10A. Cost_Alloc_SMDR'!V25 -> 0.1843782577 | X25: ='10A. Cost_Alloc_SMDR'!X25 -> 0 | Z25: ='10A. Cost_Alloc_SMDR'!Z25 -> 0 | AB25: =T25+V25+X25+Z25 -> 1
B26: Return on Capital | C26: ='5. SM_Rev_Reqt'!G47 -> 0 | E26: ='5. SM_Rev_Reqt'!I47 -> 0 | G26: ='5. SM_Rev_Reqt'!K47 -> 22856.97976 | I26: ='5. SM_Rev_Reqt'!M47 -> 66225.51254 | K26: ='5. SM_Rev_Reqt'!O47 -> 219364.0364 | M26: ='5. SM_Rev_Reqt'!Q47 -> 336612.44 | O26: ='5. SM_Rev_Reqt'!S47 -> 350039.463 | Q26: ='5. SM_Rev_Reqt'!U47 -> 317560.048 | R26: Allocated per class | T26: =Q26*T25 -> 259008.8796 | V26: =Q26*V25 -> 58551.16837 | X26: =Q26*X25 -> 0 | Z26: =Q26*Z25 -> 0
B28: Depreciation/Amortization expense | C28: ='5. SM_Rev_Reqt'!G58 -> 0 | E28: ='5. SM_Rev_Reqt'!I58 -> 0 | G28: ='5. SM_Rev_Reqt'!K58 -> 39839 | I28: ='5. SM_Rev_Reqt'!M58 -> 111517.1333 | K28: ='5. SM_Rev_Reqt'!O58 -> 283920.6033 | M28: ='5. SM_Rev_Reqt'!Q58 -> 479229.5973 | O28: ='5. SM_Rev_Reqt'!S58 -> 541644.4135
C29: =IF(C28+C32=0,0,'9. SMFA_SMDR_SMIRR'!G32*C28/(C28+C32)) -> 0 | E29: =IF(E28+E32=0,0,'9. SMFA_SMDR_SMIRR'!I32*E28/(E28+E32)) -> 0 | G29: =IF(G28+G32=0,0,'9. SMFA_SMDR_SMIRR'!K32*G28/(G28+G32)) -> 650.7866646 | I29: =IF(I28+I32=0,0,'9. SMFA_SMDR_SMIRR'!M32*I28/(I28+I32)) -> 563.3897186 | K29: =IF(K28+K32=0,0,'9. SMFA_SMDR_SMIRR'!O32*K28/(K28+K32)) -> 2354.74535 | M29: =IF(M28+M32=0,0,'9. SMFA_SMDR_SMIRR'!Q32*M28/(M28+M32)) -> 8710.615836 | O29: =IF(O28+O32=0,0,'9. SMFA_SMDR_SMIRR'!S32*O28/(O28+O32)) -> 16223.02386 | R29: =R25 -> Weighted Meter Cost - Capital | T29: =T25 -> 0.8156217423 | V29: =V25 -> 0.1843782577 | X29: =X25 -> 0 | Z29: =Z25 -> 0 | AB29: =T29+V29+X29+Z29 -> 1
C30: =C28+C29 -> 0 | E30: =E28+E29 -> 0 | G30: =G28+G29 -> 40489.78666 | I30: =I28+I29 -> 112080.5231 | K30: =K28+K29 -> 286275.3487 | M30: =M28+M29 -> 487940.2132 | O30: =O28+O29 -> 557867.4374 | Q30: ='5. SM_Rev_Reqt'!U58 -> 549314.5724 | R30: =R26 -> Allocated per class | T30: =Q30*T29 -> 448032.9086 | V30: =Q30*V29 -> 101281.6638 | X30: =Q30*X29 -> 0 | Z30: =Q30*Z29 -> 0
B32: Operating Expenses | C32: ='5. SM_Rev_Reqt'!G50 -> 0 | E32: ='5. SM_Rev_Reqt'!I50 -> 0 | G32: ='5. SM_Rev_Reqt'!K50 -> 0 | I32: ='5. SM_Rev_Reqt'!M50 -> 50842 | K32: ='5. SM_Rev_Reqt'!O50 -> 97985 | M32: ='5. SM_Rev_Reqt'!Q50 -> 222270 | O32: ='5. SM_Rev_Reqt'!S50 -> 269097.22 | Q32: ='5. SM_Rev_Reqt'!U50 -> 311000 | R32: Number of Smart Meters installed by Class | T32: # | V32: # | X32: # | Z32: #
C33: ='9. SMFA_SMDR_SMIRR'!G32 -> 0 | E33: ='9. SMFA_SMDR_SMIRR'!I32 -> 0 | G33: ='9. SMFA_SMDR_SMIRR'!K32 -> 650.7866646 | I33: ='9. SMFA_SMDR_SMIRR'!M32 -> 820.2458556 | K33: ='9. SMFA_SMDR_SMIRR'!O32 -> 3167.401143 | M33: ='9. SMFA_SMDR_SMIRR'!Q32 -> 12750.65967 | O33: ='9. SMFA_SMDR_SMIRR'!S32 -> 24282.86998 | T33: ='10A. Cost_Alloc_SMDR'!T33 -> 38524 | V33: ='10A. Cost_Alloc_SMDR'!V33 -> 2097 | X33: ='10A. Cost_Alloc_SMDR'!X33 -> 0 | Z33: ='10A. Cost_Alloc_SMDR'!Z33 -> 0
C34: =C32+C33 -> 0 | E34: =E32+E33 -> 0 | G34: =G32+G33 -> 650.7866646 | I34: =I32+I33 -> 51662.24586 | K34: =K32+K33 -> 101152.4011 | M34: =M32+M33 -> 235020.6597 | O34: =O32+O33 -> 293380.09 | Q34: =SUM(T34,V34,X34,Z34) -> 311000 | R34: Allocated per class | T34: =IF(SUM($T33,$V33,$X33,$Z33)=0,0,$Q32*T33/(SUM($T33,$V33,$X33,$Z33))) -> 294945.0777 | V34: =IF(SUM($T33,$V33,$X33,$Z33)=0,0,$Q32*V33/(SUM($T33,$V33,$X33,$Z33))) -> 16054.92233 | X34: =IF(SUM($T33,$V33,$X33,$Z33)=0,0,$Q32*X33/(SUM($T33,$V33,$X33,$Z33))) -> 0 | Z34: =IF(SUM($T33,$V33,$X33,$Z33)=0,0,$Q32*Z33/(SUM($T33,$V33,$X33,$Z33))) -> 0
B36: Revenue Requirement before Taxes/PILs | Q36: =Q26+Q30+Q32 -> 1177874.62 | T36: =T26+T30+T34 -> 1001986.866 | V36: =V26+V30+V34 -> 175887.7545 | X36: =X26+X30+X34 -> 0 | Z36: =Z26+Z30+Z34 -> 0 | AB36: =Q36-SUM(T36,V36,X36,Z36) -> 0
R38: Revenue Requirement before PILs | T38: =IF(T36=0,0,T36/SUM($T36,$V36,$X36,$Z36)) -> 0.8506736189 | V38: =IF(V36=0,0,V36/SUM($T36,$V36,$X36,$Z36)) -> 0.1493263811 | X38: =IF(X36=0,0,X36/SUM($T36,$V36,$X36,$Z36)) -> 0 | Z38: =IF(Z36=0,0,Z36/SUM($T36,$V36,$X36,$Z36)) -> 0 | AB38: =T38+V38+X38+Z38 -> 1
B40: Grossed-up Taxes/PILs | C40: ='5. SM_Rev_Reqt'!G68 -> 0 | E40: ='5. SM_Rev_Reqt'!I68 -> 0 | G40: ='5. SM_Rev_Reqt'!K68 -> -29157.74473 | I40: ='5. SM_Rev_Reqt'!M68 -> -57233.85499 | K40: ='5. SM_Rev_Reqt'!O68 -> -118512.2798 | M40: ='5. SM_Rev_Reqt'!Q68 -> -160571.235 | O40: ='5. SM_Rev_Reqt'!S68 -> -76998.23397 | Q40: ='5. SM_Rev_Reqt'!U68 -> 20152.292 | T40: =Q40*T38 -> 17143.02316 | V40: =Q40*V38 -> 3009.268836 | X40: =Q40*X38 -> 0 | Z40: =Q40*Z38 -> 0
B42: Total Revenue Requirement for 2013 | Q42: =Q36+Q40 -> 1198026.912 | T42: =T36+T40 -> 1019129.889 | V42: =V36+V40 -> 178897.0233 | X42: =X40+X36 -> 0 | Z42: =Z40+Z36 -> 0
R43: Percentage of costs allocated to each class | T43: =IF(SUM($T42,$V42,$X42,$Z42)=0,0,T42/(SUM($T42,$V42,$X42,$Z42))) -> 0.8506736189 | V43: =IF(SUM($T42,$V42,$X42,$Z42)=0,0,V42/(SUM($T42,$V42,$X42,$Z42))) -> 0.1493263811 | X43: =IF(SUM($T42,$V42,$X42,$Z42)=0,0,X42/(SUM($T42,$V42,$X42,$Z42))) -> 0 | Z43: =IF(SUM($T42,$V42,$X42,$Z42)=0,0,Z42/(SUM($T42,$V42,$X42,$Z42))) -> 0
Q44: =Q42-'9. SMFA_SMDR_SMIRR'!G73 -> 393509.8331 | R44: Percentage of costs for classes with SMDR/SMIRR | T44: =IF(T23="X",T43,0) -> 0.8506736189 | V44: =IF(V23="X",V43,0) -> 0.1493263811 | X44: =IF(X23="X",X43,0) -> 0 | Z44: =IF(Z23="X",Z43,0) -> 0
T45: =IF(SUM($T44,$V44,$X44,$Z44)=0,0,T44/SUM($T44,$V44,$X44,$Z44)) -> 0.8506736189 | V45: =IF(SUM($T44,$V44,$X44,$Z44)=0,0,V44/SUM($T44,$V44,$X44,$Z44)) -> 0.1493263811 | X45: =IF(SUM($T44,$V44,$X44,$Z44)=0,0,X44/SUM($T44,$V44,$X44,$Z44)) -> 0 | Z45: =IF(SUM($T44,$V44,$X44,$Z44)=0,0,Z44/SUM($T44,$V44,$X44,$Z44)) -> 0
B48: Average number of metered customers by class (2013) | T48: ='10A. Cost_Alloc_SMDR'!T57 -> 38524 | V48: ='10A. Cost_Alloc_SMDR'!V57 -> 2097 | X48: ='10A. Cost_Alloc_SMDR'!X57 -> 0 | Z48: ='10A. Cost_Alloc_SMDR'!Z57 -> 0
B50: The SMIRR is recovered as an annualized rate until the effective date of the distributor's next rebased rates resulting from a cost of service application | Q50: 1 | R50: year | T50: =Q50 -> 1 | V50: =Q50 -> 1 | X50: =Q50 -> 1 | Z50: =Q50 -> 1
B52: Smart Meter Incremental Revenue Requirement Rate Rider ($/month per metered customer in the customer class) | T52: =IF(T23="X",IF(T48*T50=0,"",ROUND(T42/(T48*T50*12),2)),"") -> 2.2 | V52: =IF(V23="X",IF(V48*V50=0,"",ROUND(V42/(V48*V50*12),2)),"") -> 7.11 | X52: =IF(X23="X",IF(X48*X50=0,"",ROUND(X42/(X48*X50*12),2)),"") ->  | Z52: =IF(Z23="X",IF(Z48*Z50=0,"",ROUND(Z42/(Z48*Z50*12),2)),"") -> 
B54: Estimated SMIRR Revenues | Q54: =T54+V54+X54+Z54 -> 1195949.64 | T54: =IF(T23="X",IF(T48=0,0,T52*T50*T48*12),0) -> 1017033.6 | V54: =IF(V23="X",IF(V48=0,0,V52*V50*V48*12),0) -> 178916.04 | X54: =IF(X23="X",IF(X48=0,0,X52*X50*X48*12),0) -> 0 | Z54: =IF(Z23="X",IF(Z48=0,0,Z52*Z50*Z48*12),0) -> 0
Q56: =Q54-Q42 -> -2077.272381

Sheet 10B. Cost_Alloc_SMIRR_2017
B13: This worksheet calculates the class-specific SMIRRs according to accepted practice. A distributor may choose to use its own methodology, but should provide analogous support for its allocation and derivation of class-specific SMDRs and SMIRRs.
B20: Class-specific SMDRs
B22: Revenue Requirement for 2017 | C22: 2006 | E22: 2007 | G22: 2008 | I22: 2009 | K22: 2010 | M22: 2011 | O22: 2012 | Q22: 2017 | R22: Explanation / Allocator | T22: Residential | V22: GS < 50 kW | X22: GS 50 to 4999 kW | Z22: ='10A. Cost_Alloc_SMDR'!Z22 -> Other (please specify) | AB22: Total
R23: Check Row if SMDR/SMIRR apply to class | T23: =IF('10A. Cost_Alloc_SMDR'!T23="X","X","") -> X | V23: =IF('10A. Cost_Alloc_SMDR'!V23="X","X","") -> X | X23: =IF('10A. Cost_Alloc_SMDR'!X23="X","X","") ->  | Z23: =IF('10A. Cost_Alloc_SMDR'!Z23="X","X","") ->  | AB23: =COUNTIF(T23:Z23,"X") -> 2
T24: % | V24: % | X24: % | Z24: %
R25: Weighted Meter Cost - Capital | T25: ='10A. Cost_Alloc_SMDR'!T25 -> 0.8156217423 | V25: ='10A. Cost_Alloc_SMDR'!V25 -> 0.1843782577 | X25: ='10A. Cost_Alloc_SMDR'!X25 -> 0 | Z25: ='10A. Cost_Alloc_SMDR'!Z25 -> 0 | AB25: =T25+V25+X25+Z25 -> 1
B26: Return on Capital | C26: ='5. SM_Rev_Reqt'!G47 -> 0 | E26: ='5. SM_Rev_Reqt'!I47 -> 0 | G26: ='5. SM_Rev_Reqt'!K47 -> 22856.97976 | I26: ='5. SM_Rev_Reqt'!M47 -> 66225.51254 | K26: ='5. SM_Rev_Reqt'!O47 -> 219364.0364 | M26: ='5. SM_Rev_Reqt'!Q47 -> 336612.44 | O26: ='5. SM_Rev_Reqt'!S47 -> 350039.463 | Q26: ='5. SM_Rev_Reqt'!AC47 -> 197187.3449 | R26: Allocated per class | T26: =Q26*T25 -> 160830.2858 | V26: =Q26*V25 -> 36357.05909 | X26: =Q26*X25 -> 0 | Z26: =Q26*Z25 -> 0
B28: Depreciation/Amortization expense | C28: ='5. SM_Rev_Reqt'!G58 -> 0 | E28: ='5. SM_Rev_Reqt'!I58 -> 0 | G28: ='5. SM_Rev_Reqt'!K58 -> 39839 | I28: ='5. SM_Rev_Reqt'!M58 -> 111517.1333 | K28: ='5. SM_Rev_Reqt'!O58 -> 283920.6033 | M28: ='5. SM_Rev_Reqt'!Q58 -> 479229.5973 | O28: ='5. SM_Rev_Reqt'!S58 -> 541644.4135
C29: =IF(C28+C32=0,0,'9. SMFA_SMDR_SMIRR'!G32*C28/(C28+C32)) -> 0 | E29: =IF(E28+E32=0,0,'9. SMFA_SMDR_SMIRR'!I32*E28/(E28+E32)) -> 0 | G29: =IF(G28+G32=0,0,'9. SMFA_SMDR_SMIRR'!K32*G28/(G28+G32)) -> 650.7866646 | I29: =IF(I28+I32=0,0,'9. SMFA_SMDR_SMIRR'!M32*I28/(I28+I32)) -> 563.3897186 | K29: =IF(K28+K32=0,0,'9. SMFA_SMDR_SMIRR'!O32*K28/(K28+K32)) -> 2354.74535 | M29: =IF(M28+M32=0,0,'9. SMFA_SMDR_SMIRR'!Q32*M28/(M28+M32)) -> 8710.615836 | O29: =IF(O28+O32=0,0,'9. SMFA_SMDR_SMIRR'!S32*O28/(O28+O32)) -> 16223.02386 | R29: =R25 -> Weighted Meter Cost - Capital | T29: =T25 -> 0.8156217423 | V29: =V25 -> 0.1843782577 | X29: =X25 -> 0 | Z29: =Z25 -> 0 | AB29: =T29+V29+X29+Z29 -> 1
C30: =C28+C29 -> 0 | E30: =E28+E29 -> 0 | G30: =G28+G29 -> 40489.78666 | I30: =I28+I29 -> 112080.5231 | K30: =K28+K29 -> 286275.3487 | M30: =M28+M29 -> 487940.2132 | O30: =O28+O29 -> 557867.4374 | Q30: ='5. SM_Rev_Reqt'!AC58 -> 345479.7804 | R30: =R26 -> Allocated per class | T30: =Q30*T29 -> 281780.8204 | V30: =Q30*V29 -> 63698.95998 | X30: =Q30*X29 -> 0 | Z30: =Q30*Z29 -> 0
B32: Operating Expenses | C32: ='5. SM_Rev_Reqt'!G50 -> 0 | E32: ='5. SM_Rev_Reqt'!I50 -> 0 | G32: ='5. SM_Rev_Reqt'!K50 -> 0 | I32: ='5. SM_Rev_Reqt'!M50 -> 50842 | K32: ='5. SM_Rev_Reqt'!O50 -> 97985 | M32: ='5. SM_Rev_Reqt'!Q50 -> 222270 | O32: ='5. SM_Rev_Reqt'!S50 -> 269097.22 | Q32: ='5. SM_Rev_Reqt'!AC50 -> 189000 | R32: Number of Smart Meters installed by Class | T32: # | V32: # | X32: # | Z32: #
C33: ='9. SMFA_SMDR_SMIRR'!G32 -> 0 | E33: ='9. SMFA_SMDR_SMIRR'!I32 -> 0 | G33: ='9. SMFA_SMDR_SMIRR'!K32 -> 650.7866646 | I33: ='9. SMFA_SMDR_SMIRR'!M32 -> 820.2458556 | K33: ='9. SMFA_SMDR_SMIRR'!O32 -> 3167.401143 | M33: ='9. SMFA_SMDR_SMIRR'!Q32 -> 12750.65967 | O33: ='9. SMFA_SMDR_SMIRR'!S32 -> 24282.86998 | T33: ='10A. Cost_Alloc_SMDR'!T33 -> 38524 | V33: ='10A. Cost_Alloc_SMDR'!V33 -> 2097 | X33: ='10A. Cost_Alloc_SMDR'!X33 -> 0 | Z33: ='10A. Cost_Alloc_SMDR'!Z33 -> 0
C34: =C32+C33 -> 0 | E34: =E32+E33 -> 0 | G34: =G32+G33 -> 650.7866646 | I34: =I32+I33 -> 51662.24586 | K34: =K32+K33 -> 101152.4011 | M34: =M32+M33 -> 235020.6597 | O34: =O32+O33 -> 293380.09 | Q34: =SUM(T34,V34,X34,Z34) -> 189000 | R34: Allocated per class | T34: =IF(SUM($T33,$V33,$X33,$Z33)=0,0,$Q32*T33/(SUM($T33,$V33,$X33,$Z33))) -> 179243.1501 | V34: =IF(SUM($T33,$V33,$X33,$Z33)=0,0,$Q32*V33/(SUM($T33,$V33,$X33,$Z33))) -> 9756.849905 | X34: =IF(SUM($T33,$V33,$X33,$Z33)=0,0,$Q32*X33/(SUM($T33,$V33,$X33,$Z33))) -> 0 | Z34: =IF(SUM($T33,$V33,$X33,$Z33)=0,0,$Q32*Z33/(SUM($T33,$V33,$X33,$Z33))) -> 0
B36: Revenue Requirement before Taxes/PILs | Q36: =Q26+Q30+Q32 -> 731667.1252 | T36: =T26+T30+T34 -> 621854.2563 | V36: =V26+V30+V34 -> 109812.869 | X36: =X26+X30+X34 -> 0 | Z36: =Z26+Z30+Z34 -> 0 | AB36: =Q36-SUM(T36,V36,X36,Z36) -> 0
R38: Revenue Requirement before PILs | T38: =IF(T36=0,0,T36/SUM($T36,$V36,$X36,$Z36)) -> 0.8499141684 | V38: =IF(V36=0,0,V36/SUM($T36,$V36,$X36,$Z36)) -> 0.1500858316 | X38: =IF(X36=0,0,X36/SUM($T36,$V36,$X36,$Z36)) -> 0 | Z38: =IF(Z36=0,0,Z36/SUM($T36,$V36,$X36,$Z36)) -> 0 | AB38: =T38+V38+X38+Z38 -> 1
B40: Grossed-up Taxes/PILs | C40: ='5. SM_Rev_Reqt'!G68 -> 0 | E40: ='5. SM_Rev_Reqt'!I68 -> 0 | G40: ='5. SM_Rev_Reqt'!K68 -> -29157.74473 | I40: ='5. SM_Rev_Reqt'!M68 -> -57233.85499 | K40: ='5. SM_Rev_Reqt'!O68 -> -118512.2798 | M40: ='5. SM_Rev_Reqt'!Q68 -> -160571.235 | O40: ='5. SM_Rev_Reqt'!S68 -> -76998.23397 | Q40: ='5. SM_Rev_Reqt'!AC68 -> 72849.95406 | T40: =Q40*T38 -> 61916.20812 | V40: =Q40*V38 -> 10933.74594 | X40: =Q40*X38 -> 0 | Z40: =Q40*Z38 -> 0
B42: Total Revenue Requirement for 2017 | Q42: =Q36+Q40 -> 804517.0793 | T42: =T36+T40 -> 683770.4644 | V42: =V36+V40 -> 120746.6149 | X42: =X40+X36 -> 0 | Z42: =Z40+Z36 -> 0
R43: Percentage of costs allocated to each class | T43: =IF(SUM($T42,$V42,$X42,$Z42)=0,0,T42/(SUM($T42,$V42,$X42,$Z42))) -> 0.8499141684 | V43: =IF(SUM($T42,$V42,$X42,$Z42)=0,0,V42/(SUM($T42,$V42,$X42,$Z42))) -> 0.1500858316 | X43: =IF(SUM($T42,$V42,$X42,$Z42)=0,0,X42/(SUM($T42,$V42,$X42,$Z42))) -> 0 | Z43: =IF(SUM($T42,$V42,$X42,$Z42)=0,0,Z42/(SUM($T42,$V42,$X42,$Z42))) -> 0
Q44: =Q42-'9. SMFA_SMDR_SMIRR'!G73 -> 0 | R44: Percentage of costs for classes with SMDR/SMIRR | T44: =IF(T23="X",T43,0) -> 0.8499141684 | V44: =IF(V23="X",V43,0) -> 0.1500858316 | X44: =IF(X23="X",X43,0) -> 0 | Z44: =IF(Z23="X",Z43,0) -> 0
T45: =IF(SUM($T44,$V44,$X44,$Z44)=0,0,T44/SUM($T44,$V44,$X44,$Z44)) -> 0.8499141684 | V45: =IF(SUM($T44,$V44,$X44,$Z44)=0,0,V44/SUM($T44,$V44,$X44,$Z44)) -> 0.1500858316 | X45: =IF(SUM($T44,$V44,$X44,$Z44)=0,0,X44/SUM($T44,$V44,$X44,$Z44)) -> 0 | Z45: =IF(SUM($T44,$V44,$X44,$Z44)=0,0,Z44/SUM($T44,$V44,$X44,$Z44)) -> 0
B48: Average number of metered customers by class (2016) | T48: 39588 | V48: 2220 | X48: ='10A. Cost_Alloc_SMDR'!X57 -> 0 | Z48: ='10A. Cost_Alloc_SMDR'!Z57 -> 0
B50: The SMIRR is recovered as an annualized rate until the effective date of the distributor's next rebased rates resulting from a cost of service application | Q50: 1 | R50: year | T50: =Q50 -> 1 | V50: =Q50 -> 1 | X50: =Q50 -> 1 | Z50: =Q50 -> 1
B52: Smart Meter Incremental Revenue Requirement Rate Rider ($/month per metered customer in the customer class) | T52: =IF(T23="X",IF(T48*T50=0,"",ROUND(T42/(T48*T50*12),2)),"") -> 1.44 | V52: =IF(V23="X",IF(V48*V50=0,"",ROUND(V42/(V48*V50*12),2)),"") -> 4.53 | X52: =IF(X23="X",IF(X48*X50=0,"",ROUND(X42/(X48*X50*12),2)),"") ->  | Z52: =IF(Z23="X",IF(Z48*Z50=0,"",ROUND(Z42/(Z48*Z50*12),2)),"") -> 
B54: Estimated SMIRR Revenues | Q54: =T54+V54+X54+Z54 -> 804759.84 | T54: =IF(T23="X",IF(T48=0,0,T52*T50*T48*12),0) -> 684080.64 | V54: =IF(V23="X",IF(V48=0,0,V52*V50*V48*12),0) -> 120679.2 | X54: =IF(X23="X",IF(X48=0,0,X52*X50*X48*12),0) -> 0 | Z54: =IF(Z23="X",IF(Z48=0,0,Z52*Z50*Z48*12),0) -> 0
Q56: =Q54-Q42 -> 242.7607015

Sheet 10B. Cost_Alloc_SMIRR_2018
B13: This worksheet calculates the class-specific SMIRRs according to accepted practice. A distributor may choose to use its own methodology, but should provide analogous support for its allocation and derivation of class-specific SMDRs and SMIRRs.
B20: Class-specific SMDRs
B22: Revenue Requirement for 2018 | C22: 2006 | E22: 2007 | G22: 2008 | I22: 2009 | K22: 2010 | M22: 2011 | O22: 2012 | Q22: 2018 | R22: Explanation / Allocator | T22: Residential | V22: GS < 50 kW | X22: GS 50 to 4999 kW | Z22: ='10A. Cost_Alloc_SMDR'!Z22 -> Other (please specify) | AB22: Total
R23: Check Row if SMDR/SMIRR apply to class | T23: =IF('10A. Cost_Alloc_SMDR'!T23="X","X","") -> X | V23: =IF('10A. Cost_Alloc_SMDR'!V23="X","X","") -> X | X23: =IF('10A. Cost_Alloc_SMDR'!X23="X","X","") ->  | Z23: =IF('10A. Cost_Alloc_SMDR'!Z23="X","X","") ->  | AB23: =COUNTIF(T23:Z23,"X") -> 2
T24: % | V24: % | X24: % | Z24: %
R25: Weighted Meter Cost - Capital | T25: ='10A. Cost_Alloc_SMDR'!T25 -> 0.8156217423 | V25: ='10A. Cost_Alloc_SMDR'!V25 -> 0.1843782577 | X25: ='10A. Cost_Alloc_SMDR'!X25 -> 0 | Z25: ='10A. Cost_Alloc_SMDR'!Z25 -> 0 | AB25: =T25+V25+X25+Z25 -> 1
B26: Return on Capital | C26: ='5. SM_Rev_Reqt'!G47 -> 0 | E26: ='5. SM_Rev_Reqt'!I47 -> 0 | G26: ='5. SM_Rev_Reqt'!K47 -> 22856.97976 | I26: ='5. SM_Rev_Reqt'!M47 -> 66225.51254 | K26: ='5. SM_Rev_Reqt'!O47 -> 219364.0364 | M26: ='5. SM_Rev_Reqt'!Q47 -> 336612.44 | O26: ='5. SM_Rev_Reqt'!S47 -> 350039.463 | Q26: ='5. SM_Rev_Reqt'!AE47 -> 172900.1163 | R26: Allocated per class | T26: =Q26*T25 -> 141021.0941 | V26: =Q26*V25 -> 31879.0222 | X26: =Q26*X25 -> 0 | Z26: =Q26*Z25 -> 0
B28: Depreciation/Amortization expense | C28: ='5. SM_Rev_Reqt'!G58 -> 0 | E28: ='5. SM_Rev_Reqt'!I58 -> 0 | G28: ='5. SM_Rev_Reqt'!K58 -> 39839 | I28: ='5. SM_Rev_Reqt'!M58 -> 111517.1333 | K28: ='5. SM_Rev_Reqt'!O58 -> 283920.6033 | M28: ='5. SM_Rev_Reqt'!Q58 -> 479229.5973 | O28: ='5. SM_Rev_Reqt'!S58 -> 541644.4135
C29: =IF(C28+C32=0,0,'9. SMFA_SMDR_SMIRR'!G32*C28/(C28+C32)) -> 0 | E29: =IF(E28+E32=0,0,'9. SMFA_SMDR_SMIRR'!I32*E28/(E28+E32)) -> 0 | G29: =IF(G28+G32=0,0,'9. SMFA_SMDR_SMIRR'!K32*G28/(G28+G32)) -> 650.7866646 | I29: =IF(I28+I32=0,0,'9. SMFA_SMDR_SMIRR'!M32*I28/(I28+I32)) -> 563.3897186 | K29: =IF(K28+K32=0,0,'9. SMFA_SMDR_SMIRR'!O32*K28/(K28+K32)) -> 2354.74535 | M29: =IF(M28+M32=0,0,'9. SMFA_SMDR_SMIRR'!Q32*M28/(M28+M32)) -> 8710.615836 | O29: =IF(O28+O32=0,0,'9. SMFA_SMDR_SMIRR'!S32*O28/(O28+O32)) -> 16223.02386 | R29: =R25 -> Weighted Meter Cost - Capital | T29: =T25 -> 0.8156217423 | V29: =V25 -> 0.1843782577 | X29: =X25 -> 0 | Z29: =Z25 -> 0 | AB29: =T29+V29+X29+Z29 -> 1
C30: =C28+C29 -> 0 | E30: =E28+E29 -> 0 | G30: =G28+G29 -> 40489.78666 | I30: =I28+I29 -> 112080.5231 | K30: =K28+K29 -> 286275.3487 | M30: =M28+M29 -> 487940.2132 | O30: =O28+O29 -> 557867.4374 | Q30: ='5. SM_Rev_Reqt'!AE58 -> 345479.7804 | R30: =R26 -> Allocated per class | T30: =Q30*T29 -> 281780.8204 | V30: =Q30*V29 -> 63698.95998 | X30: =Q30*X29 -> 0 | Z30: =Q30*Z29 -> 0
B32: Operating Expenses | C32: ='5. SM_Rev_Reqt'!G50 -> 0 | E32: ='5. SM_Rev_Reqt'!I50 -> 0 | G32: ='5. SM_Rev_Reqt'!K50 -> 0 | I32: ='5. SM_Rev_Reqt'!M50 -> 50842 | K32: ='5. SM_Rev_Reqt'!O50 -> 97985 | M32: ='5. SM_Rev_Reqt'!Q50 -> 222270 | O32: ='5. SM_Rev_Reqt'!S50 -> 269097.22 | Q32: ='5. SM_Rev_Reqt'!AE50 -> 189000 | R32: Number of Smart Meters installed by Class | T32: # | V32: # | X32: # | Z32: #
C33: ='9. SMFA_SMDR_SMIRR'!G32 -> 0 | E33: ='9. SMFA_SMDR_SMIRR'!I32 -> 0 | G33: ='9. SMFA_SMDR_SMIRR'!K32 -> 650.7866646 | I33: ='9. SMFA_SMDR_SMIRR'!M32 -> 820.2458556 | K33: ='9. SMFA_SMDR_SMIRR'!O32 -> 3167.401143 | M33: ='9. SMFA_SMDR_SMIRR'!Q32 -> 12750.65967 | O33: ='9. SMFA_SMDR_SMIRR'!S32 -> 24282.86998 | T33: ='10A. Cost_Alloc_SMDR'!T33 -> 38524 | V33: ='10A. Cost_Alloc_SMDR'!V33 -> 2097 | X33: ='10A. Cost_Alloc_SMDR'!X33 -> 0 | Z33: ='10A. Cost_Alloc_SMDR'!Z33 -> 0
C34: =C32+C33 -> 0 | E34: =E32+E33 -> 0 | G34: =G32+G33 -> 650.7866646 | I34: =I32+I33 -> 51662.24586 | K34: =K32+K33 -> 101152.4011 | M34: =M32+M33 -> 235020.6597 | O34: =O32+O33 -> 293380.09 | Q34: =SUM(T34,V34,X34,Z34) -> 189000 | R34: Allocated per class | T34: =IF(SUM($T33,$V33,$X33,$Z33)=0,0,$Q32*T33/(SUM($T33,$V33,$X33,$Z33))) -> 179243.1501 | V34: =IF(SUM($T33,$V33,$X33,$Z33)=0,0,$Q32*V33/(SUM($T33,$V33,$X33,$Z33))) -> 9756.849905 | X34: =IF(SUM($T33,$V33,$X33,$Z33)=0,0,$Q32*X33/(SUM($T33,$V33,$X33,$Z33))) -> 0 | Z34: =IF(SUM($T33,$V33,$X33,$Z33)=0,0,$Q32*Z33/(SUM($T33,$V33,$X33,$Z33))) -> 0
B36: Revenue Requirement before Taxes/PILs | Q36: =Q26+Q30+Q32 -> 707379.8967 | T36: =T26+T30+T34 -> 602045.0646 | V36: =V26+V30+V34 -> 105334.8321 | X36: =X26+X30+X34 -> 0 | Z36: =Z26+Z30+Z34 -> 0 | AB36: =Q36-SUM(T36,V36,X36,Z36) -> 0
R38: Revenue Requirement before PILs | T38: =IF(T36=0,0,T36/SUM($T36,$V36,$X36,$Z36)) -> 0.8510915668 | V38: =IF(V36=0,0,V36/SUM($T36,$V36,$X36,$Z36)) -> 0.1489084332 | X38: =IF(X36=0,0,X36/SUM($T36,$V36,$X36,$Z36)) -> 0 | Z38: =IF(Z36=0,0,Z36/SUM($T36,$V36,$X36,$Z36)) -> 0 | AB38: =T38+V38+X38+Z38 -> 1
B40: Grossed-up Taxes/PILs | C40: ='5. SM_Rev_Reqt'!G68 -> 0 | E40: ='5. SM_Rev_Reqt'!I68 -> 0 | G40: ='5. SM_Rev_Reqt'!K68 -> -29157.74473 | I40: ='5. SM_Rev_Reqt'!M68 -> -57233.85499 | K40: ='5. SM_Rev_Reqt'!O68 -> -118512.2798 | M40: ='5. SM_Rev_Reqt'!Q68 -> -160571.235 | O40: ='5. SM_Rev_Reqt'!S68 -> -76998.23397 | Q40: ='5. SM_Rev_Reqt'!AE68 -> 86391.49546 | T40: =Q40*T38 -> 73527.07323 | V40: =Q40*V38 -> 12864.42223 | X40: =Q40*X38 -> 0 | Z40: =Q40*Z38 -> 0
B42: Total Revenue Requirement for 2018 | Q42: =Q36+Q40 -> 793771.3921 | T42: =T36+T40 -> 675572.1378 | V42: =V36+V40 -> 118199.2543 | X42: =X40+X36 -> 0 | Z42: =Z40+Z36 -> 0
R43: Percentage of costs allocated to each class | T43: =IF(SUM($T42,$V42,$X42,$Z42)=0,0,T42/(SUM($T42,$V42,$X42,$Z42))) -> 0.8510915668 | V43: =IF(SUM($T42,$V42,$X42,$Z42)=0,0,V42/(SUM($T42,$V42,$X42,$Z42))) -> 0.1489084332 | X43: =IF(SUM($T42,$V42,$X42,$Z42)=0,0,X42/(SUM($T42,$V42,$X42,$Z42))) -> 0 | Z43: =IF(SUM($T42,$V42,$X42,$Z42)=0,0,Z42/(SUM($T42,$V42,$X42,$Z42))) -> 0
Q44: =Q42-'9. SMFA_SMDR_SMIRR'!AE44 -> 0 | R44: Percentage of costs for classes with SMDR/SMIRR | T44: =IF(T23="X",T43,0) -> 0.8510915668 | V44: =IF(V23="X",V43,0) -> 0.1489084332 | X44: =IF(X23="X",X43,0) -> 0 | Z44: =IF(Z23="X",Z43,0) -> 0
T45: =IF(SUM($T44,$V44,$X44,$Z44)=0,0,T44/SUM($T44,$V44,$X44,$Z44)) -> 0.8510915668 | V45: =IF(SUM($T44,$V44,$X44,$Z44)=0,0,V44/SUM($T44,$V44,$X44,$Z44)) -> 0.1489084332 | X45: =IF(SUM($T44,$V44,$X44,$Z44)=0,0,X44/SUM($T44,$V44,$X44,$Z44)) -> 0 | Z45: =IF(SUM($T44,$V44,$X44,$Z44)=0,0,Z44/SUM($T44,$V44,$X44,$Z44)) -> 0
B48: Average number of metered customers by class (2016) | T48: ='10B. Cost_Alloc_SMIRR_2017'!T48 -> 39588 | V48: ='10B. Cost_Alloc_SMIRR_2017'!V48 -> 2220 | X48: ='10A. Cost_Alloc_SMDR'!X57 -> 0 | Z48: ='10A. Cost_Alloc_SMDR'!Z57 -> 0
B50: The SMIRR is recovered as an annualized rate until the effective date of the distributor's next rebased rates resulting from a cost of service application | Q50: 1 | R50: year | T50: =Q50 -> 1 | V50: =Q50 -> 1 | X50: =Q50 -> 1 | Z50: =Q50 -> 1
B52: Smart Meter Incremental Revenue Requirement Rate Rider ($/month per metered customer in the customer class) | T52: =IF(T23="X",IF(T48*T50=0,"",ROUND(T42/(T48*T50*12),2)),"") -> 1.42 | V52: =IF(V23="X",IF(V48*V50=0,"",ROUND(V42/(V48*V50*12),2)),"") -> 4.44 | X52: =IF(X23="X",IF(X48*X50=0,"",ROUND(X42/(X48*X50*12),2)),"") ->  | Z52: =IF(Z23="X",IF(Z48*Z50=0,"",ROUND(Z42/(Z48*Z50*12),2)),"") -> 
B54: Estimated SMIRR Revenues | Q54: =T54+V54+X54+Z54 -> 792861.12 | T54: =IF(T23="X",IF(T48=0,0,T52*T50*T48*12),0) -> 674579.52 | V54: =IF(V23="X",IF(V48=0,0,V52*V50*V48*12),0) -> 118281.6 | X54: =IF(X23="X",IF(X48=0,0,X52*X50*X48*12),0) -> 0 | Z54: =IF(Z23="X",IF(Z48=0,0,Z52*Z50*Z48*12),0) -> 0
Q56: =Q54-Q42 -> -910.2721335
